{"text_format":"1","workbook":"xlsx","n_sheets":4,"sheets":["Factsheet","Multiples","Dividends","Base Factsheet"],"not_rendered":{"charts":1,"images":1,"macros":1,"external_links":0,"defined_names":57,"comments":0,"pivot_tables":0},"unopened":[],"bounds":{"document_bytes":16777216,"sheet_cells":100000,"rows_first":2000,"rows_last":500,"rows_between":2000,"halvings":0,"cell_chars":16384,"cell_head_chars":4096},"cells_cut":0,"cells_raw":0,"read":"whole","date_system":"1900"}

{"sheet":"Factsheet","index":0,"n_rows":57,"n_cols":32,"rows_kept":57,"cut":false,"hidden":false,"merged":[[53,22,54,23],[53,24,54,25],[39,22,39,25],[45,15,46,17],[47,15,48,17],[49,15,50,17],[51,15,52,17],[53,15,54,17],[43,18,44,19],[53,18,54,19],[43,20,44,21],[53,20,54,21],[49,22,50,23],[49,24,50,25],[51,22,52,23],[51,24,52,25],[47,18,48,19],[47,20,48,21],[47,22,48,23],[47,24,48,25],[45,18,46,19],[45,20,46,21],[45,22,46,23],[45,24,46,25],[54,1,54,3],[54,4,54,5],[54,6,54,7],[54,8,54,9],[53,8,53,9],[51,1,51,3],[51,4,51,6],[51,7,51,9],[52,1,52,3],[52,4,52,5],[52,6,52,7],[52,8,52,9],[49,18,50,19],[49,20,50,21],[51,18,52,19],[51,20,52,21],[53,1,53,3],[53,4,53,5],[53,6,53,7],[49,1,49,3],[49,4,49,5],[49,6,49,7],[49,8,49,9],[50,1,50,3],[50,4,50,5],[50,6,50,7],[50,8,50,9],[48,1,48,3],[48,4,48,5],[48,6,48,7],[48,8,48,9],[46,1,46,3],[46,4,46,5],[46,6,46,7],[46,8,46,9],[43,24,44,25],[45,1,45,3],[45,4,45,5],[45,6,45,7],[45,8,45,9],[44,1,44,3],[44,4,44,5],[44,6,44,7],[44,8,44,9],[43,15,44,17],[43,22,44,23],[41,24,42,25],[43,1,43,3],[43,4,43,5],[43,6,43,7],[43,8,43,9],[42,1,42,3],[42,4,42,5],[42,6,42,7],[42,8,42,9],[41,18,42,19],[41,20,42,21],[41,22,42,23],[41,15,42,17],[41,1,41,3],[41,4,41,5],[41,6,41,7],[41,8,41,9],[40,18,40,19],[40,20,40,21],[40,22,40,23],[40,24,40,25],[40,1,40,3],[40,4,40,5],[40,6,40,7],[40,8,40,9],[39,18,39,21],[38,1,38,3],[38,4,38,5],[38,6,38,7],[38,8,38,9],[39,1,39,3],[39,4,39,5],[39,6,39,7],[39,8,39,9],[36,1,36,3],[36,4,36,5],[36,6,36,7],[36,8,36,9],[37,1,37,3],[37,4,37,5],[37,6,37,7],[37,8,37,9],[34,1,34,3],[34,4,34,5],[34,6,34,7],[34,8,34,9],[35,1,35,3],[35,4,35,5],[35,6,35,7],[35,8,35,9],[32,1,32,3],[32,4,32,5],[32,6,32,7],[32,8,32,9],[33,1,33,3],[33,4,33,5],[33,6,33,7],[33,8,33,9],[30,1,30,3],[30,4,30,5],[30,6,30,7],[30,8,30,9],[31,1,31,3],[31,4,31,5],[31,6,31,7],[31,8,31,9],[27,8,27,9],[28,4,28,5],[28,6,28,7],[28,8,28,9],[29,1,29,3],[29,4,29,5],[29,6,29,7],[29,8,29,9],[24,1,24,3],[24,4,24,5],[24,6,24,7],[24,8,24,9],[25,1,25,3],[25,4,25,5],[25,6,25,7],[25,8,25,9],[22,1,22,3],[22,4,22,5],[22,6,22,7],[22,8,22,9],[23,1,23,3],[23,4,23,5],[23,6,23,7],[23,8,23,9],[20,1,20,3],[20,4,20,5],[20,6,20,7],[20,8,20,9],[21,1,21,3],[21,4,21,5],[21,6,21,7],[21,8,21,9],[18,1,18,3],[18,4,18,5],[18,6,18,7],[18,8,18,9],[19,1,19,3],[19,4,19,5],[19,6,19,7],[19,8,19,9],[16,1,16,3],[16,4,16,5],[16,6,16,7],[16,8,16,9],[17,1,17,3],[17,4,17,5],[17,6,17,7],[17,8,17,9],[12,28,12,29],[14,1,14,3],[14,4,14,5],[14,6,14,7],[14,8,14,9],[15,1,15,3],[15,4,15,5],[15,6,15,7],[15,8,15,9],[13,1,13,3],[12,11,12,13],[12,14,12,15],[12,16,12,17],[12,18,12,19],[12,20,12,21],[12,22,12,23],[12,1,12,3],[12,4,12,5],[12,6,12,7],[12,8,12,9],[11,11,11,13],[11,14,11,15],[11,28,11,29],[11,16,11,17],[11,18,11,19],[11,20,11,21],[11,22,11,23],[11,24,11,25],[11,26,11,27],[11,1,11,3],[11,4,11,5],[11,6,11,7],[11,8,11,9],[10,1,10,3],[10,4,10,5],[10,6,10,7],[10,8,10,9],[9,11,9,13],[9,14,9,15],[9,28,9,29],[9,16,9,17],[9,18,9,19],[9,20,9,21],[9,22,9,23],[9,24,9,25],[9,26,9,27],[9,4,9,5],[9,6,9,7],[9,8,9,9],[10,22,10,23],[10,24,10,25],[10,26,10,27],[10,28,10,29],[10,11,10,13],[8,1,8,3],[8,4,8,5],[8,6,8,7],[8,8,8,9],[8,11,8,13],[8,14,8,15],[8,28,8,29],[9,1,9,3],[8,22,8,23],[8,24,8,25],[8,26,8,27],[8,16,8,17],[8,18,8,19],[8,20,8,21],[14,28,14,29],[2,28,2,29],[4,5,4,6],[6,8,6,9],[7,4,7,5],[7,6,7,7],[7,8,7,9],[7,14,7,15],[7,16,7,17],[7,18,7,19],[7,20,7,21],[7,22,7,23],[7,24,7,25],[7,26,7,27],[7,28,7,29],[7,11,7,13],[10,14,10,15],[10,16,10,17],[10,18,10,19],[10,20,10,21],[12,24,12,25],[12,26,12,27]]}
[]
[]
[null,"Factsheet  (nonfinancials)",null,null,null,null,null,null,null,null,null,null,null,null,null,null,null,null,null,null,null,null,null,null,null,null,null,"Date:",{"$f":"IF(AF3=\"\",_xll.ECONOMATICA('Base Factsheet'!M7,\"Date of Last Quote\"),AF3)","v":"2020-05-08"},null,null,"2020-05-08"]
[]
[null,"Avianca Holdings S.A. Pref",null,null,null,{"$f":"VLOOKUP(B5,'Base Factsheet'!I7:J3000,2,FALSE)","v":"PFAVH<XBOG>"},null,"Colombia",null,null,null,null,null,null,null,null,null,null,null,null,null,null,null,null,null,null,null,null,null,{"$f":"IFERROR(UPPER(_xll.ECONOMATICA($F$5,\"name\")&\" \"&_xll.ECONOMATICA($F$5,\"class\")&\"   |    NAICS SECTOR: \"&_xll.ECONOMATICA($F$5,\"SECTOR NAICS\")),\"\")","v":"AVIANCA HOLDINGS S.A. PREF   |    NAICS SECTOR: TRANSPORTE AÉREO REGULAR"}]
[]
[null,"MARKET HIGHLIGHTS",null,null,null,null,null,null,"Thousands",null,null,"RETURNS TABLE"]
[null,null,null,null,{"$f":"AC3","v":"2020-05-08"},null,{"$f":"IFERROR(DATE(YEAR($E$8)-1,12,31),\"\")","v":"2019-12-31"},null,{"$f":"IFERROR(DATE(YEAR($E$8)-2,12,31),\"\")","v":"2018-12-31"},null,null,null,null,null,"1D",null,"1M",null,"6M",null,"12M",null,"24M",null,"36M",null,"48M",null,"60M"]
[null,"Close",null,null,{"$f":"IFERROR(_xll.ECONOMATICA($F$5,\"close\",,E$8,,,,,,,,{\"tc.pers=3\"}),\"\")","v":450},null,{"$f":"IFERROR(_xll.ECONOMATICA($F$5,\"close\",,G$8,,,,,,,,{\"tc.pers=3\"}),\"\")","v":1835},null,{"$f":"IFERROR(_xll.ECONOMATICA($F$5,\"close\",,I$8,,,,,,,,{\"tc.pers=3\"}),\"\")","v":1597.1239102054401},null,null,"Return",null,null,{"$f":"IFERROR(_xll.ECONOMATICA($F$5,\"RETURN\",O$8,$AC$3,,,,\"decimal\"),\"\")","v":2.2727272727934199E-2},null,{"$f":"IFERROR(_xll.ECONOMATICA($F$5,\"RETURN\",Q$8,$AC$3,,,,\"decimal\"),\"\")","v":-8.1632653061242302E-2},null,{"$f":"IFERROR(_xll.ECONOMATICA($F$5,\"RETURN\",S$8,$AC$3,,,,\"decimal\"),\"\")","v":-0.76253298153052995},null,{"$f":"IFERROR(_xll.ECONOMATICA($F$5,\"RETURN\",U$8,$AC$3,,,,\"decimal\"),\"\")","v":-0.68397584776976195},null,{"$f":"IFERROR(_xll.ECONOMATICA($F$5,\"RETURN\",W$8,$AC$3,,,,\"decimal\"),\"\")","v":-0.82603180002071896},null,{"$f":"IFERROR(_xll.ECONOMATICA($F$5,\"RETURN\",Y$8,$AC$3,,,,\"decimal\"),\"\")","v":-0.811021838572342},null,{"$f":"IFERROR(_xll.ECONOMATICA($F$5,\"RETURN\",AA$8,$AC$3,,,,\"decimal\"),\"\")","v":-0.752395836919313},null,{"$f":"IFERROR(_xll.ECONOMATICA($F$5,\"RETURN\",AC$8,$AC$3,,,,\"decimal\"),\"\")","v":-0.85328857217915399}]
[null,"High",null,null,{"$f":"IFERROR(_xll.ECONOMATICA($F$5,\"High\",\"in the year\",E$8,,,),\"\")","v":2120},null,{"$f":"IFERROR(_xll.ECONOMATICA($F$5,\"High\",\"in the year\",G$8,,,),\"\")","v":1995},null,{"$f":"IFERROR(_xll.ECONOMATICA($F$5,\"High\",\"in the year\",I$8,,,),\"\")","v":3175.8166335597598},null,null,{"$f":"CONCATENATE(\"Benchmark (\",'Base Factsheet'!N15,\")\")","v":"Benchmark (COLCAP RT)"},null,null,{"$f":"IFERROR(_xll.ECONOMATICA(\"S&P 500\",\"RETURN\",O8,$AC$3,,,,\"decimal\"),\"\")","v":1.68715010113374E-2},null,{"$f":"IFERROR(_xll.ECONOMATICA(\"COLCAPRT<XBOG>\",\"RETURN\",Q8,$AC$3,,,,\"decimal\"),\"\")","v":-4.80822752479435E-2},null,{"$f":"IFERROR(_xll.ECONOMATICA(\"COLCAPRT<XBOG>\",\"RETURN\",S8,$AC$3,,,,\"decimal\"),\"\")","v":-0.29824962208018402},null,{"$f":"IFERROR(_xll.ECONOMATICA(\"COLCAPRT<XBOG>\",\"RETURN\",U8,$AC$3,,,,\"decimal\"),\"\")","v":-0.24379506003606399},null,{"$f":"IFERROR(_xll.ECONOMATICA(\"COLCAPRT<XBOG>\",\"RETURN\",W8,$AC$3,,,,\"decimal\"),\"\")","v":-0.221311300968518},null,{"$f":"IFERROR(_xll.ECONOMATICA(\"COLCAPRT<XBOG>\",\"RETURN\",Y8,$AC$3,,,,\"decimal\"),\"\")","v":-0.118821539263154},null,{"$f":"IFERROR(_xll.ECONOMATICA(\"COLCAPRT<XBOG>\",\"RETURN\",AA8,$AC$3,,,,\"decimal\"),\"\")","v":-2.02127907041358E-2},null,{"$f":"IFERROR(_xll.ECONOMATICA(\"COLCAPRT<XBOG>\",\"RETURN\",AC8,$AC$3,,,,\"decimal\"),\"\")","v":-3.2991441338708703E-2}]
[null,"Low",null,null,{"$f":"IFERROR(_xll.ECONOMATICA($F$5,\"Low\",\"in the year\",E$8),\"\")","v":350},null,{"$f":"IFERROR(_xll.ECONOMATICA($F$5,\"Low\",\"in the year\",G$8),\"\")","v":1020.15537848603},null,{"$f":"IFERROR(_xll.ECONOMATICA($F$5,\"Low\",\"in the year\",I$8),\"\")","v":1539.3965399563299},null,null,"Difference Benchmark (bps)",null,null,{"$f":"IFERROR(O9-O10,\"\")","v":5.8557717165967985E-3},null,{"$f":"IFERROR(Q9-Q10,\"\")","v":-3.3550377813298803E-2},null,{"$f":"IFERROR(S9-S10,\"\")","v":-0.46428335945034593},null,{"$f":"IFERROR(U9-U10,\"\")","v":-0.44018078773369795},null,{"$f":"IFERROR(W9-W10,\"\")","v":-0.60472049905220093},null,{"$f":"IFERROR(Y9-Y10,\"\")","v":-0.69220029930918803},null,{"$f":"IFERROR(AA9-AA10,\"\")","v":-0.73218304621517716},null,{"$f":"IFERROR(AC9-AC10,\"\")","v":-0.82029713084044531}]
[null,"Return",null,null,{"$f":"IFERROR(_xll.ECONOMATICA($F$5,\"return\",\"in the year\",E$8,,,,\"decimal\"),\"\")","v":-0.75476839237031501},null,{"$f":"IFERROR(_xll.ECONOMATICA($F$5,\"return\",\"in the year\",G$8,,,,\"decimal\"),\"\")","v":0.14894028464186701},null,{"$f":"IFERROR(_xll.ECONOMATICA($F$5,\"return\",\"in the year\",I$8,,,,\"decimal\"),\"\")","v":-0.41186060357024001},null,null,"Volatility",null,null,{"$f":"IFERROR(_xll.ECONOMATICA($F$5,\"volatility\",O8,$AC$3,,,,\"decimal\"),\"\")","v":0},null,{"$f":"IFERROR(_xll.ECONOMATICA($F$5,\"volatility\",Q8,$AC$3,,,,\"decimal\"),\"\")","v":1.0550719638424899},null,{"$f":"IFERROR(_xll.ECONOMATICA($F$5,\"volatility\",S8,$AC$3,,,,\"decimal\"),\"\")","v":1.4814351724157999},null,{"$f":"IFERROR(_xll.ECONOMATICA($F$5,\"volatility\",U8,$AC$3,,,,\"decimal\"),\"\")","v":1.15989295162726},null,{"$f":"IFERROR(_xll.ECONOMATICA($F$5,\"volatility\",W8,$AC$3,,,,\"decimal\"),\"\")","v":0.85880447385483405},null,{"$f":"IFERROR(_xll.ECONOMATICA($F$5,\"volatility\",Y8,$AC$3,,,,\"decimal\"),\"\")","v":0.71791007177904298},null,{"$f":"IFERROR(_xll.ECONOMATICA($F$5,\"volatility\",AA8,$AC$3,,,,\"decimal\"),\"\")","v":0.65863675241707798},null,{"$f":"IFERROR(_xll.ECONOMATICA($F$5,\"volatility\",AC8,$AC$3,,,,\"decimal\"),\"\")","v":0.61893323623226004}]
[null,"Avg Volume",null,null,{"$f":"IFERROR(_xll.ECONOMATICA($F$5,\"Hist Average\",\"in the year\",E8,,,,$I$7,,,,{\"std.tec.cals=7\"}),\"\")","v":979155.94232226606},null,{"$f":"IFERROR(_xll.ECONOMATICA($F$5,\"Hist Average\",\"in the year\",G8,,,,$I$7,,,,{\"std.tec.cals=7\"}),\"\")","v":967080.71208203095},null,{"$f":"IFERROR(_xll.ECONOMATICA($F$5,\"Hist Average\",\"in the year\",I8,,,,$I$7,,,,{\"std.tec.cals=7\"}),\"\")","v":1151439.34633789},null,null,"Sharpe",null,null,{"$f":"IFERROR(_xll.ECONOMATICA($F$5,\"sharpe\",O8,$AC$3,,,),\"\")","v":""},null,{"$f":"IFERROR(_xll.ECONOMATICA($F$5,\"sharpe\",Q8,$AC$3,,,),\"\")","v":""},null,{"$f":"IFERROR(_xll.ECONOMATICA($F$5,\"sharpe\",S8,$AC$3,,,),\"\")","v":-0.58510019390268997},null,{"$f":"IFERROR(_xll.ECONOMATICA($F$5,\"sharpe\",U8,$AC$3,,,),\"\")","v":-0.30563518941198697},null,{"$f":"IFERROR(_xll.ECONOMATICA($F$5,\"sharpe\",W8,$AC$3,,,),\"\")","v":-0.49467362392806502},null,{"$f":"IFERROR(_xll.ECONOMATICA($F$5,\"sharpe\",Y8,$AC$3,,,),\"\")","v":-0.40046530501422201},null,{"$f":"IFERROR(_xll.ECONOMATICA($F$5,\"sharpe\",AA8,$AC$3,,,),\"\")","v":-0.237582822056083},null,{"$f":"IFERROR(_xll.ECONOMATICA($F$5,\"sharpe\",AC8,$AC$3,,,),\"\")","v":-0.34575298017307399}]
[]
[null,"Market Cap",null,null,{"$f":"IFERROR(_xll.ECONOMATICA($F$5,\"MarketCapitaliz\",,E$8,,,,$I$7),\"\")","v":448644279.60000002},null,{"$f":"IFERROR(_xll.ECONOMATICA($F$5,\"MarketCapitaliz\",,G$8,,,,$I$7),\"\")","v":1829471673.4820001},null,{"$f":"IFERROR(_xll.ECONOMATICA($F$5,\"MarketCapitaliz\",,I$8,,,,$I$7),\"\")","v":1654998898.0799999},null,null,"GRAPH BASE 100",null,null,null,null,null,null,null,null,null,null,null,null,null,null,null,"Period:","12M"]
[]
[null,"EV",null,null,{"$f":"IFERROR(_xll.ECONOMATICA($F$5,\"EV\",,E$8,,,,$I$7),\"\")","v":18416407008.959999},null,{"$f":"IFERROR(_xll.ECONOMATICA($F$5,\"EV\",,G$8,,,,$I$7),\"\")","v":19797234402.816002},null,{"$f":"IFERROR(_xll.ECONOMATICA($F$5,\"EV\",,I$8,,,,$I$7),\"\")","v":16219117495.104}]
[null,"P/B",null,null,{"$f":"IFERROR(_xll.ECONOMATICA($F$5,\"P/BV\",,E$8,,,),\"\")","v":0.61699879415482395},null,{"$f":"IFERROR(_xll.ECONOMATICA($F$5,\"P/BV\",,G$8,,,),\"\")","v":2.5159839717198298},null,{"$f":"IFERROR(_xll.ECONOMATICA($F$5,\"P/BV\",,I$8,,,),\"\")","v":0.440702088863418}]
[null,"Dividend Yield",null,null,{"$f":"IFERROR(_xll.ECONOMATICA($F$5,\"Div Yld (start)\",\"12M\",E$8,,,,\"decimal\"),\"\")","v":3.3783783783801501E-2},null,{"$f":"IFERROR(_xll.ECONOMATICA($F$5,\"Div Yld (start)\",\"12M\",G$8,,,,\"decimal\"),\"\")","v":3.0120481927733599E-2},null,{"$f":"IFERROR(_xll.ECONOMATICA($F$5,\"Div Yld (start)\",\"12M\",I$8,,,,\"decimal\"),\"\")","v":3.3423728813540901E-2}]
[null,"Dividend p/share",null,null,{"$f":"IFERROR(_xll.ECONOMATICA($F$5,\"Divid per Share\",\"12M\",E$8,,,),\"\")","v":50},null,{"$f":"IFERROR(_xll.ECONOMATICA($F$5,\"Divid per Share\",\"12M\",G$8,,,),\"\")","v":50},null,{"$f":"IFERROR(_xll.ECONOMATICA($F$5,\"Divid per Share\",\"12M\",I$8,,,),\"\")","v":98.599999999976703}]
[]
[null,"Beta",null,null,{"$f":"IFERROR(_xll.ECONOMATICA($F$5,\"beta\",\"in the year\",E$8,,,,,,,,{\"jtc.per=0\"}),\"\")","v":0.16421202986339301},null,{"$f":"IFERROR(_xll.ECONOMATICA($F$5,\"beta\",\"in the year\",G$8,,,,,,,,{\"jtc.per=0\"}),\"\")","v":0.66947460327355701},null,{"$f":"IFERROR(_xll.ECONOMATICA($F$5,\"beta\",\"in the year\",I$8,,,,,,,,{\"jtc.per=0\"}),\"\")","v":0.32828924590057801}]
[null,"Correlation",null,null,{"$f":"IFERROR(_xll.ECONOMATICA($F$5,\"Correlation\",\"in the year\",E$8,,,,,,,,{\"jtc.per=0\"}),\"\")","v":0.11711469247336501},null,{"$f":"IFERROR(_xll.ECONOMATICA($F$5,\"Correlation\",\"in the year\",G$8,,,,,,,,{\"jtc.per=0\"}),\"\")","v":0.14030775050946401},null,{"$f":"IFERROR(_xll.ECONOMATICA($F$5,\"Correlation\",\"in the year\",I$8,,,,,,,,{\"jtc.per=0\"}),\"\")","v":0.12654589687394899}]
[]
[null,"Drawdown",null,null,{"$f":"IFERROR(_xll.ECONOMATICA($F$5,\"MaxDrawdown\",\"in the year\",E$8,,,,\"decimal\"),\"\")","v":-5.49450549450557E-2},null,{"$f":"IFERROR(_xll.ECONOMATICA($F$5,\"MaxDrawdown\",\"in the year\",G$8,,,,\"decimal\"),\"\")","v":-0.43533643015835},null,{"$f":"IFERROR(_xll.ECONOMATICA($F$5,\"MaxDrawdown\",\"in the year\",I$8,,,,\"decimal\"),\"\")","v":-5.5183946487668403E-2}]
[null,"Max Loss",null,null,{"$f":"IFERROR(_xll.ECONOMATICA($F$5,\"MaxLoss\",\"in the year\",E$8,,,,\"decimal\"),\"\")","v":-0.83372921615256901},null,{"$f":"IFERROR(_xll.ECONOMATICA($F$5,\"MaxLoss\",\"in the year\",G$8,,,,\"decimal\"),\"\")","v":-0.43533643015835},null,{"$f":"IFERROR(_xll.ECONOMATICA($F$5,\"MaxLoss\",\"in the year\",I$8,,,,\"decimal\"),\"\")","v":-0.49461743030056798}]
[]
[null,"FINANCIAL HIGHLIGHTS ",null,null,null,null,null,null,"Millions"]
[null,null,null,null,{"$f":"IFERROR(_xll.ECONOMATICA($F$5,\"Fin Statm Date\"),\"\")","v":"2019-12-31"},null,{"$f":"IFERROR(DATE(YEAR($E$29)-1,12,31),\"\")","v":"2018-12-31"},null,{"$f":"IFERROR(DATE(YEAR($E$29)-2,12,31),\"\")","v":"2017-12-31"}]
[null,"Assets",null,null,{"$f":"IFERROR(_xll.ECONOMATICA($F$5,\"Total Assets\",,E$29,,,,$I$28),\"\")","v":25510402.500096001},null,{"$f":"IFERROR(_xll.ECONOMATICA($F$5,\"Total Assets\",,G$29,,,,$I$28),\"\")","v":23085496.056031998},null,{"$f":"IFERROR(_xll.ECONOMATICA($F$5,\"Total Assets\",,I$29,,,,$I$28),\"\")","v":20389530.195487998}]
[null,"Stockholder's Equity",null,null,{"$f":"IFERROR(_xll.ECONOMATICA($F$5,\"Stock Eq Par\",,E$29,,,,$I$28),\"\")","v":727139.63763000001},null,{"$f":"IFERROR(_xll.ECONOMATICA($F$5,\"Stock Eq Par\",,G$29,,,,$I$28),\"\")","v":3755368.8532520002},null,{"$f":"IFERROR(_xll.ECONOMATICA($F$5,\"Stock Eq Par\",,I$29,,,,$I$28),\"\")","v":4206788.0094999997}]
[null,"Working Capital",null,null,{"$f":"IFERROR(_xll.ECONOMATICA($F$5,\"WorkCap\",,E$29,,,,$I$28),\"\")","v":-3580317.414136},null,{"$f":"IFERROR(_xll.ECONOMATICA($F$5,\"WorkCap\",,G$29,,,,$I$28),\"\")","v":-3456369.105004},null,{"$f":"IFERROR(_xll.ECONOMATICA($F$5,\"WorkCap\",,I$29,,,,$I$28),\"\")","v":-1901911.547492}]
[null,"Gross Debt",null,null,{"$f":"IFERROR(_xll.ECONOMATICA($F$5,\"TtDebtGr\",,E$29,,,,$I$28),\"\")","v":19877868.105503999},null,{"$f":"IFERROR(_xll.ECONOMATICA($F$5,\"TtDebtGr\",,G$29,,,,$I$28),\"\")","v":16030084.071760001},null,{"$f":"IFERROR(_xll.ECONOMATICA($F$5,\"TtDebtGr\",,I$29,,,,$I$28),\"\")","v":13171607.336767999}]
[null,"Net Debt",null,null,{"$f":"IFERROR(_xll.ECONOMATICA($F$5,\"TtNetDebt\",,E$29,,,,$I$28),\"\")","v":18676781.1296},null,{"$f":"IFERROR(_xll.ECONOMATICA($F$5,\"TtNetDebt\",,G$29,,,,$I$28),\"\")","v":15142551.348768},null,{"$f":"IFERROR(_xll.ECONOMATICA($F$5,\"TtNetDebt\",,I$29,,,,$I$28),\"\")","v":11659101.156112}]
[null,"ST Debt",null,null,{"$f":"IFERROR(_xll.ECONOMATICA($F$5,\"TotDebtsT\",,E$29,,,,$I$28),\"\")","v":""},null,{"$f":"IFERROR(_xll.ECONOMATICA($F$5,\"TotDebtsT\",,G$29,,,,$I$28),\"\")","v":""},null,{"$f":"IFERROR(_xll.ECONOMATICA($F$5,\"TotDebtsT\",,I$29,,,,$I$28),\"\")","v":""}]
[null,"D/(D+E)",null,null,{"$f":"IFERROR(_xll.ECONOMATICA($F$5,\"Cap Str(Mkt Cap)\",,E$29,,,,\"decimal\"),\"\")","v":0.91572105600731402},null,{"$f":"IFERROR(_xll.ECONOMATICA($F$5,\"Cap Str(Mkt Cap)\",,G$29,,,,\"decimal\"),\"\")","v":0.90641836959868705},null,{"$f":"IFERROR(_xll.ECONOMATICA($F$5,\"Cap Str(Mkt Cap)\",,I$29,,,,\"decimal\"),\"\")","v":0.81746641600737302}]
[null,null,null,null,null,null,null,null,null,null,null,{"$f":"IFERROR(\"SECTOR COMPARABLE (SECTOR NAICS): \"&_xll.ECONOMATICA(Factsheet!F5,\"SECTOR NAICS\"),\"\")","v":"SECTOR COMPARABLE (SECTOR NAICS): Transporte aéreo regular"}]
[null,"Revenues",null,null,{"$f":"IFERROR(_xll.ECONOMATICA($F$5,\"Revenues\",\"12M\",E$29,,,,$I$28),\"\")","v":16208094.836576},null,{"$f":"IFERROR(_xll.ECONOMATICA($F$5,\"Revenues\",\"12M\",G$29,,,,$I$28),\"\")","v":15893974.792512},null,{"$f":"IFERROR(_xll.ECONOMATICA($F$5,\"Revenues\",\"12M\",I$29,,,,$I$28),\"\")","v":13199041.424912}]
[null,"Gross Revenues",null,null,{"$f":"IFERROR(_xll.ECONOMATICA($F$5,\"Gross Profit\",\"12M\",E$29,,,,$I$28),\"\")","v":7501185.7306080004},null,{"$f":"IFERROR(_xll.ECONOMATICA($F$5,\"Gross Profit\",\"12M\",G$29,,,,$I$28),\"\")","v":6878082.8760000002},null,{"$f":"IFERROR(_xll.ECONOMATICA($F$5,\"Gross Profit\",\"12M\",I$29,,,,$I$28),\"\")","v":5963383.8783520004}]
[null,"Gross Margin",null,null,{"$f":"IFERROR(_xll.ECONOMATICA($F$5,\"GrossMargin\",\"12M\",E$29,,,,\"decimal\"),\"\")","v":0.46280490126926499},null,{"$f":"IFERROR(_xll.ECONOMATICA($F$5,\"GrossMargin\",\"12M\",G$29,,,,\"decimal\"),\"\")","v":0.43274781581014399},null,{"$f":"IFERROR(_xll.ECONOMATICA($F$5,\"GrossMargin\",\"12M\",I$29,,,,\"decimal\"),\"\")","v":0.45180431565968299},null,null,null,null,null,null,null,null,null,"COMPANY",null,null,null,"SECTOR"]
[null,"EBIT ",null,null,{"$f":"IFERROR(_xll.ECONOMATICA($F$5,\"EBIT\",\"12M\",E$29,,,,$I$28),\"\")","v":-1943924.4379100001},null,{"$f":"IFERROR(_xll.ECONOMATICA($F$5,\"EBIT\",\"12M\",G$29,,,,$I$28),\"\")","v":754318.97100000002},null,{"$f":"IFERROR(_xll.ECONOMATICA($F$5,\"EBIT\",\"12M\",I$29,,,,$I$28),\"\")","v":872601.31971900002},null,null,null,null,null,null,null,null,null,"Median",null,"AVG1",null,"Avg",null,"General  AVG1"]
[null,"EBIT Margin",null,null,{"$f":"IFERROR(_xll.ECONOMATICA($F$5,\"EBITMargin\",\"12M\",E$29,,,,\"decimal\"),\"\")","v":-0.119935406197328},null,{"$f":"IFERROR(_xll.ECONOMATICA($F$5,\"EBITMargin\",\"12M\",G$29,,,,\"decimal\"),\"\")","v":4.7459429176596998E-2},null,{"$f":"IFERROR(_xll.ECONOMATICA($F$5,\"EBITMargin\",\"12M\",I$29,,,,\"decimal\"),\"\")","v":6.6110961518134004E-2},null,null,null,null,null,null,"P/E *",null,null,{"$f":"IFERROR(INDEX(Multiples!L:L,MATCH('Base Factsheet'!$B$6,Multiples!$E:$E,0)),\"\")","v":-0.11751271099274201},null,{"$f":"IFERROR(INDEX(Multiples!N:N,MATCH('Base Factsheet'!$B$6,Multiples!$E:$E,0)),\"\")","v":20.603485556639502},null,{"$f":"AVERAGEIFS(Multiples!$L:$L,Multiples!$L:$L,\">0\",Multiples!$L:$L,\"<50\")","v":7.2857695808773686},null,{"$f":"AVERAGE(Multiples!N:N)","v":11.723710517745937}]
[null,"EBITDA",null,null,{"$f":"IFERROR(_xll.ECONOMATICA($F$5,\"EBITDA\",\"12M\",E$29,,,,$I$28),\"\")","v":137180.60765200001},null,{"$f":"IFERROR(_xll.ECONOMATICA($F$5,\"EBITDA\",\"12M\",G$29,,,,$I$28),\"\")","v":2019732.6240020001},null,{"$f":"IFERROR(_xll.ECONOMATICA($F$5,\"EBITDA\",\"12M\",I$29,,,,$I$28),\"\")","v":1803948.7929080001}]
[null,"EBITDA Margin",null,null,{"$f":"IFERROR(_xll.ECONOMATICA($F$5,\"EbitdaMargin\",\"12M\",E$29,,,,\"decimal\"),\"\")","v":8.4637095867947203E-3},null,{"$f":"IFERROR(_xll.ECONOMATICA($F$5,\"EbitdaMargin\",\"12M\",G$29,,,,\"decimal\"),\"\")","v":0.12707536348651},null,{"$f":"IFERROR(_xll.ECONOMATICA($F$5,\"EbitdaMargin\",\"12M\",I$29,,,,\"decimal\"),\"\")","v":0.136672712421569},null,null,null,null,null,null,"EV / EBITDA*",null,null,{"$f":"IFERROR(INDEX(Multiples!$T:$T,MATCH('Base Factsheet'!$B$6,Multiples!$E:$E,0)),\"\")","v":133.72393644764099},null,{"$f":"IFERROR(INDEX(Multiples!$V:$V,MATCH('Base Factsheet'!$B$6,Multiples!$E:$E,0)),\"\")","v":8.34674493011698},null,{"$f":"AVERAGEIFS(Multiples!$T:$T,Multiples!$T:$T,\">0\",Multiples!$T:$T,\"<50\")","v":3.9219145232336801},null,{"$f":"AVERAGE(Multiples!V:V)","v":6.8915180169757715}]
[null,"Net Income",null,null,{"$f":"IFERROR(_xll.ECONOMATICA($F$5,\"Net Income\",\"12M\",E$29,,,,$I$28),\"\")","v":-3204488.4923200002},null,{"$f":"IFERROR(_xll.ECONOMATICA($F$5,\"Net Income\",\"12M\",G$29,,,,$I$28),\"\")","v":-80603.549249999996},null,{"$f":"IFERROR(_xll.ECONOMATICA($F$5,\"Net Income\",\"12M\",I$29,,,,$I$28),\"\")","v":143342.51630975}]
[null,"Net Margin",null,null,{"$f":"IFERROR(_xll.ECONOMATICA($F$5,\"Net Margin\",\"12M\",E$29,,,,\"decimal\"),\"\")","v":-0.193442772643175},null,{"$f":"IFERROR(_xll.ECONOMATICA($F$5,\"Net Margin\",\"12M\",G$29,,,,\"decimal\"),\"\")","v":2.3370266396483401E-4},null,{"$f":"IFERROR(_xll.ECONOMATICA($F$5,\"Net Margin\",\"12M\",I$29,,,,\"decimal\"),\"\")","v":1.8468670891488698E-2},null,null,null,null,null,null,"Price / Book Value**",null,null,{"$f":"IFERROR(INDEX(Multiples!AJ:AJ,MATCH('Base Factsheet'!$B$6,Multiples!$E:$E,0)),\"\")","v":0.51787594925372105},null,{"$f":"IFERROR(INDEX(Multiples!AM:AM,MATCH('Base Factsheet'!$B$6,Multiples!$E:$E,0)),\"\")","v":1.0069955735567429},null,{"$f":"AVERAGE(Multiples!AJ6:AJ1048576)","v":0.20866779987287071},null,{"$f":"AVERAGE(Multiples!AM:AM)","v":2.2757057715083295}]
[null,"EPS",null,null,{"$f":"IFERROR(_xll.ECONOMATICA($F$5,\"EPS\",\"12M\",E$29,,,),\"\")","v":-3214.1718664728101},null,{"$f":"IFERROR(_xll.ECONOMATICA($F$5,\"EPS\",\"12M\",G$29,,,),\"\")","v":-80.847118333564097},null,{"$f":"IFERROR(_xll.ECONOMATICA($F$5,\"EPS\",\"12M\",I$29,,,),\"\")","v":143.77567099896299}]
[null,null,null,null,null,null,null,null,null,null,null,null,null,null,null,"Price / Sales *",null,null,{"$f":"IFERROR(INDEX(Multiples!AS:AS,MATCH('Base Factsheet'!$B$6,Multiples!$E:$E,0)),\"\")","v":2.3233337037737601E-2},null,{"$f":"IFERROR(INDEX(Multiples!AU:AU,MATCH('Base Factsheet'!$B$6,Multiples!$E:$E,0)),\"\")","v":0.1503270230102825},null,{"$f":"AVERAGE(Multiples!AS6:AS1048576)","v":0.29718380514585097},null,{"$f":"AVERAGE(Multiples!AU:AU)","v":0.73871409958616618}]
[null,"ROE",null,null,{"$f":"IFERROR(_xll.ECONOMATICA($F$5,\"ROE (avg)\",\"12M\",E$29,,,,\"decimal\"),\"\")","v":-1.96261817671126},null,{"$f":"IFERROR(_xll.ECONOMATICA($F$5,\"ROE (avg)\",\"12M\",G$29,,,,\"decimal\"),\"\")","v":1.0378455709792399E-3},null,{"$f":"IFERROR(_xll.ECONOMATICA($F$5,\"ROE (avg)\",\"12M\",I$29,,,,\"decimal\"),\"\")","v":5.9146470898122097E-2}]
[null,"ROIC",null,null,{"$f":"IFERROR(_xll.ECONOMATICA($F$5,\"ROIC (avg IC) %\",\"12M\",E$29,,,,\"decimal\"),\"\")","v":-6.7098939054267295E-2},null,{"$f":"IFERROR(_xll.ECONOMATICA($F$5,\"ROIC (avg IC) %\",\"12M\",G$29,,,,\"decimal\"),\"\")","v":2.82828330589837E-2},null,{"$f":"IFERROR(_xll.ECONOMATICA($F$5,\"ROIC (avg IC) %\",\"12M\",I$29,,,,\"decimal\"),\"\")","v":3.6208932068475398E-2},null,null,null,null,null,null,"Net debt / EBITDA*",null,null,{"$f":"IFERROR(INDEX(Multiples!BA:BA,MATCH('Base Factsheet'!$B$6,Multiples!$E:$E,0)),\"\")","v":136.14738591248201},null,{"$f":"IFERROR(INDEX(Multiples!BC:BC,MATCH('Base Factsheet'!$B$6,Multiples!$E:$E,0)),\"\")","v":6.9022460699949697},null,{"$f":"AVERAGE(Multiples!BA6:BA1048576)","v":13.355490121510824},null,{"$f":"AVERAGE(Multiples!BC:BC)","v":2.5554240891514755}]
[null,"ROA",null,null,{"$f":"IFERROR(_xll.ECONOMATICA($F$5,\"ROA\",\"12M\",E$29,,,,\"decimal\"),\"\")","v":-0.122904325184209},null,{"$f":"IFERROR(_xll.ECONOMATICA($F$5,\"ROA\",\"12M\",G$29,,,,\"decimal\"),\"\")","v":1.60900343704498E-4},null,{"$f":"IFERROR(_xll.ECONOMATICA($F$5,\"ROA\",\"12M\",I$29,,,,\"decimal\"),\"\")","v":1.1955584548668401E-2}]
[null,null,null,null,null,null,null,null,null,null,null,null,null,null,null,"Dividend Yield",null,null,{"$f":"IFERROR(INDEX(Dividends!$N:$N,MATCH('Base Factsheet'!$B$6,Dividends!$E:$E,0)),\"\")","v":3.2960082509125598E-2},null,{"$f":"IFERROR(INDEX(Dividends!$P:$P,MATCH('Base Factsheet'!$B$6,Dividends!$E:$E,0)),\"\")","v":2.1258816588695998E-2},null,{"$f":"AVERAGE(Dividends!N7:N1048576)","v":9.7092299291335858E-3},null,{"$f":"AVERAGE(Dividends!P:P)","v":1.0668125184736905E-2}]
[null,"Total Shares",null,null,{"$f":"IFERROR(_xll.ECONOMATICA($F$5,\"Num of Shares\",,E$29,,,,$I$28,,,,{\"std.bac.totex=0\"}),\"\")","v":996.98728800000004},null,{"$f":"IFERROR(_xll.ECONOMATICA($F$5,\"Num of Shares\",,G$29,,,,$I$28,,,,{\"std.bac.totex=0\"}),\"\")","v":996.98728800000004},null,{"$f":"IFERROR(_xll.ECONOMATICA($F$5,\"Num of Shares\",,I$29,,,,$I$28,,,,{\"std.bac.totex=0\"}),\"\")","v":996.98728800000004}]
[null,"Outstanding",null,null,{"$f":"IFERROR(_xll.ECONOMATICA($F$5,\"Num of Shares\",,E$29,,,,$I$28,,,,),\"\")","v":996.98728800000004},null,{"$f":"IFERROR(_xll.ECONOMATICA($F$5,\"Num of Shares\",,G$29,,,,$I$28,,,,),\"\")","v":996.98728800000004},null,{"$f":"IFERROR(_xll.ECONOMATICA($F$5,\"Num of Shares\",,I$29,,,,$I$28,,,,),\"\")","v":996.98728800000004},null,null,null,null,null,null,"D/(D+E)",null,null,{"$f":"IFERROR(INDEX(Multiples!AB:AB,MATCH('Base Factsheet'!$B$6,Multiples!$E:$E,0)),\"\")","v":0.98140811594552402},null,{"$f":"IFERROR(INDEX(Multiples!AD:AD,MATCH('Base Factsheet'!$B$6,Multiples!$E:$E,0)),\"\")","v":0.87764942495897424},null,{"$f":"AVERAGE(Multiples!AB6:AB1048576)","v":0.66419566827866217},null,{"$f":"AVERAGE(Multiples!AD:AD)","v":0.45897732323446511}]
[]
[]
[null,null,null,null,null,null,null,null,null,null,null,null,null,null,null,"1 Average 5 years |* Average 4 years (values >0 and <50) |** Average 5 years (values >0 and <30)"]

{"sheet":"Multiples","index":1,"n_rows":200,"n_cols":55,"rows_kept":200,"cut":false,"hidden":false,"merged":[]}
[]
[null,"Date:",{"$f":"Factsheet!AC3","v":"2020-05-08"},"← Do not modify",null,null,null,"Price / Earnings",null,null,null,null,null,null,null,"EV / EBITDA",null,null,null,null,null,null,null,"D/(D+E)",null,null,null,null,null,null,null,"PRICE / BOOK VALUE",null,null,null,null,null,null,null,null,"PRICE /SALES",null,null,null,null,null,null,null,"NET DEBT / EBITDA"]
[]
[null,null,null,null,null,null,null,{"$f":"EOMONTH(I4,-12)","v":"2016-12-31"},{"$f":"EOMONTH(J4,-12)","v":"2017-12-31"},{"$f":"EOMONTH(K4,-12)","v":"2018-12-31"},{"$f":"DATE(YEAR($C$2)-1,12,31)","v":"2019-12-31"},{"$f":"$C$2","v":"2020-05-08"},null,null,null,{"$f":"EOMONTH(Q4,-12)","v":"2016-12-31"},{"$f":"EOMONTH(R4,-12)","v":"2017-12-31"},{"$f":"EOMONTH(S4,-12)","v":"2018-12-31"},{"$f":"DATE(YEAR($C$2)-1,12,31)","v":"2019-12-31"},{"$f":"$C$2","v":"2020-05-08"},null,null,null,{"$f":"EOMONTH(Y4,-12)","v":"2016-12-31"},{"$f":"EOMONTH(Z4,-12)","v":"2017-12-31"},{"$f":"EOMONTH(AA4,-12)","v":"2018-12-31"},{"$f":"DATE(YEAR($C$2)-1,12,31)","v":"2019-12-31"},{"$f":"TEXT($C$2,\"AAAA\")","v":"viernes"},null,null,null,{"$f":"EOMONTH(AG4,-12)","v":"2016-12-31"},{"$f":"EOMONTH(AH4,-12)","v":"2017-12-31"},{"$f":"EOMONTH(AI4,-12)","v":"2018-12-31"},{"$f":"DATE(YEAR($C$2)-1,12,31)","v":"2019-12-31"},{"$f":"$C$2","v":"2020-05-08"},null,null,null,null,{"$f":"EOMONTH(AP4,-12)","v":"2016-12-31"},{"$f":"EOMONTH(AQ4,-12)","v":"2017-12-31"},{"$f":"EOMONTH(AR4,-12)","v":"2018-12-31"},{"$f":"DATE(YEAR($C$2)-1,12,31)","v":"2019-12-31"},{"$f":"$C$2","v":"2020-05-08"},null,null,null,{"$f":"EOMONTH(AX4,-12)","v":"2016-12-31"},{"$f":"EOMONTH(AY4,-12)","v":"2017-12-31"},{"$f":"EOMONTH(AZ4,-12)","v":"2018-12-31"},{"$f":"DATE(YEAR($C$2)-1,12,31)","v":"2019-12-31"},"LATEST"]
[null,{"$f":"_xll.ECOSECURITIES(\"stock\",\"active\",\"true\",\"USA;COL;CHL;MEX;PER;BRA;ARG\",\"XNYS;XNAS;XBOG;XSGO;XBUE;XBSP;XLIM;XMEX\",,,\"SECTOR NAICS=\"&SUBSTITUTE(_xll.ECONOMATICA(Factsheet!F5,\"SECTOR NAICS\"),\",\",\"\\,\"))","v":"Codigo"},{"$f":"_xll.ECONOMATICA($B$6:$B$200,\"name\")","v":"Nombre"},{"$f":"_xll.ECONOMATICA($B$6:$B$200,\"SECTOR NAICS\",,,,,,,,,\"SECTOR NAICS\")","v":"SECTOR NAICS"},{"$f":"_xll.ECONOMATICA($B$6:$B$200,\"Ticker\",,,,,,,,,\"Ticker (cleaned)\")","v":"Ticker (cleaned)"},{"$f":"_xll.ECONOMATICA(B6:B200,\"MarketCapitaliz\",,$C$2,,,\"USD\",\"millions\",,,\"Mkt Cap (millions)\")","v":"Mkt Cap (millions)"},null,{"$f":"_xll.ECONOMATICA($B$6:$B$200,\"P/E\",\"12m\",H4,,,\"USD\",,,,\"P/E\")","v":"P/E"},{"$f":"_xll.ECONOMATICA($B$6:$B$200,\"P/E\",\"12m\",I4,,,\"USD\",,,,\"P/E\")","v":"P/E"},{"$f":"_xll.ECONOMATICA($B$6:$B$200,\"P/E\",\"12m\",J4,,,\"USD\",,,,\"P/E\")","v":"P/E"},{"$f":"_xll.ECONOMATICA($B$6:$B$200,\"P/E\",\"12m\",K4,,,\"USD\",,,,\"P/E\")","v":"P/E"},{"$f":"_xll.ECONOMATICA($B$6:$B$200,\"P/E\",\"12m\",L4,,,\"USD\",,,,\"P/E\")","v":"P/E"},"Median 5 years","Average 5 years\n(values >0 e <50)",null,{"$f":"_xll.ECONOMATICA($B$6:$B$200,\"EV/EBITDA co\",\"12m\",P4,,,\"USD\",,,,\"EV/EBITDA\")","v":"EV/EBITDA"},{"$f":"_xll.ECONOMATICA($B$6:$B$200,\"EV/EBITDA co\",\"12m\",Q4,,,\"USD\",,,,\"EV/EBITDA\")","v":"EV/EBITDA"},{"$f":"_xll.ECONOMATICA($B$6:$B$200,\"EV/EBITDA co\",\"12m\",R4,,,\"USD\",,,,\"EV/EBITDA\")","v":"EV/EBITDA"},{"$f":"_xll.ECONOMATICA($B$6:$B$200,\"EV/EBITDA co\",\"12m\",S4,,,\"USD\",,,,\"EV/EBITDA\")","v":"EV/EBITDA"},{"$f":"_xll.ECONOMATICA($B$6:$B$200,\"EV/EBITDA co\",\"12m\",T4,,,\"USD\",,,,\"EV/EBITDA\")","v":"EV/EBITDA"},"Median 5 years","Average 5 years\n(values >0 e <50)",null,{"$f":"_xll.ECONOMATICA($B$6:$B$200,\"Cap Str(Mkt Cap)\",,X4,,,\"USD\",\"decimal\",,,\"D/D+E\")","v":"D/D+E"},{"$f":"_xll.ECONOMATICA($B$6:$B$200,\"Cap Str(Mkt Cap)\",,Y4,,,\"USD\",\"decimal\",,,\"D/D+E\")","v":"D/D+E"},{"$f":"_xll.ECONOMATICA($B$6:$B$200,\"Cap Str(Mkt Cap)\",,Z4,,,\"USD\",\"decimal\",,,\"D/D+E\")","v":"D/D+E"},{"$f":"_xll.ECONOMATICA($B$6:$B$200,\"Cap Str(Mkt Cap)\",,AA4,,,\"USD\",\"decimal\",,,\"D/D+E\")","v":"D/D+E"},{"$f":"_xll.ECONOMATICA($B$6:$B$200,\"Cap Str(Mkt Cap)\",,$C$2,,,\"USD\",\"decimal\",,,\"D/D+E\")","v":"D/D+E"},"Median 5 years","Average 5 years",null,{"$f":"_xll.ECONOMATICA($B$6:$B$200,\"P/BV\",,AF4,,,\"USD\",,,,\"P/B\")","v":"P/B"},{"$f":"_xll.ECONOMATICA($B$6:$B$200,\"P/BV\",,AG4,,,\"USD\",,,,\"P/B\")","v":"P/B"},{"$f":"_xll.ECONOMATICA($B$6:$B$200,\"P/BV\",,AH4,,,\"USD\",,,,\"P/B\")","v":"P/B"},{"$f":"_xll.ECONOMATICA($B$6:$B$200,\"P/BV\",,AI4,,,\"USD\",,,,\"P/B\")","v":"P/B"},{"$f":"_xll.ECONOMATICA($B$6:$B$200,\"P/BV\",,AJ4,,,\"USD\",,,,\"P/B\")","v":"P/B"},"High 5 years","P/B atual vs High 5 years","Average 5 years\n(values >0 e <30)",null,{"$f":"_xll.ECONOMATICA($B$6:$B$200,\"PSR\",\"12m\",AO4,,,\"USD\",,,,\"P/Sales\")","v":"P/Sales"},{"$f":"_xll.ECONOMATICA($B$6:$B$200,\"PSR\",\"12m\",AP4,,,\"USD\",,,,\"P/Sales\")","v":"P/Sales"},{"$f":"_xll.ECONOMATICA($B$6:$B$200,\"PSR\",\"12m\",AQ4,,,\"USD\",,,,\"P/Sales\")","v":"P/Sales"},{"$f":"_xll.ECONOMATICA($B$6:$B$200,\"PSR\",\"12m\",AR4,,,\"USD\",,,,\"P/Sales\")","v":"P/Sales"},{"$f":"_xll.ECONOMATICA($B$6:$B$200,\"PSR\",\"12m\",AS4,,,\"USD\",,,,\"P/Sales\")","v":"P/Sales"},"Median 5 years","Average 5 years\n(values >0 e <50)",null,{"$f":"_xll.ECONOMATICA($B$6:$B$200,\"NetDebt/Ebitda\",\"12m\",AW4,,,\"USD\",,,,\"NetDebt/EBITDA\")","v":"NetDebt/EBITDA"},{"$f":"_xll.ECONOMATICA($B$6:$B$200,\"NetDebt/Ebitda\",\"12m\",AX4,,,\"USD\",,,,\"NetDebt/EBITDA\")","v":"NetDebt/EBITDA"},{"$f":"_xll.ECONOMATICA($B$6:$B$200,\"NetDebt/Ebitda\",\"12m\",AY4,,,\"USD\",,,,\"NetDebt/EBITDA\")","v":"NetDebt/EBITDA"},{"$f":"_xll.ECONOMATICA($B$6:$B$200,\"NetDebt/Ebitda\",\"12m\",AZ4,,,\"USD\",,,,\"NetDebt/EBITDA\")","v":"NetDebt/EBITDA"},{"$f":"_xll.ECONOMATICA($B$6:$B$200,\"NetDebt/Ebitda\",\"12m\",BA4,,,\"USD\",,,,\"NetDebt/EBITDA\")","v":"NetDebt/EBITDA"},"Median 5 years","Average 5 years\n(values >0 e <50)"]
[null,"ALK<XNYS>","Alaska Air Group, Inc","Transporte aéreo regular","ALK",3695.2027800000001,null,13.5672782874608,8.8035928143654001,17.286931818176502,10.945072697897601,4.8465266558923803,{"$f":"IFERROR(MEDIAN(H6:L6),\"-x-\")","v":10.945072697897601},{"$f":"IFERROR(AVERAGEIFS(H6:L6,H6:L6,\">0\",H6:L6,\"<50\"),\"-x-\")","v":11.089880454758537},null,7.1973543813583101,6.1231803789633004,8.0401523638283798,6.7503362123170501,3.6212670121130901,{"$f":"IFERROR(MEDIAN(P6:T6),\"-x-\")","v":6.7503362123170501},{"$f":"IFERROR(AVERAGEIFS(P6:T6,P6:T6,\">0\",P6:T6,\"<50\"),\"-x-\")","v":6.3464580697160269},null,0.21320871584641299,0.221197974887618,0.218930261316127,0.27761427526420501,0.464634277233272,{"$f":"IFERROR(MEDIAN(X6:AB6),\"-x-\")","v":0.221197974887618},{"$f":"IFERROR(AVERAGE(X6:AB6),\"-x-\")","v":0.27911710090952696},null,3.73178802486655,2.4308063365970201,2.0002129060885601,1.9268066523891301,0.85319851766325905,{"$f":"IF(MAX(AF6:AJ6)=0,\"-x-\",MAX(AF6:AJ6))","v":3.73178802486655},{"$f":"IFERROR(AJ6/AK6,\"-x-\")","v":0.22862995217788923},{"$f":"IFERROR(AVERAGEIFS(AF6:AJ6,AF6:AJ6,\">0\",AF6:AJ6,\"<30\"),\"-x-\")","v":2.1885624875209038},null,1.85229968893145,1.14363202686582,0.90682679074325301,0.95102119774855998,0.42111639752692998,{"$f":"IFERROR(MEDIAN(AO6:AS6),\"-x-\")","v":0.95102119774855998},{"$f":"IFERROR(AVERAGEIFS(AO6:AS6,AO6:AS6,\">0\",AO6:AS6,\"<50\"),\"-x-\")","v":1.0549792203632025},null,0.80841121495359403,0.58088235294144397,0.83285302593685595,1.1345895020185699,1.1345895020185699,{"$f":"IFERROR(MEDIAN(AW6:BA6),\"-x-\")","v":0.83285302593685595},{"$f":"IFERROR(AVERAGEIFS(AW6:BA6,AW6:BA6,\">0\",AW6:BA6,\"<50\"),\"-x-\")","v":0.89826511957380684}]
[null,"ALGT<XNAS>","Allegiant Travel Co","Transporte aéreo regular","ALGT",1234.4919394101601,null,12.5965177895414,12.971500419123901,10.021999999997201,12.204768583454999,5.2882187938303096,12.204768583454999,{"$f":"IFERROR(AVERAGEIFS(H7:L7,H7:L7,\">0\",H7:L7,\"<50\"),\"-x-\")","v":10.616601117189562},null,6.7598511060496103,9.2531626053969394,6.6931835506547896,7.3083183402923204,4.2295507508824803,6.7598511060496103,{"$f":"IFERROR(AVERAGEIFS(P7:T7,P7:T7,\">0\",P7:T7,\"<50\"),\"-x-\")","v":6.8488132706552278},null,0.22694431906769799,0.31889089764852502,0.43985276566236298,0.334027495599585,0.53526670384802899,0.334027495599585,0.37099643636523999,null,5.8132393106643603,4.5406880916416403,2.34606329449525,3.20846390295628,1.39019916640973,5.8132393106643603,0.23914363268331584,{"$f":"IFERROR(AVERAGEIFS(AF7:AJ7,AF7:AJ7,\">0\",AF7:AJ7,\"<30\"),\"-x-\")","v":3.4597307532334525},null,2.02707142665531,1.68406335612053,0.969373006295427,1.5386762265607099,0.66669486465707495,1.5386762265607099,{"$f":"IFERROR(AVERAGEIFS(AO7:AS7,AO7:AS7,\">0\",AO7:AS7,\"<50\"),\"-x-\")","v":1.3771757760578105},null,0.99336491699887097,2.1492809195988198,2.3490491134907598,1.85462349125191,1.85462349125191,1.85462349125191,{"$f":"IFERROR(AVERAGEIFS(AW7:BA7,AW7:BA7,\">0\",AW7:BA7,\"<50\"),\"-x-\")","v":1.8401883865184541}]
[null,"AAL<XNAS>","American Airlines Group Inc","Transporte aéreo regular","AAL",4320.2356641562501,null,9.7068607068649708,13.341025641028001,10.5973597359698,7.5672823218992598,-5.4516129032053904,9.7068607068649708,10.303132101440507,null,5.9386459495508497,7.3901739536231599,7.1655806390335801,6.1401639621544701,null,6.6528723005940247,6.6586411260905152,null,0.50157345871033598,0.50168823878513602,0.62332105392008097,0.65932720366283304,0.85306438212632196,0.62332105392008097,0.6277948674409416,null,6.3913509996418698,6.3413924524211298,-87.510477969888598,-106.470361087122,-1.63893613966684,6.3913509996418698,-0.25643031336546457,6.3663717260314998,null,0.65537531990958098,0.60855669808552204,0.33657544828838598,0.27973991898761602,0.102230894858167,0.33657544828838598,0.3964956560258544,null,2.5323852435940402,3.2920164609058702,4.0940809968815302,3.8062418725603502,null,3.5491291667331102,3.431181143485448]
[null,"PFAVH<XBOG>","Avianca Holdings S.A.","Transporte aéreo regular","PFAVH",114.317672797363,null,69.998343140818207,20.603485556639502,-20.532580928207601,-0.57311000003937795,-0.11751271099274201,-0.11751271099274201,20.603485556639502,null,9.0347562697570503,7.97514950457116,8.0303290160227299,144.36652139387999,133.72393644764099,9.0347562697570503,8.34674493011698,null,0.76815125465276701,0.81684575022780304,0.90641836959868705,0.91542363437009,0.98140811594552402,0.90641836959868705,0.87764942495897424,null,0.84867135200875099,0.702045232080309,0.44070208886296303,2.5256832455779699,0.51787594925372105,2.5256832455779699,0.20504390254020624,1.0069955735567429,null,0.28720995397907201,0.223755299295362,0.104127439465742,0.11330908527349901,2.3233337037737601E-2,0.11330908527349901,0.1503270230102825,null,6.7463334444328202,6.4630998407155902,7.4973049248364996,136.14738591248201,136.14738591248201,7.4973049248364996,6.9022460699949697]
[null,"AZUL4<XBSP>","Azul S.A.","Transporte aéreo regular","AZUL4",806.15821927831996,null,null,15.933242610146401,28.840583704790301,-8.25069849632564,-1.3460731043160199,7.2935847529151907,22.386913157468349,null,null,9.1500958492106292,16.703309780714299,8.7761492074496292,2.0430949803921998,8.9631225283301283,9.1681624544416884,null,null,0.27996512524172401,0.23322662344318801,0.15012332388461799,0.51985759578761603,0.25659587434245601,0.29579316708928649,null,null,3.1675310810242099,3.8512490033826898,-5.6595524815420504,-0.92333653705190999,3.8512490033826898,-0.23974989314918627,3.5093900422034499,null,null,1.0821374906790899,1.32421733334559,1.73279048699442,0.28269881283313197,1.20317741201234,1.1054610309630579,null,4.80368311058555,1.4445327751891499,2.3748609396170699,0.73047008181038098,0.73047008181038098,1.4445327751891499,2.0168033978025064]
[null,"CVA<XSGO>","Costa Verde Aeronautica S.A.","Transporte aéreo regular","CVA",null,null,null,null,null,null,null,"-x-","-x-",null,null,null,null,null,null,"-x-","-x-",null,null,null,null,null,null,"-x-","-x-",null,null,null,null,null,null,"-x-","-x-","-x-",null,null,null,null,null,null,"-x-","-x-",null,0.67002128257081495,1.37083309527952,null,null,null,1.0204271889251675,1.0204271889251675]
[null,"DAL<XNYS>","Delta Air Lines, Inc","Transporte aéreo regular","DAL",14491.6386003281,null,8.4956822107196803,11.3131313131307,8.8007054673798795,8.0109589041094296,4.2152133580675599,8.4956822107196803,8.1671382506814503,null,4.5522657480905799,5.6519937458360801,5.8271267193413196,5.1784457117028104,null,5.4152197287694452,5.3024579812426973,null,0.16833980586379799,0.19870555090543299,0.25646891728334598,0.251333559884515,0.56558063493052002,0.251333559884515,0.28808569377352244,null,2.9480557445713198,2.8703447723928499,2.4996254241195901,2.4626593372777301,1.0127638968697299,2.9480557445713198,0.34353620983411798,2.3586898350462442,null,0.94224661973567003,0.98599468685824798,0.78261676650072298,0.81868955745358096,0.32651272931525499,0.81868955745358096,0.77121207197269537,null,0.46114750395281601,0.869804767037749,1.32134861056147,1.0669638004128501,null,0.96838428372529961,0.92981617049122134]
[null,"GOLL4<XBSP>","Gol","Transporte aéreo regular","GOLL4",678.25441729003899,null,1.8765477749912001,262.691444516182,-8.0487612375727604,-109.955725060077,-22.978478961274998,-8.0487612375727604,1.8765477749912001,null,6.3566640512217401,7.0974233836823304,7.2589786644166496,9.1261862654500892,4.2741976771503696,7.0974233836823304,6.8226900083842352,null,0.800045586196939,0.58327491237898399,0.44726504146354301,0.39130634186905799,0.75467351764673396,0.58327491237898399,0.59531307991105165,null,-0.43680863497456801,-1.4584189284614699,-1.7561358358743699,-1.7041065547255101,-0.35612312677813002,-0.35612312677813002,1,"-x-",null,0.16157864753176901,0.476499828725991,0.76555938111505395,0.93004782106891104,0.19436081457092799,0.476499828725991,0.50560929860253068,null,4.7069732645977602,3.42648778074363,2.7942844932404101,2.7245030920348698,2.7245030920348698,2.7942844932404101,3.2753503445303074]
[null,"HA<XNAS>","Hawaiian Hldg Inc","Transporte aéreo regular","HA",593.21678507031299,null,13.073394495397199,5.8431085043921502,5.7164502164450797,6.2186836518085302,15.3690476190532,6.2186836518085302,9.2441368974192315,null,5.8621211334466397,3.6515419135685101,3.2957665638823501,4.3040059465783997,null,3.9777739300734547,4.2783588893689748,null,0.15457775052418599,0.214403389110812,0.352331283699023,0.49953829530160898,0.72338451513787705,0.352331283699023,0.38884704675470144,null,4.4754142828314798,2.1647248795452501,1.37632340432538,1.2614873568854801,0.64069005203600704,4.4754142828314798,0.1431577082134749,1.9837279951247193,null,1.24317823664933,0.78805416869272404,0.472532636972119,0.49419018618618799,0.22247522331167599,0.49419018618618799,0.64408609036240738,null,-0.104346752768379,0.183157674737913,0.45497061762853303,1.51791489048992,null,0.31906414618322299,0.71868106095212203]
[null,"JBLU<XNAS>","Jetblue Airways Corp","Transporte aéreo regular","JBLU",2565.2148074101601,null,10.0990990990977,6.4380403458198998,26.7666666666337,9.8010471204179304,4.7591623036642003,9.8010471204179304,11.572803107126685,null,4.4991712869887097,5.3037709670243203,7.2886609781489797,5.4553604083921501,3.3126149489908099,5.3037709670243203,5.171915717908993,null,0.16014650082797699,0.14338241452991499,0.254384441441798,0.36838126816903199,0.55131739949865699,0.254384441441798,0.29552240489347581,null,1.8086436691555701,1.4818479144232699,1.06156298025962,1.12614139218931,0.546828272168568,1.8086436691555701,0.30234162842251527,1.2050048456392675,null,1.0891208545017399,1.04734789583745,0.65808851048768702,0.68890676589944599,0.33451722767222197,0.68890676589944599,0.76359625087970895,null,0.24222873900294001,0.34993084370671601,1.0051347881908399,1.3766037735840699,1.3766037735840699,1.0051347881908399,0.8701003836137271]
[null,"LTM<XSGO>","Latam Airlines Group S.A.","Transporte aéreo regular","LTM",1827.5548670527301,null,67.534506289521204,55.330360313120799,33.222250610822798,32.266650277539199,9.5969903221703099,33.222250610822798,25.028630403510771,null,8.3869353062036698,8.7149803431093495,6.8692429974034903,6.7414457235499903,4.7995728794630796,6.8692429974034903,7.1024354499459168,null,0.62742378512513797,0.47919421879691099,0.54690441722516003,0.628966812975705,0.85073426434071697,0.62742378512513797,0.62664469969272618,null,1.25187509052193,2.0576731669461901,1.6483666476688099,1.96262090824348,0.58373750297869298,2.0576731669461901,0.28368815434621364,1.5008546632718205,null,0.520089196154913,0.89381208681152202,0.61081471787383601,0.61017872602769796,0.181483955666636,0.61017872602769796,0.56327573650692098,null,4.7978779975892403,3.6317721101113398,3.3501064493066202,3.9782209821132701,3.9782209821132701,3.9782209821132701,3.9472397042467486]
[null,"MESA<XNAS>","Mesa Air Group Inc","Transporte aéreo regular","MESA",132.48689526000999,null,null,null,null,7.9115044247737396,3.5486725663686198,5.7300884955711791,5.7300884955711799,null,null,null,null,6.2298969935873201,5.3687616390234298,5.799329316305375,5.799329316305375,null,null,null,0.826463112194324,0.76105509118759096,0.87655644332873595,0.826463112194324,0.82135821557021693,null,null,null,0.46637273130591,0.67406630085952202,0.30234964949113402,0.67406630085952202,0.448545861298212,0.48092956055218866,null,null,null,null,0.34921886594156598,0.15664067700527101,0.2529297714734185,0.2529297714734185,null,null,null,null,4.6683249713169097,4.6683249713169097,4.6683249713169097,4.6683249713169097]
[null,"SKYW<XNAS>","Skywest Inc","Transporte aéreo regular","SKYW",1486.46781105078,null,-11.6082802547899,6.5717821782163801,8.3905660377204203,9.7628398791566706,4.4486404833805899,6.5717821782163801,7.2934571446185155,null,34.508908935298699,6.9820816334759002,5.9075460961030304,6.9127929557143899,4.8996699188210204,6.9127929557143899,11.842199907882607,null,0.57441336235089702,0.49395074898202401,0.57792844893294404,0.50669290849356896,0.69247354487888502,0.57441336235089702,0.5690918027276638,null,1.3960513802594501,1.56917497682844,1.17487564315343,1.4982582895190699,0.68271246520726003,1.56917497682844,0.43507733381469921,1.2642145509935301,null,0.59973669081318803,0.85847385861688996,0.71709039548477405,1.1129299547865199,0.50712961733643203,0.71709039548477405,0.75907210340756082,null,17.712490537465801,2.93953892038917,3.05444392107893,3.21118502060563,3.21118502060563,3.21118502060563,6.0257686840290328]
[null,"LUV<XNYS>","Southwest Airlines Co.","Transporte aéreo regular","LUV",13841.686416,null,14.0394366197288,11.303972366135,10.6118721461244,12.641686182672901,8.0000000000145501,11.303972366135,11.31939346293513,null,6.3925700184554399,8.5827640707866504,6.2457477640491597,6.8238470501601096,4.1509190201322799,6.3925700184554399,6.4391695847167272,null,0.12704006982472499,0.115228941318783,0.16268335710628901,0.12773123272898401,0.32110945582389799,0.12773123272898401,0.1707586113605358,null,3.6348052673747602,3.7236071281877199,2.6525941739710102,2.8893801140620798,1.5504615634163199,3.7236071281877199,0.41638698983018912,2.8901696494023783,null,1.5385499701624199,1.8692493357939399,1.22324326587841,1.30635204114697,0.67506456487626598,1.30635204114697,1.3224918355716011,null,0.23288496285886101,0.37713923515730102,0.31518039482625698,2.1072796934873801E-2,0.280201342281998,0.280201342281998,0.2452957464118582]
[null,"SAVE<XNAS>","Spirit Airlines, Inc","Transporte aéreo regular","SAVE",723.78214655957004,null,15.388297872341401,7.4009900990058703,25.403508771938501,8.2433537832257606,2.8852459016379699,8.2433537832257606,11.8642792856299,null,7.6138725090932002,6.9149149763325104,9.3850232877739508,7.1198755508521598,5.8313964669650904,7.1198755508521598,7.373016558203382,null,0.19662918237067101,0.32570995689486198,0.35627737124974401,0.56322679273027498,0.83617648412357104,0.35627737124974401,0.45560395747382465,null,2.8760787939245298,1.75084082093053,2.0502319896440899,1.22014650402161,0.32352659680373103,2.8760787939245298,0.11248878072713211,1.6441649410648982,null,1.7600864151172599,1.17490150646881,1.1914567760977699,0.71982810161625799,0.19294220136725901,1.17490150646881,1.0078430001334715,null,0.32815346693814701,1.1196806776843,2.0147056630521498,3.36574258638211,4.6335794231199499,2.0147056630521498,2.2923723634353315]
[null,"UAL<XNYS>","United Airlines Hldg Inc","Transporte aéreo regular","UAL",7382.78558346094,null,10.639416058402301,9.6011396011454107,10.8740259740298,7.6070811744357298,6.8888888888832298,9.6011396011454107,9.1221103393792937,null,4.8140575279539899,5.4119734583000501,6.0722062936984003,5.6252261539702904,null,5.5185998061351702,5.4808658584806818,null,0.33607270353357299,0.41886628072708798,0.39231307998299603,0.469379910280113,0.75443744433228899,0.41886628072708798,0.47421388377121182,null,2.67049004377259,2.2674783237562202,2.2824857645573502,1.93310338465926,0.66924159786776705,2.67049004377259,0.25060628832090021,1.9645598229226375,null,0.67093506771925604,0.548331845415305,0.56455420820475399,0.53174680922893502,0.156447180947453,0.548331845415305,0.49440302230314065,null,1.15233570862983,1.87604037542042,1.9483007953731399,2.2422218849606002,null,1.9121705853967801,1.8047246910959975]
[null,"VOLARA<XMEX>","Volaris","Transporte aéreo regular","VOLARA",469.17953827832002,null,8.9155829022784001,-24.420241136336699,-11.246866215718899,7.5841012238815901,17.582628077565499,7.5841012238815901,11.360770734575164,null,8.0279149028356205,24.402429399197,1.62719310952707,1.7475938675652301,0.61001446163663797,1.7475938675652301,7.2830291481523117,null,5.9758133008290297E-2,0.17952564943552701,0.24938288263743699,0.199111316735507,0.34645591347594701,0.199111316735507,0.20684677905854168,null,2.9069922940870998,1.56612735623639,1.1562186616793,3.6195421922420801,-2.8165046287031101,3.6195421922420801,-0.77813836090648292,2.3122201260612174,null,1.33453955749428,0.64211314735803204,0.38836877699623101,0.57592466352525695,0.31139238335117603,0.57592466352525695,0.65046770574499535,null,-1.54963534350645,-6.7984572862333197,-0.460658510543908,-0.30861222440125902,-0.47380613448967801,-0.47380613448967801,"-x-"]
[null,null,null,null,null,null,null,null,null,null,null,null,"-x-","-x-",null,null,null,null,null,null,"-x-","-x-",null,null,null,null,null,null,"-x-","-x-",null,null,null,null,null,null,"-x-","-x-","-x-",null,null,null,null,null,null,"-x-","-x-",null,null,null,null,null,null,"-x-","-x-"]
[null,null,null,null,null,null,null,null,null,null,null,null,"-x-","-x-",null,null,null,null,null,null,"-x-","-x-",null,null,null,null,null,null,"-x-","-x-",null,null,null,null,null,null,"-x-","-x-","-x-",null,null,null,null,null,null,"-x-","-x-",null,null,null,null,null,null,"-x-","-x-"]
[null,null,null,null,null,null,null,null,null,null,null,null,"-x-","-x-",null,null,null,null,null,null,"-x-","-x-",null,null,null,null,null,null,"-x-","-x-",null,null,null,null,null,null,"-x-","-x-","-x-",null,null,null,null,null,null,"-x-","-x-",null,null,null,null,null,null,"-x-","-x-"]
[null,null,null,null,null,null,null,null,null,null,null,null,"-x-","-x-",null,null,null,null,null,null,"-x-","-x-",null,null,null,null,null,null,"-x-","-x-",null,null,null,null,null,null,"-x-","-x-","-x-",null,null,null,null,null,null,"-x-","-x-",null,null,null,null,null,null,"-x-","-x-"]
[null,null,null,null,null,null,null,null,null,null,null,null,"-x-","-x-",null,null,null,null,null,null,"-x-","-x-",null,null,null,null,null,null,"-x-","-x-",null,null,null,null,null,null,"-x-","-x-","-x-",null,null,null,null,null,null,"-x-","-x-",null,null,null,null,null,null,"-x-","-x-"]
[null,null,null,null,null,null,null,null,null,null,null,null,"-x-","-x-",null,null,null,null,null,null,"-x-","-x-",null,null,null,null,null,null,"-x-","-x-",null,null,null,null,null,null,"-x-","-x-","-x-",null,null,null,null,null,null,"-x-","-x-",null,null,null,null,null,null,"-x-","-x-"]
[null,null,null,null,null,null,null,null,null,null,null,null,"-x-","-x-",null,null,null,null,null,null,"-x-","-x-",null,null,null,null,null,null,"-x-","-x-",null,null,null,null,null,null,"-x-","-x-","-x-",null,null,null,null,null,null,"-x-","-x-",null,null,null,null,null,null,"-x-","-x-"]
[null,null,null,null,null,null,null,null,null,null,null,null,"-x-","-x-",null,null,null,null,null,null,"-x-","-x-",null,null,null,null,null,null,"-x-","-x-",null,null,null,null,null,null,"-x-","-x-","-x-",null,null,null,null,null,null,"-x-","-x-",null,null,null,null,null,null,"-x-","-x-"]
[null,null,null,null,null,null,null,null,null,null,null,null,"-x-","-x-",null,null,null,null,null,null,"-x-","-x-",null,null,null,null,null,null,"-x-","-x-",null,null,null,null,null,null,"-x-","-x-","-x-",null,null,null,null,null,null,"-x-","-x-",null,null,null,null,null,null,"-x-","-x-"]
[null,null,null,null,null,null,null,null,null,null,null,null,"-x-","-x-",null,null,null,null,null,null,"-x-","-x-",null,null,null,null,null,null,"-x-","-x-",null,null,null,null,null,null,"-x-","-x-","-x-",null,null,null,null,null,null,"-x-","-x-",null,null,null,null,null,null,"-x-","-x-"]
[null,null,null,null,null,null,null,null,null,null,null,null,"-x-","-x-",null,null,null,null,null,null,"-x-","-x-",null,null,null,null,null,null,"-x-","-x-",null,null,null,null,null,null,"-x-","-x-","-x-",null,null,null,null,null,null,"-x-","-x-",null,null,null,null,null,null,"-x-","-x-"]
[null,null,null,null,null,null,null,null,null,null,null,null,"-x-","-x-",null,null,null,null,null,null,"-x-","-x-",null,null,null,null,null,null,"-x-","-x-",null,null,null,null,null,null,"-x-","-x-","-x-",null,null,null,null,null,null,"-x-","-x-",null,null,null,null,null,null,"-x-","-x-"]
[null,null,null,null,null,null,null,null,null,null,null,null,"-x-","-x-",null,null,null,null,null,null,"-x-","-x-",null,null,null,null,null,null,"-x-","-x-",null,null,null,null,null,null,"-x-","-x-","-x-",null,null,null,null,null,null,"-x-","-x-",null,null,null,null,null,null,"-x-","-x-"]
[null,null,null,null,null,null,null,null,null,null,null,null,"-x-","-x-",null,null,null,null,null,null,"-x-","-x-",null,null,null,null,null,null,"-x-","-x-",null,null,null,null,null,null,"-x-","-x-","-x-",null,null,null,null,null,null,"-x-","-x-",null,null,null,null,null,null,"-x-","-x-"]
[null,null,null,null,null,null,null,null,null,null,null,null,"-x-","-x-",null,null,null,null,null,null,"-x-","-x-",null,null,null,null,null,null,"-x-","-x-",null,null,null,null,null,null,"-x-","-x-","-x-",null,null,null,null,null,null,"-x-","-x-",null,null,null,null,null,null,"-x-","-x-"]
[null,null,null,null,null,null,null,null,null,null,null,null,"-x-","-x-",null,null,null,null,null,null,"-x-","-x-",null,null,null,null,null,null,"-x-","-x-",null,null,null,null,null,null,"-x-","-x-","-x-",null,null,null,null,null,null,"-x-","-x-",null,null,null,null,null,null,"-x-","-x-"]
[null,null,null,null,null,null,null,null,null,null,null,null,"-x-","-x-",null,null,null,null,null,null,"-x-","-x-",null,null,null,null,null,null,"-x-","-x-",null,null,null,null,null,null,"-x-","-x-","-x-",null,null,null,null,null,null,"-x-","-x-",null,null,null,null,null,null,"-x-","-x-"]
[null,null,null,null,null,null,null,null,null,null,null,null,"-x-","-x-",null,null,null,null,null,null,"-x-","-x-",null,null,null,null,null,null,"-x-","-x-",null,null,null,null,null,null,"-x-","-x-","-x-",null,null,null,null,null,null,"-x-","-x-",null,null,null,null,null,null,"-x-","-x-"]
[null,null,null,null,null,null,null,null,null,null,null,null,"-x-","-x-",null,null,null,null,null,null,"-x-","-x-",null,null,null,null,null,null,"-x-","-x-",null,null,null,null,null,null,"-x-","-x-","-x-",null,null,null,null,null,null,"-x-","-x-",null,null,null,null,null,null,"-x-","-x-"]
[null,null,null,null,null,null,null,null,null,null,null,null,"-x-","-x-",null,null,null,null,null,null,"-x-","-x-",null,null,null,null,null,null,"-x-","-x-",null,null,null,null,null,null,"-x-","-x-","-x-",null,null,null,null,null,null,"-x-","-x-",null,null,null,null,null,null,"-x-","-x-"]
[null,null,null,null,null,null,null,null,null,null,null,null,"-x-","-x-",null,null,null,null,null,null,"-x-","-x-",null,null,null,null,null,null,"-x-","-x-",null,null,null,null,null,null,"-x-","-x-","-x-",null,null,null,null,null,null,"-x-","-x-",null,null,null,null,null,null,"-x-","-x-"]
[null,null,null,null,null,null,null,null,null,null,null,null,"-x-","-x-",null,null,null,null,null,null,"-x-","-x-",null,null,null,null,null,null,"-x-","-x-",null,null,null,null,null,null,"-x-","-x-","-x-",null,null,null,null,null,null,"-x-","-x-",null,null,null,null,null,null,"-x-","-x-"]
[null,null,null,null,null,null,null,null,null,null,null,null,"-x-","-x-",null,null,null,null,null,null,"-x-","-x-",null,null,null,null,null,null,"-x-","-x-",null,null,null,null,null,null,"-x-","-x-","-x-",null,null,null,null,null,null,"-x-","-x-",null,null,null,null,null,null,"-x-","-x-"]
[null,null,null,null,null,null,null,null,null,null,null,null,"-x-","-x-",null,null,null,null,null,null,"-x-","-x-",null,null,null,null,null,null,"-x-","-x-",null,null,null,null,null,null,"-x-","-x-","-x-",null,null,null,null,null,null,"-x-","-x-",null,null,null,null,null,null,"-x-","-x-"]
[null,null,null,null,null,null,null,null,null,null,null,null,"-x-","-x-",null,null,null,null,null,null,"-x-","-x-",null,null,null,null,null,null,"-x-","-x-",null,null,null,null,null,null,"-x-","-x-","-x-",null,null,null,null,null,null,"-x-","-x-",null,null,null,null,null,null,"-x-","-x-"]
[null,null,null,null,null,null,null,null,null,null,null,null,"-x-","-x-",null,null,null,null,null,null,"-x-","-x-",null,null,null,null,null,null,"-x-","-x-",null,null,null,null,null,null,"-x-","-x-","-x-",null,null,null,null,null,null,"-x-","-x-",null,null,null,null,null,null,"-x-","-x-"]
[null,null,null,null,null,null,null,null,null,null,null,null,"-x-","-x-",null,null,null,null,null,null,"-x-","-x-",null,null,null,null,null,null,"-x-","-x-",null,null,null,null,null,null,"-x-","-x-","-x-",null,null,null,null,null,null,"-x-","-x-",null,null,null,null,null,null,"-x-","-x-"]
[null,null,null,null,null,null,null,null,null,null,null,null,"-x-","-x-",null,null,null,null,null,null,"-x-","-x-",null,null,null,null,null,null,"-x-","-x-",null,null,null,null,null,null,"-x-","-x-","-x-",null,null,null,null,null,null,"-x-","-x-",null,null,null,null,null,null,"-x-","-x-"]
[null,null,null,null,null,null,null,null,null,null,null,null,"-x-","-x-",null,null,null,null,null,null,"-x-","-x-",null,null,null,null,null,null,"-x-","-x-",null,null,null,null,null,null,"-x-","-x-","-x-",null,null,null,null,null,null,"-x-","-x-",null,null,null,null,null,null,"-x-","-x-"]
[null,null,null,null,null,null,null,null,null,null,null,null,"-x-","-x-",null,null,null,null,null,null,"-x-","-x-",null,null,null,null,null,null,"-x-","-x-",null,null,null,null,null,null,"-x-","-x-","-x-",null,null,null,null,null,null,"-x-","-x-",null,null,null,null,null,null,"-x-","-x-"]
[null,null,null,null,null,null,null,null,null,null,null,null,"-x-","-x-",null,null,null,null,null,null,"-x-","-x-",null,null,null,null,null,null,"-x-","-x-",null,null,null,null,null,null,"-x-","-x-","-x-",null,null,null,null,null,null,"-x-","-x-",null,null,null,null,null,null,"-x-","-x-"]
[null,null,null,null,null,null,null,null,null,null,null,null,"-x-","-x-",null,null,null,null,null,null,"-x-","-x-",null,null,null,null,null,null,"-x-","-x-",null,null,null,null,null,null,"-x-","-x-","-x-",null,null,null,null,null,null,"-x-","-x-",null,null,null,null,null,null,"-x-","-x-"]
[null,null,null,null,null,null,null,null,null,null,null,null,"-x-","-x-",null,null,null,null,null,null,"-x-","-x-",null,null,null,null,null,null,"-x-","-x-",null,null,null,null,null,null,"-x-","-x-","-x-",null,null,null,null,null,null,"-x-","-x-",null,null,null,null,null,null,"-x-","-x-"]
[null,null,null,null,null,null,null,null,null,null,null,null,"-x-","-x-",null,null,null,null,null,null,"-x-","-x-",null,null,null,null,null,null,"-x-","-x-",null,null,null,null,null,null,"-x-","-x-","-x-",null,null,null,null,null,null,"-x-","-x-",null,null,null,null,null,null,"-x-","-x-"]
[null,null,null,null,null,null,null,null,null,null,null,null,"-x-","-x-",null,null,null,null,null,null,"-x-","-x-",null,null,null,null,null,null,"-x-","-x-",null,null,null,null,null,null,"-x-","-x-","-x-",null,null,null,null,null,null,"-x-","-x-",null,null,null,null,null,null,"-x-","-x-"]
[null,null,null,null,null,null,null,null,null,null,null,null,"-x-","-x-",null,null,null,null,null,null,"-x-","-x-",null,null,null,null,null,null,"-x-","-x-",null,null,null,null,null,null,"-x-","-x-","-x-",null,null,null,null,null,null,"-x-","-x-",null,null,null,null,null,null,"-x-","-x-"]
[null,null,null,null,null,null,null,null,null,null,null,null,"-x-","-x-",null,null,null,null,null,null,"-x-","-x-",null,null,null,null,null,null,"-x-","-x-",null,null,null,null,null,null,"-x-","-x-","-x-",null,null,null,null,null,null,"-x-","-x-",null,null,null,null,null,null,"-x-","-x-"]
[null,null,null,null,null,null,null,null,null,null,null,null,"-x-","-x-",null,null,null,null,null,null,"-x-","-x-",null,null,null,null,null,null,"-x-","-x-",null,null,null,null,null,null,"-x-","-x-","-x-",null,null,null,null,null,null,"-x-","-x-",null,null,null,null,null,null,"-x-","-x-"]
[null,null,null,null,null,null,null,null,null,null,null,null,"-x-","-x-",null,null,null,null,null,null,"-x-","-x-",null,null,null,null,null,null,"-x-","-x-",null,null,null,null,null,null,"-x-","-x-","-x-",null,null,null,null,null,null,"-x-","-x-",null,null,null,null,null,null,"-x-","-x-"]
[null,null,null,null,null,null,null,null,null,null,null,null,"-x-","-x-",null,null,null,null,null,null,"-x-","-x-",null,null,null,null,null,null,"-x-","-x-",null,null,null,null,null,null,"-x-","-x-","-x-",null,null,null,null,null,null,"-x-","-x-",null,null,null,null,null,null,"-x-","-x-"]
[null,null,null,null,null,null,null,null,null,null,null,null,"-x-","-x-",null,null,null,null,null,null,"-x-","-x-",null,null,null,null,null,null,"-x-","-x-",null,null,null,null,null,null,"-x-","-x-","-x-",null,null,null,null,null,null,"-x-","-x-",null,null,null,null,null,null,"-x-","-x-"]
[null,null,null,null,null,null,null,null,null,null,null,null,"-x-","-x-",null,null,null,null,null,null,"-x-","-x-",null,null,null,null,null,null,"-x-","-x-",null,null,null,null,null,null,"-x-","-x-","-x-",null,null,null,null,null,null,"-x-","-x-",null,null,null,null,null,null,"-x-","-x-"]
[null,null,null,null,null,null,null,null,null,null,null,null,"-x-","-x-",null,null,null,null,null,null,"-x-","-x-",null,null,null,null,null,null,"-x-","-x-",null,null,null,null,null,null,"-x-","-x-","-x-",null,null,null,null,null,null,"-x-","-x-",null,null,null,null,null,null,"-x-","-x-"]
[null,null,null,null,null,null,null,null,null,null,null,null,"-x-","-x-",null,null,null,null,null,null,"-x-","-x-",null,null,null,null,null,null,"-x-","-x-",null,null,null,null,null,null,"-x-","-x-","-x-",null,null,null,null,null,null,"-x-","-x-",null,null,null,null,null,null,"-x-","-x-"]
[null,null,null,null,null,null,null,null,null,null,null,null,"-x-","-x-",null,null,null,null,null,null,"-x-","-x-",null,null,null,null,null,null,"-x-","-x-",null,null,null,null,null,null,"-x-","-x-","-x-",null,null,null,null,null,null,"-x-","-x-",null,null,null,null,null,null,"-x-","-x-"]
[null,null,null,null,null,null,null,null,null,null,null,null,"-x-","-x-",null,null,null,null,null,null,"-x-","-x-",null,null,null,null,null,null,"-x-","-x-",null,null,null,null,null,null,"-x-","-x-","-x-",null,null,null,null,null,null,"-x-","-x-",null,null,null,null,null,null,"-x-","-x-"]
[null,null,null,null,null,null,null,null,null,null,null,null,"-x-","-x-",null,null,null,null,null,null,"-x-","-x-",null,null,null,null,null,null,"-x-","-x-",null,null,null,null,null,null,"-x-","-x-","-x-",null,null,null,null,null,null,"-x-","-x-",null,null,null,null,null,null,"-x-","-x-"]
[null,null,null,null,null,null,null,null,null,null,null,null,{"$f":"IFERROR(MEDIAN(H70:L70),\"-x-\")","v":"-x-"},{"$f":"IFERROR(AVERAGEIFS(H70:L70,H70:L70,\">0\",H70:L70,\"<50\"),\"-x-\")","v":"-x-"},null,null,null,null,null,null,{"$f":"IFERROR(MEDIAN(P70:T70),\"-x-\")","v":"-x-"},{"$f":"IFERROR(AVERAGEIFS(P70:T70,P70:T70,\">0\",P70:T70,\"<50\"),\"-x-\")","v":"-x-"},null,null,null,null,null,null,{"$f":"IFERROR(MEDIAN(X70:AB70),\"-x-\")","v":"-x-"},{"$f":"IFERROR(AVERAGE(X70:AB70),\"-x-\")","v":"-x-"},null,null,null,null,null,null,{"$f":"IF(MAX(AF70:AJ70)=0,\"-x-\",MAX(AF70:AJ70))","v":"-x-"},{"$f":"IFERROR(AJ70/AK70,\"-x-\")","v":"-x-"},"-x-",null,null,null,null,null,null,{"$f":"IFERROR(MEDIAN(AO70:AS70),\"-x-\")","v":"-x-"},{"$f":"IFERROR(AVERAGEIFS(AO70:AS70,AO70:AS70,\">0\",AO70:AS70,\"<50\"),\"-x-\")","v":"-x-"},null,null,null,null,null,null,{"$f":"IFERROR(MEDIAN(AW70:BA70),\"-x-\")","v":"-x-"},{"$f":"IFERROR(AVERAGEIFS(AW70:BA70,AW70:BA70,\">0\",AW70:BA70,\"<50\"),\"-x-\")","v":"-x-"}]
[null,null,null,null,null,null,null,null,null,null,null,null,"-x-","-x-",null,null,null,null,null,null,"-x-","-x-",null,null,null,null,null,null,"-x-","-x-",null,null,null,null,null,null,"-x-","-x-",{"$f":"IFERROR(AVERAGEIFS(AF71:AJ71,AF71:AJ71,\">0\",AF71:AJ71,\"<30\"),\"-x-\")","v":"-x-"},null,null,null,null,null,null,"-x-","-x-",null,null,null,null,null,null,"-x-","-x-"]
[null,null,null,null,null,null,null,null,null,null,null,null,"-x-","-x-",null,null,null,null,null,null,"-x-","-x-",null,null,null,null,null,null,"-x-","-x-",null,null,null,null,null,null,"-x-","-x-","-x-",null,null,null,null,null,null,"-x-","-x-",null,null,null,null,null,null,"-x-","-x-"]
[null,null,null,null,null,null,null,null,null,null,null,null,"-x-","-x-",null,null,null,null,null,null,"-x-","-x-",null,null,null,null,null,null,"-x-","-x-",null,null,null,null,null,null,"-x-","-x-","-x-",null,null,null,null,null,null,"-x-","-x-",null,null,null,null,null,null,"-x-","-x-"]
[null,null,null,null,null,null,null,null,null,null,null,null,"-x-","-x-",null,null,null,null,null,null,"-x-","-x-",null,null,null,null,null,null,"-x-","-x-",null,null,null,null,null,null,"-x-","-x-","-x-",null,null,null,null,null,null,"-x-","-x-",null,null,null,null,null,null,"-x-","-x-"]
[null,null,null,null,null,null,null,null,null,null,null,null,"-x-","-x-",null,null,null,null,null,null,"-x-","-x-",null,null,null,null,null,null,"-x-","-x-",null,null,null,null,null,null,"-x-","-x-","-x-",null,null,null,null,null,null,"-x-","-x-",null,null,null,null,null,null,"-x-","-x-"]
[null,null,null,null,null,null,null,null,null,null,null,null,"-x-","-x-",null,null,null,null,null,null,"-x-","-x-",null,null,null,null,null,null,"-x-","-x-",null,null,null,null,null,null,"-x-","-x-","-x-",null,null,null,null,null,null,"-x-","-x-",null,null,null,null,null,null,"-x-","-x-"]
[null,null,null,null,null,null,null,null,null,null,null,null,"-x-","-x-",null,null,null,null,null,null,"-x-","-x-",null,null,null,null,null,null,"-x-","-x-",null,null,null,null,null,null,"-x-","-x-","-x-",null,null,null,null,null,null,"-x-","-x-",null,null,null,null,null,null,"-x-","-x-"]
[null,null,null,null,null,null,null,null,null,null,null,null,"-x-","-x-",null,null,null,null,null,null,"-x-","-x-",null,null,null,null,null,null,"-x-","-x-",null,null,null,null,null,null,"-x-","-x-","-x-",null,null,null,null,null,null,"-x-","-x-",null,null,null,null,null,null,"-x-","-x-"]
[null,null,null,null,null,null,null,null,null,null,null,null,"-x-","-x-",null,null,null,null,null,null,"-x-","-x-",null,null,null,null,null,null,"-x-","-x-",null,null,null,null,null,null,"-x-","-x-","-x-",null,null,null,null,null,null,"-x-","-x-",null,null,null,null,null,null,"-x-","-x-"]
[null,null,null,null,null,null,null,null,null,null,null,null,"-x-","-x-",null,null,null,null,null,null,"-x-","-x-",null,null,null,null,null,null,"-x-","-x-",null,null,null,null,null,null,"-x-","-x-","-x-",null,null,null,null,null,null,"-x-","-x-",null,null,null,null,null,null,"-x-","-x-"]
[null,null,null,null,null,null,null,null,null,null,null,null,"-x-","-x-",null,null,null,null,null,null,"-x-","-x-",null,null,null,null,null,null,"-x-","-x-",null,null,null,null,null,null,"-x-","-x-","-x-",null,null,null,null,null,null,"-x-","-x-",null,null,null,null,null,null,"-x-","-x-"]
[null,null,null,null,null,null,null,null,null,null,null,null,"-x-","-x-",null,null,null,null,null,null,"-x-","-x-",null,null,null,null,null,null,"-x-","-x-",null,null,null,null,null,null,"-x-","-x-","-x-",null,null,null,null,null,null,"-x-","-x-",null,null,null,null,null,null,"-x-","-x-"]
[null,null,null,null,null,null,null,null,null,null,null,null,"-x-","-x-",null,null,null,null,null,null,"-x-","-x-",null,null,null,null,null,null,"-x-","-x-",null,null,null,null,null,null,"-x-","-x-","-x-",null,null,null,null,null,null,"-x-","-x-",null,null,null,null,null,null,"-x-","-x-"]
[null,null,null,null,null,null,null,null,null,null,null,null,"-x-","-x-",null,null,null,null,null,null,"-x-","-x-",null,null,null,null,null,null,"-x-","-x-",null,null,null,null,null,null,"-x-","-x-","-x-",null,null,null,null,null,null,"-x-","-x-",null,null,null,null,null,null,"-x-","-x-"]
[null,null,null,null,null,null,null,null,null,null,null,null,"-x-","-x-",null,null,null,null,null,null,"-x-","-x-",null,null,null,null,null,null,"-x-","-x-",null,null,null,null,null,null,"-x-","-x-","-x-",null,null,null,null,null,null,"-x-","-x-",null,null,null,null,null,null,"-x-","-x-"]
[null,null,null,null,null,null,null,null,null,null,null,null,"-x-","-x-",null,null,null,null,null,null,"-x-","-x-",null,null,null,null,null,null,"-x-","-x-",null,null,null,null,null,null,"-x-","-x-","-x-",null,null,null,null,null,null,"-x-","-x-",null,null,null,null,null,null,"-x-","-x-"]
[null,null,null,null,null,null,null,null,null,null,null,null,"-x-","-x-",null,null,null,null,null,null,"-x-","-x-",null,null,null,null,null,null,"-x-","-x-",null,null,null,null,null,null,"-x-","-x-","-x-",null,null,null,null,null,null,"-x-","-x-",null,null,null,null,null,null,"-x-","-x-"]
[null,null,null,null,null,null,null,null,null,null,null,null,"-x-","-x-",null,null,null,null,null,null,"-x-","-x-",null,null,null,null,null,null,"-x-","-x-",null,null,null,null,null,null,"-x-","-x-","-x-",null,null,null,null,null,null,"-x-","-x-",null,null,null,null,null,null,"-x-","-x-"]
[null,null,null,null,null,null,null,null,null,null,null,null,"-x-","-x-",null,null,null,null,null,null,"-x-","-x-",null,null,null,null,null,null,"-x-","-x-",null,null,null,null,null,null,"-x-","-x-","-x-",null,null,null,null,null,null,"-x-","-x-",null,null,null,null,null,null,"-x-","-x-"]
[null,null,null,null,null,null,null,null,null,null,null,null,"-x-","-x-",null,null,null,null,null,null,"-x-","-x-",null,null,null,null,null,null,"-x-","-x-",null,null,null,null,null,null,"-x-","-x-","-x-",null,null,null,null,null,null,"-x-","-x-",null,null,null,null,null,null,"-x-","-x-"]
[null,null,null,null,null,null,null,null,null,null,null,null,"-x-","-x-",null,null,null,null,null,null,"-x-","-x-",null,null,null,null,null,null,"-x-","-x-",null,null,null,null,null,null,"-x-","-x-","-x-",null,null,null,null,null,null,"-x-","-x-",null,null,null,null,null,null,"-x-","-x-"]
[null,null,null,null,null,null,null,null,null,null,null,null,"-x-","-x-",null,null,null,null,null,null,"-x-","-x-",null,null,null,null,null,null,"-x-","-x-",null,null,null,null,null,null,"-x-","-x-","-x-",null,null,null,null,null,null,"-x-","-x-",null,null,null,null,null,null,"-x-","-x-"]
[null,null,null,null,null,null,null,null,null,null,null,null,"-x-","-x-",null,null,null,null,null,null,"-x-","-x-",null,null,null,null,null,null,"-x-","-x-",null,null,null,null,null,null,"-x-","-x-","-x-",null,null,null,null,null,null,"-x-","-x-",null,null,null,null,null,null,"-x-","-x-"]
[null,null,null,null,null,null,null,null,null,null,null,null,"-x-","-x-",null,null,null,null,null,null,"-x-","-x-",null,null,null,null,null,null,"-x-","-x-",null,null,null,null,null,null,"-x-","-x-","-x-",null,null,null,null,null,null,"-x-","-x-",null,null,null,null,null,null,"-x-","-x-"]
[null,null,null,null,null,null,null,null,null,null,null,null,"-x-","-x-",null,null,null,null,null,null,"-x-","-x-",null,null,null,null,null,null,"-x-","-x-",null,null,null,null,null,null,"-x-","-x-","-x-",null,null,null,null,null,null,"-x-","-x-",null,null,null,null,null,null,"-x-","-x-"]
[null,null,null,null,null,null,null,null,null,null,null,null,"-x-","-x-",null,null,null,null,null,null,"-x-","-x-",null,null,null,null,null,null,"-x-","-x-",null,null,null,null,null,null,"-x-","-x-","-x-",null,null,null,null,null,null,"-x-","-x-",null,null,null,null,null,null,"-x-","-x-"]
[null,null,null,null,null,null,null,null,null,null,null,null,"-x-","-x-",null,null,null,null,null,null,"-x-","-x-",null,null,null,null,null,null,"-x-","-x-",null,null,null,null,null,null,"-x-","-x-","-x-",null,null,null,null,null,null,"-x-","-x-",null,null,null,null,null,null,"-x-","-x-"]
[null,null,null,null,null,null,null,null,null,null,null,null,"-x-","-x-",null,null,null,null,null,null,"-x-","-x-",null,null,null,null,null,null,"-x-","-x-",null,null,null,null,null,null,"-x-","-x-","-x-",null,null,null,null,null,null,"-x-","-x-",null,null,null,null,null,null,"-x-","-x-"]
[null,null,null,null,null,null,null,null,null,null,null,null,"-x-","-x-",null,null,null,null,null,null,"-x-","-x-",null,null,null,null,null,null,"-x-","-x-",null,null,null,null,null,null,"-x-","-x-","-x-",null,null,null,null,null,null,"-x-","-x-",null,null,null,null,null,null,"-x-","-x-"]
[null,null,null,null,null,null,null,null,null,null,null,null,"-x-","-x-",null,null,null,null,null,null,"-x-","-x-",null,null,null,null,null,null,"-x-","-x-",null,null,null,null,null,null,"-x-","-x-","-x-",null,null,null,null,null,null,"-x-","-x-",null,null,null,null,null,null,"-x-","-x-"]
[null,null,null,null,null,null,null,null,null,null,null,null,"-x-","-x-",null,null,null,null,null,null,"-x-","-x-",null,null,null,null,null,null,"-x-","-x-",null,null,null,null,null,null,"-x-","-x-","-x-",null,null,null,null,null,null,"-x-","-x-",null,null,null,null,null,null,"-x-","-x-"]
[null,null,null,null,null,null,null,null,null,null,null,null,"-x-","-x-",null,null,null,null,null,null,"-x-","-x-",null,null,null,null,null,null,"-x-","-x-",null,null,null,null,null,null,"-x-","-x-","-x-",null,null,null,null,null,null,"-x-","-x-",null,null,null,null,null,null,"-x-","-x-"]
[null,null,null,null,null,null,null,null,null,null,null,null,"-x-","-x-",null,null,null,null,null,null,"-x-","-x-",null,null,null,null,null,null,"-x-","-x-",null,null,null,null,null,null,"-x-","-x-","-x-",null,null,null,null,null,null,"-x-","-x-",null,null,null,null,null,null,"-x-","-x-"]
[null,null,null,null,null,null,null,null,null,null,null,null,"-x-","-x-",null,null,null,null,null,null,"-x-","-x-",null,null,null,null,null,null,"-x-","-x-",null,null,null,null,null,null,"-x-","-x-","-x-",null,null,null,null,null,null,"-x-","-x-",null,null,null,null,null,null,"-x-","-x-"]
[null,null,null,null,null,null,null,null,null,null,null,null,"-x-","-x-",null,null,null,null,null,null,"-x-","-x-",null,null,null,null,null,null,"-x-","-x-",null,null,null,null,null,null,"-x-","-x-","-x-",null,null,null,null,null,null,"-x-","-x-",null,null,null,null,null,null,"-x-","-x-"]
[null,null,null,null,null,null,null,null,null,null,null,null,"-x-","-x-",null,null,null,null,null,null,"-x-","-x-",null,null,null,null,null,null,"-x-","-x-",null,null,null,null,null,null,"-x-","-x-","-x-",null,null,null,null,null,null,"-x-","-x-",null,null,null,null,null,null,"-x-","-x-"]
[null,null,null,null,null,null,null,null,null,null,null,null,"-x-","-x-",null,null,null,null,null,null,"-x-","-x-",null,null,null,null,null,null,"-x-","-x-",null,null,null,null,null,null,"-x-","-x-","-x-",null,null,null,null,null,null,"-x-","-x-",null,null,null,null,null,null,"-x-","-x-"]
[null,null,null,null,null,null,null,null,null,null,null,null,"-x-","-x-",null,null,null,null,null,null,"-x-","-x-",null,null,null,null,null,null,"-x-","-x-",null,null,null,null,null,null,"-x-","-x-","-x-",null,null,null,null,null,null,"-x-","-x-",null,null,null,null,null,null,"-x-","-x-"]
[null,null,null,null,null,null,null,null,null,null,null,null,"-x-","-x-",null,null,null,null,null,null,"-x-","-x-",null,null,null,null,null,null,"-x-","-x-",null,null,null,null,null,null,"-x-","-x-","-x-",null,null,null,null,null,null,"-x-","-x-",null,null,null,null,null,null,"-x-","-x-"]
[null,null,null,null,null,null,null,null,null,null,null,null,"-x-","-x-",null,null,null,null,null,null,"-x-","-x-",null,null,null,null,null,null,"-x-","-x-",null,null,null,null,null,null,"-x-","-x-","-x-",null,null,null,null,null,null,"-x-","-x-",null,null,null,null,null,null,"-x-","-x-"]
[null,null,null,null,null,null,null,null,null,null,null,null,"-x-","-x-",null,null,null,null,null,null,"-x-","-x-",null,null,null,null,null,null,"-x-","-x-",null,null,null,null,null,null,"-x-","-x-","-x-",null,null,null,null,null,null,"-x-","-x-",null,null,null,null,null,null,"-x-","-x-"]
[null,null,null,null,null,null,null,null,null,null,null,null,"-x-","-x-",null,null,null,null,null,null,"-x-","-x-",null,null,null,null,null,null,"-x-","-x-",null,null,null,null,null,null,"-x-","-x-","-x-",null,null,null,null,null,null,"-x-","-x-",null,null,null,null,null,null,"-x-","-x-"]
[null,null,null,null,null,null,null,null,null,null,null,null,"-x-","-x-",null,null,null,null,null,null,"-x-","-x-",null,null,null,null,null,null,"-x-","-x-",null,null,null,null,null,null,"-x-","-x-","-x-",null,null,null,null,null,null,"-x-","-x-",null,null,null,null,null,null,"-x-","-x-"]
[null,null,null,null,null,null,null,null,null,null,null,null,"-x-","-x-",null,null,null,null,null,null,"-x-","-x-",null,null,null,null,null,null,"-x-","-x-",null,null,null,null,null,null,"-x-","-x-","-x-",null,null,null,null,null,null,"-x-","-x-",null,null,null,null,null,null,"-x-","-x-"]
[null,null,null,null,null,null,null,null,null,null,null,null,"-x-","-x-",null,null,null,null,null,null,"-x-","-x-",null,null,null,null,null,null,"-x-","-x-",null,null,null,null,null,null,"-x-","-x-","-x-",null,null,null,null,null,null,"-x-","-x-",null,null,null,null,null,null,"-x-","-x-"]
[null,null,null,null,null,null,null,null,null,null,null,null,"-x-","-x-",null,null,null,null,null,null,"-x-","-x-",null,null,null,null,null,null,"-x-","-x-",null,null,null,null,null,null,"-x-","-x-","-x-",null,null,null,null,null,null,"-x-","-x-",null,null,null,null,null,null,"-x-","-x-"]
[null,null,null,null,null,null,null,null,null,null,null,null,"-x-","-x-",null,null,null,null,null,null,"-x-","-x-",null,null,null,null,null,null,"-x-","-x-",null,null,null,null,null,null,"-x-","-x-","-x-",null,null,null,null,null,null,"-x-","-x-",null,null,null,null,null,null,"-x-","-x-"]
[null,null,null,null,null,null,null,null,null,null,null,null,"-x-","-x-",null,null,null,null,null,null,"-x-","-x-",null,null,null,null,null,null,"-x-","-x-",null,null,null,null,null,null,"-x-","-x-","-x-",null,null,null,null,null,null,"-x-","-x-",null,null,null,null,null,null,"-x-","-x-"]
[null,null,null,null,null,null,null,null,null,null,null,null,"-x-","-x-",null,null,null,null,null,null,"-x-","-x-",null,null,null,null,null,null,"-x-","-x-",null,null,null,null,null,null,"-x-","-x-","-x-",null,null,null,null,null,null,"-x-","-x-",null,null,null,null,null,null,"-x-","-x-"]
[null,null,null,null,null,null,null,null,null,null,null,null,"-x-","-x-",null,null,null,null,null,null,"-x-","-x-",null,null,null,null,null,null,"-x-","-x-",null,null,null,null,null,null,"-x-","-x-","-x-",null,null,null,null,null,null,"-x-","-x-",null,null,null,null,null,null,"-x-","-x-"]
[null,null,null,null,null,null,null,null,null,null,null,null,"-x-","-x-",null,null,null,null,null,null,"-x-","-x-",null,null,null,null,null,null,"-x-","-x-",null,null,null,null,null,null,"-x-","-x-","-x-",null,null,null,null,null,null,"-x-","-x-",null,null,null,null,null,null,"-x-","-x-"]
[null,null,null,null,null,null,null,null,null,null,null,null,"-x-","-x-",null,null,null,null,null,null,"-x-","-x-",null,null,null,null,null,null,"-x-","-x-",null,null,null,null,null,null,"-x-","-x-","-x-",null,null,null,null,null,null,"-x-","-x-",null,null,null,null,null,null,"-x-","-x-"]
[null,null,null,null,null,null,null,null,null,null,null,null,"-x-","-x-",null,null,null,null,null,null,"-x-","-x-",null,null,null,null,null,null,"-x-","-x-",null,null,null,null,null,null,"-x-","-x-","-x-",null,null,null,null,null,null,"-x-","-x-",null,null,null,null,null,null,"-x-","-x-"]
[null,null,null,null,null,null,null,null,null,null,null,null,"-x-","-x-",null,null,null,null,null,null,"-x-","-x-",null,null,null,null,null,null,"-x-","-x-",null,null,null,null,null,null,"-x-","-x-","-x-",null,null,null,null,null,null,"-x-","-x-",null,null,null,null,null,null,"-x-","-x-"]
[null,null,null,null,null,null,null,null,null,null,null,null,"-x-","-x-",null,null,null,null,null,null,"-x-","-x-",null,null,null,null,null,null,"-x-","-x-",null,null,null,null,null,null,"-x-","-x-","-x-",null,null,null,null,null,null,"-x-","-x-",null,null,null,null,null,null,"-x-","-x-"]
[null,null,null,null,null,null,null,null,null,null,null,null,"-x-","-x-",null,null,null,null,null,null,"-x-","-x-",null,null,null,null,null,null,"-x-","-x-",null,null,null,null,null,null,"-x-","-x-","-x-",null,null,null,null,null,null,"-x-","-x-",null,null,null,null,null,null,"-x-","-x-"]
[null,null,null,null,null,null,null,null,null,null,null,null,"-x-","-x-",null,null,null,null,null,null,"-x-","-x-",null,null,null,null,null,null,"-x-","-x-",null,null,null,null,null,null,"-x-","-x-","-x-",null,null,null,null,null,null,"-x-","-x-",null,null,null,null,null,null,"-x-","-x-"]
[null,null,null,null,null,null,null,null,null,null,null,null,"-x-","-x-",null,null,null,null,null,null,"-x-","-x-",null,null,null,null,null,null,"-x-","-x-",null,null,null,null,null,null,"-x-","-x-","-x-",null,null,null,null,null,null,"-x-","-x-",null,null,null,null,null,null,"-x-","-x-"]
[null,null,null,null,null,null,null,null,null,null,null,null,"-x-","-x-",null,null,null,null,null,null,"-x-","-x-",null,null,null,null,null,null,"-x-","-x-",null,null,null,null,null,null,"-x-","-x-","-x-",null,null,null,null,null,null,"-x-","-x-",null,null,null,null,null,null,"-x-","-x-"]
[null,null,null,null,null,null,null,null,null,null,null,null,"-x-","-x-",null,null,null,null,null,null,"-x-","-x-",null,null,null,null,null,null,"-x-","-x-",null,null,null,null,null,null,"-x-","-x-","-x-",null,null,null,null,null,null,"-x-","-x-",null,null,null,null,null,null,"-x-","-x-"]
[null,null,null,null,null,null,null,null,null,null,null,null,"-x-","-x-",null,null,null,null,null,null,"-x-","-x-",null,null,null,null,null,null,"-x-","-x-",null,null,null,null,null,null,"-x-","-x-","-x-",null,null,null,null,null,null,"-x-","-x-",null,null,null,null,null,null,"-x-","-x-"]
[null,null,null,null,null,null,null,null,null,null,null,null,"-x-","-x-",null,null,null,null,null,null,"-x-","-x-",null,null,null,null,null,null,"-x-","-x-",null,null,null,null,null,null,"-x-","-x-","-x-",null,null,null,null,null,null,"-x-","-x-",null,null,null,null,null,null,"-x-","-x-"]
[null,null,null,null,null,null,null,null,null,null,null,null,"-x-","-x-",null,null,null,null,null,null,"-x-","-x-",null,null,null,null,null,null,"-x-","-x-",null,null,null,null,null,null,"-x-","-x-","-x-",null,null,null,null,null,null,"-x-","-x-",null,null,null,null,null,null,"-x-","-x-"]
[null,null,null,null,null,null,null,null,null,null,null,null,{"$f":"IFERROR(MEDIAN(H134:L134),\"-x-\")","v":"-x-"},{"$f":"IFERROR(AVERAGEIFS(H134:L134,H134:L134,\">0\",H134:L134,\"<50\"),\"-x-\")","v":"-x-"},null,null,null,null,null,null,{"$f":"IFERROR(MEDIAN(P134:T134),\"-x-\")","v":"-x-"},{"$f":"IFERROR(AVERAGEIFS(P134:T134,P134:T134,\">0\",P134:T134,\"<50\"),\"-x-\")","v":"-x-"},null,null,null,null,null,null,{"$f":"IFERROR(MEDIAN(X134:AB134),\"-x-\")","v":"-x-"},{"$f":"IFERROR(AVERAGE(X134:AB134),\"-x-\")","v":"-x-"},null,null,null,null,null,null,{"$f":"IF(MAX(AF134:AJ134)=0,\"-x-\",MAX(AF134:AJ134))","v":"-x-"},{"$f":"IFERROR(AJ134/AK134,\"-x-\")","v":"-x-"},"-x-",null,null,null,null,null,null,{"$f":"IFERROR(MEDIAN(AO134:AS134),\"-x-\")","v":"-x-"},{"$f":"IFERROR(AVERAGEIFS(AO134:AS134,AO134:AS134,\">0\",AO134:AS134,\"<50\"),\"-x-\")","v":"-x-"},null,null,null,null,null,null,{"$f":"IFERROR(MEDIAN(AW134:BA134),\"-x-\")","v":"-x-"},{"$f":"IFERROR(AVERAGEIFS(AW134:BA134,AW134:BA134,\">0\",AW134:BA134,\"<50\"),\"-x-\")","v":"-x-"}]
[null,null,null,null,null,null,null,null,null,null,null,null,"-x-","-x-",null,null,null,null,null,null,"-x-","-x-",null,null,null,null,null,null,"-x-","-x-",null,null,null,null,null,null,"-x-","-x-",{"$f":"IFERROR(AVERAGEIFS(AF135:AJ135,AF135:AJ135,\">0\",AF135:AJ135,\"<30\"),\"-x-\")","v":"-x-"},null,null,null,null,null,null,"-x-","-x-",null,null,null,null,null,null,"-x-","-x-"]
[null,null,null,null,null,null,null,null,null,null,null,null,"-x-","-x-",null,null,null,null,null,null,"-x-","-x-",null,null,null,null,null,null,"-x-","-x-",null,null,null,null,null,null,"-x-","-x-","-x-",null,null,null,null,null,null,"-x-","-x-",null,null,null,null,null,null,"-x-","-x-"]
[null,null,null,null,null,null,null,null,null,null,null,null,"-x-","-x-",null,null,null,null,null,null,"-x-","-x-",null,null,null,null,null,null,"-x-","-x-",null,null,null,null,null,null,"-x-","-x-","-x-",null,null,null,null,null,null,"-x-","-x-",null,null,null,null,null,null,"-x-","-x-"]
[null,null,null,null,null,null,null,null,null,null,null,null,"-x-","-x-",null,null,null,null,null,null,"-x-","-x-",null,null,null,null,null,null,"-x-","-x-",null,null,null,null,null,null,"-x-","-x-","-x-",null,null,null,null,null,null,"-x-","-x-",null,null,null,null,null,null,"-x-","-x-"]
[null,null,null,null,null,null,null,null,null,null,null,null,"-x-","-x-",null,null,null,null,null,null,"-x-","-x-",null,null,null,null,null,null,"-x-","-x-",null,null,null,null,null,null,"-x-","-x-","-x-",null,null,null,null,null,null,"-x-","-x-",null,null,null,null,null,null,"-x-","-x-"]
[null,null,null,null,null,null,null,null,null,null,null,null,"-x-","-x-",null,null,null,null,null,null,"-x-","-x-",null,null,null,null,null,null,"-x-","-x-",null,null,null,null,null,null,"-x-","-x-","-x-",null,null,null,null,null,null,"-x-","-x-",null,null,null,null,null,null,"-x-","-x-"]
[null,null,null,null,null,null,null,null,null,null,null,null,"-x-","-x-",null,null,null,null,null,null,"-x-","-x-",null,null,null,null,null,null,"-x-","-x-",null,null,null,null,null,null,"-x-","-x-","-x-",null,null,null,null,null,null,"-x-","-x-",null,null,null,null,null,null,"-x-","-x-"]
[null,null,null,null,null,null,null,null,null,null,null,null,"-x-","-x-",null,null,null,null,null,null,"-x-","-x-",null,null,null,null,null,null,"-x-","-x-",null,null,null,null,null,null,"-x-","-x-","-x-",null,null,null,null,null,null,"-x-","-x-",null,null,null,null,null,null,"-x-","-x-"]
[null,null,null,null,null,null,null,null,null,null,null,null,"-x-","-x-",null,null,null,null,null,null,"-x-","-x-",null,null,null,null,null,null,"-x-","-x-",null,null,null,null,null,null,"-x-","-x-","-x-",null,null,null,null,null,null,"-x-","-x-",null,null,null,null,null,null,"-x-","-x-"]
[null,null,null,null,null,null,null,null,null,null,null,null,"-x-","-x-",null,null,null,null,null,null,"-x-","-x-",null,null,null,null,null,null,"-x-","-x-",null,null,null,null,null,null,"-x-","-x-","-x-",null,null,null,null,null,null,"-x-","-x-",null,null,null,null,null,null,"-x-","-x-"]
[null,null,null,null,null,null,null,null,null,null,null,null,"-x-","-x-",null,null,null,null,null,null,"-x-","-x-",null,null,null,null,null,null,"-x-","-x-",null,null,null,null,null,null,"-x-","-x-","-x-",null,null,null,null,null,null,"-x-","-x-",null,null,null,null,null,null,"-x-","-x-"]
[null,null,null,null,null,null,null,null,null,null,null,null,"-x-","-x-",null,null,null,null,null,null,"-x-","-x-",null,null,null,null,null,null,"-x-","-x-",null,null,null,null,null,null,"-x-","-x-","-x-",null,null,null,null,null,null,"-x-","-x-",null,null,null,null,null,null,"-x-","-x-"]
[null,null,null,null,null,null,null,null,null,null,null,null,"-x-","-x-",null,null,null,null,null,null,"-x-","-x-",null,null,null,null,null,null,"-x-","-x-",null,null,null,null,null,null,"-x-","-x-","-x-",null,null,null,null,null,null,"-x-","-x-",null,null,null,null,null,null,"-x-","-x-"]
[null,null,null,null,null,null,null,null,null,null,null,null,"-x-","-x-",null,null,null,null,null,null,"-x-","-x-",null,null,null,null,null,null,"-x-","-x-",null,null,null,null,null,null,"-x-","-x-","-x-",null,null,null,null,null,null,"-x-","-x-",null,null,null,null,null,null,"-x-","-x-"]
[null,null,null,null,null,null,null,null,null,null,null,null,"-x-","-x-",null,null,null,null,null,null,"-x-","-x-",null,null,null,null,null,null,"-x-","-x-",null,null,null,null,null,null,"-x-","-x-","-x-",null,null,null,null,null,null,"-x-","-x-",null,null,null,null,null,null,"-x-","-x-"]
[null,null,null,null,null,null,null,null,null,null,null,null,"-x-","-x-",null,null,null,null,null,null,"-x-","-x-",null,null,null,null,null,null,"-x-","-x-",null,null,null,null,null,null,"-x-","-x-","-x-",null,null,null,null,null,null,"-x-","-x-",null,null,null,null,null,null,"-x-","-x-"]
[null,null,null,null,null,null,null,null,null,null,null,null,"-x-","-x-",null,null,null,null,null,null,"-x-","-x-",null,null,null,null,null,null,"-x-","-x-",null,null,null,null,null,null,"-x-","-x-","-x-",null,null,null,null,null,null,"-x-","-x-",null,null,null,null,null,null,"-x-","-x-"]
[null,null,null,null,null,null,null,null,null,null,null,null,"-x-","-x-",null,null,null,null,null,null,"-x-","-x-",null,null,null,null,null,null,"-x-","-x-",null,null,null,null,null,null,"-x-","-x-","-x-",null,null,null,null,null,null,"-x-","-x-",null,null,null,null,null,null,"-x-","-x-"]
[null,null,null,null,null,null,null,null,null,null,null,null,"-x-","-x-",null,null,null,null,null,null,"-x-","-x-",null,null,null,null,null,null,"-x-","-x-",null,null,null,null,null,null,"-x-","-x-","-x-",null,null,null,null,null,null,"-x-","-x-",null,null,null,null,null,null,"-x-","-x-"]
[null,null,null,null,null,null,null,null,null,null,null,null,"-x-","-x-",null,null,null,null,null,null,"-x-","-x-",null,null,null,null,null,null,"-x-","-x-",null,null,null,null,null,null,"-x-","-x-","-x-",null,null,null,null,null,null,"-x-","-x-",null,null,null,null,null,null,"-x-","-x-"]
[null,null,null,null,null,null,null,null,null,null,null,null,"-x-","-x-",null,null,null,null,null,null,"-x-","-x-",null,null,null,null,null,null,"-x-","-x-",null,null,null,null,null,null,"-x-","-x-","-x-",null,null,null,null,null,null,"-x-","-x-",null,null,null,null,null,null,"-x-","-x-"]
[null,null,null,null,null,null,null,null,null,null,null,null,"-x-","-x-",null,null,null,null,null,null,"-x-","-x-",null,null,null,null,null,null,"-x-","-x-",null,null,null,null,null,null,"-x-","-x-","-x-",null,null,null,null,null,null,"-x-","-x-",null,null,null,null,null,null,"-x-","-x-"]
[null,null,null,null,null,null,null,null,null,null,null,null,"-x-","-x-",null,null,null,null,null,null,"-x-","-x-",null,null,null,null,null,null,"-x-","-x-",null,null,null,null,null,null,"-x-","-x-","-x-",null,null,null,null,null,null,"-x-","-x-",null,null,null,null,null,null,"-x-","-x-"]
[null,null,null,null,null,null,null,null,null,null,null,null,"-x-","-x-",null,null,null,null,null,null,"-x-","-x-",null,null,null,null,null,null,"-x-","-x-",null,null,null,null,null,null,"-x-","-x-","-x-",null,null,null,null,null,null,"-x-","-x-",null,null,null,null,null,null,"-x-","-x-"]
[null,null,null,null,null,null,null,null,null,null,null,null,"-x-","-x-",null,null,null,null,null,null,"-x-","-x-",null,null,null,null,null,null,"-x-","-x-",null,null,null,null,null,null,"-x-","-x-","-x-",null,null,null,null,null,null,"-x-","-x-",null,null,null,null,null,null,"-x-","-x-"]
[null,null,null,null,null,null,null,null,null,null,null,null,"-x-","-x-",null,null,null,null,null,null,"-x-","-x-",null,null,null,null,null,null,"-x-","-x-",null,null,null,null,null,null,"-x-","-x-","-x-",null,null,null,null,null,null,"-x-","-x-",null,null,null,null,null,null,"-x-","-x-"]
[null,null,null,null,null,null,null,null,null,null,null,null,"-x-","-x-",null,null,null,null,null,null,"-x-","-x-",null,null,null,null,null,null,"-x-","-x-",null,null,null,null,null,null,"-x-","-x-","-x-",null,null,null,null,null,null,"-x-","-x-",null,null,null,null,null,null,"-x-","-x-"]
[null,null,null,null,null,null,null,null,null,null,null,null,"-x-","-x-",null,null,null,null,null,null,"-x-","-x-",null,null,null,null,null,null,"-x-","-x-",null,null,null,null,null,null,"-x-","-x-","-x-",null,null,null,null,null,null,"-x-","-x-",null,null,null,null,null,null,"-x-","-x-"]
[null,null,null,null,null,null,null,null,null,null,null,null,"-x-","-x-",null,null,null,null,null,null,"-x-","-x-",null,null,null,null,null,null,"-x-","-x-",null,null,null,null,null,null,"-x-","-x-","-x-",null,null,null,null,null,null,"-x-","-x-",null,null,null,null,null,null,"-x-","-x-"]
[null,null,null,null,null,null,null,null,null,null,null,null,"-x-","-x-",null,null,null,null,null,null,"-x-","-x-",null,null,null,null,null,null,"-x-","-x-",null,null,null,null,null,null,"-x-","-x-","-x-",null,null,null,null,null,null,"-x-","-x-",null,null,null,null,null,null,"-x-","-x-"]
[null,null,null,null,null,null,null,null,null,null,null,null,"-x-","-x-",null,null,null,null,null,null,"-x-","-x-",null,null,null,null,null,null,"-x-","-x-",null,null,null,null,null,null,"-x-","-x-","-x-",null,null,null,null,null,null,"-x-","-x-",null,null,null,null,null,null,"-x-","-x-"]
[null,null,null,null,null,null,null,null,null,null,null,null,"-x-","-x-",null,null,null,null,null,null,"-x-","-x-",null,null,null,null,null,null,"-x-","-x-",null,null,null,null,null,null,"-x-","-x-","-x-",null,null,null,null,null,null,"-x-","-x-",null,null,null,null,null,null,"-x-","-x-"]
[null,null,null,null,null,null,null,null,null,null,null,null,"-x-","-x-",null,null,null,null,null,null,"-x-","-x-",null,null,null,null,null,null,"-x-","-x-",null,null,null,null,null,null,"-x-","-x-","-x-",null,null,null,null,null,null,"-x-","-x-",null,null,null,null,null,null,"-x-","-x-"]
[null,null,null,null,null,null,null,null,null,null,null,null,"-x-","-x-",null,null,null,null,null,null,"-x-","-x-",null,null,null,null,null,null,"-x-","-x-",null,null,null,null,null,null,"-x-","-x-","-x-",null,null,null,null,null,null,"-x-","-x-",null,null,null,null,null,null,"-x-","-x-"]
[null,null,null,null,null,null,null,null,null,null,null,null,"-x-","-x-",null,null,null,null,null,null,"-x-","-x-",null,null,null,null,null,null,"-x-","-x-",null,null,null,null,null,null,"-x-","-x-","-x-",null,null,null,null,null,null,"-x-","-x-",null,null,null,null,null,null,"-x-","-x-"]
[null,null,null,null,null,null,null,null,null,null,null,null,"-x-","-x-",null,null,null,null,null,null,"-x-","-x-",null,null,null,null,null,null,"-x-","-x-",null,null,null,null,null,null,"-x-","-x-","-x-",null,null,null,null,null,null,"-x-","-x-",null,null,null,null,null,null,"-x-","-x-"]
[null,null,null,null,null,null,null,null,null,null,null,null,"-x-","-x-",null,null,null,null,null,null,"-x-","-x-",null,null,null,null,null,null,"-x-","-x-",null,null,null,null,null,null,"-x-","-x-","-x-",null,null,null,null,null,null,"-x-","-x-",null,null,null,null,null,null,"-x-","-x-"]
[null,null,null,null,null,null,null,null,null,null,null,null,"-x-","-x-",null,null,null,null,null,null,"-x-","-x-",null,null,null,null,null,null,"-x-","-x-",null,null,null,null,null,null,"-x-","-x-","-x-",null,null,null,null,null,null,"-x-","-x-",null,null,null,null,null,null,"-x-","-x-"]
[null,null,null,null,null,null,null,null,null,null,null,null,"-x-","-x-",null,null,null,null,null,null,"-x-","-x-",null,null,null,null,null,null,"-x-","-x-",null,null,null,null,null,null,"-x-","-x-","-x-",null,null,null,null,null,null,"-x-","-x-",null,null,null,null,null,null,"-x-","-x-"]
[null,null,null,null,null,null,null,null,null,null,null,null,"-x-","-x-",null,null,null,null,null,null,"-x-","-x-",null,null,null,null,null,null,"-x-","-x-",null,null,null,null,null,null,"-x-","-x-","-x-",null,null,null,null,null,null,"-x-","-x-",null,null,null,null,null,null,"-x-","-x-"]
[null,null,null,null,null,null,null,null,null,null,null,null,"-x-","-x-",null,null,null,null,null,null,"-x-","-x-",null,null,null,null,null,null,"-x-","-x-",null,null,null,null,null,null,"-x-","-x-","-x-",null,null,null,null,null,null,"-x-","-x-",null,null,null,null,null,null,"-x-","-x-"]
[null,null,null,null,null,null,null,null,null,null,null,null,"-x-","-x-",null,null,null,null,null,null,"-x-","-x-",null,null,null,null,null,null,"-x-","-x-",null,null,null,null,null,null,"-x-","-x-","-x-",null,null,null,null,null,null,"-x-","-x-",null,null,null,null,null,null,"-x-","-x-"]
[null,null,null,null,null,null,null,null,null,null,null,null,"-x-","-x-",null,null,null,null,null,null,"-x-","-x-",null,null,null,null,null,null,"-x-","-x-",null,null,null,null,null,null,"-x-","-x-","-x-",null,null,null,null,null,null,"-x-","-x-",null,null,null,null,null,null,"-x-","-x-"]
[null,null,null,null,null,null,null,null,null,null,null,null,"-x-","-x-",null,null,null,null,null,null,"-x-","-x-",null,null,null,null,null,null,"-x-","-x-",null,null,null,null,null,null,"-x-","-x-","-x-",null,null,null,null,null,null,"-x-","-x-",null,null,null,null,null,null,"-x-","-x-"]
[null,null,null,null,null,null,null,null,null,null,null,null,"-x-","-x-",null,null,null,null,null,null,"-x-","-x-",null,null,null,null,null,null,"-x-","-x-",null,null,null,null,null,null,"-x-","-x-","-x-",null,null,null,null,null,null,"-x-","-x-",null,null,null,null,null,null,"-x-","-x-"]
[null,null,null,null,null,null,null,null,null,null,null,null,"-x-","-x-",null,null,null,null,null,null,"-x-","-x-",null,null,null,null,null,null,"-x-","-x-",null,null,null,null,null,null,"-x-","-x-","-x-",null,null,null,null,null,null,"-x-","-x-",null,null,null,null,null,null,"-x-","-x-"]
[null,null,null,null,null,null,null,null,null,null,null,null,"-x-","-x-",null,null,null,null,null,null,"-x-","-x-",null,null,null,null,null,null,"-x-","-x-",null,null,null,null,null,null,"-x-","-x-","-x-",null,null,null,null,null,null,"-x-","-x-",null,null,null,null,null,null,"-x-","-x-"]
[null,null,null,null,null,null,null,null,null,null,null,null,"-x-","-x-",null,null,null,null,null,null,"-x-","-x-",null,null,null,null,null,null,"-x-","-x-",null,null,null,null,null,null,"-x-","-x-","-x-",null,null,null,null,null,null,"-x-","-x-",null,null,null,null,null,null,"-x-","-x-"]
[null,null,null,null,null,null,null,null,null,null,null,null,"-x-","-x-",null,null,null,null,null,null,"-x-","-x-",null,null,null,null,null,null,"-x-","-x-",null,null,null,null,null,null,"-x-","-x-","-x-",null,null,null,null,null,null,"-x-","-x-",null,null,null,null,null,null,"-x-","-x-"]
[null,null,null,null,null,null,null,null,null,null,null,null,"-x-","-x-",null,null,null,null,null,null,"-x-","-x-",null,null,null,null,null,null,"-x-","-x-",null,null,null,null,null,null,"-x-","-x-","-x-",null,null,null,null,null,null,"-x-","-x-",null,null,null,null,null,null,"-x-","-x-"]
[null,null,null,null,null,null,null,null,null,null,null,null,"-x-","-x-",null,null,null,null,null,null,"-x-","-x-",null,null,null,null,null,null,"-x-","-x-",null,null,null,null,null,null,"-x-","-x-","-x-",null,null,null,null,null,null,"-x-","-x-",null,null,null,null,null,null,"-x-","-x-"]
[null,null,null,null,null,null,null,null,null,null,null,null,"-x-","-x-",null,null,null,null,null,null,"-x-","-x-",null,null,null,null,null,null,"-x-","-x-",null,null,null,null,null,null,"-x-","-x-","-x-",null,null,null,null,null,null,"-x-","-x-",null,null,null,null,null,null,"-x-","-x-"]
[null,null,null,null,null,null,null,null,null,null,null,null,"-x-","-x-",null,null,null,null,null,null,"-x-","-x-",null,null,null,null,null,null,"-x-","-x-",null,null,null,null,null,null,"-x-","-x-","-x-",null,null,null,null,null,null,"-x-","-x-",null,null,null,null,null,null,"-x-","-x-"]
[null,null,null,null,null,null,null,null,null,null,null,null,"-x-","-x-",null,null,null,null,null,null,"-x-","-x-",null,null,null,null,null,null,"-x-","-x-",null,null,null,null,null,null,"-x-","-x-","-x-",null,null,null,null,null,null,"-x-","-x-",null,null,null,null,null,null,"-x-","-x-"]
[null,null,null,null,null,null,null,null,null,null,null,null,"-x-","-x-",null,null,null,null,null,null,"-x-","-x-",null,null,null,null,null,null,"-x-","-x-",null,null,null,null,null,null,"-x-","-x-","-x-",null,null,null,null,null,null,"-x-","-x-",null,null,null,null,null,null,"-x-","-x-"]
[null,null,null,null,null,null,null,null,null,null,null,null,"-x-","-x-",null,null,null,null,null,null,"-x-","-x-",null,null,null,null,null,null,"-x-","-x-",null,null,null,null,null,null,"-x-","-x-","-x-",null,null,null,null,null,null,"-x-","-x-",null,null,null,null,null,null,"-x-","-x-"]
[null,null,null,null,null,null,null,null,null,null,null,null,"-x-","-x-",null,null,null,null,null,null,"-x-","-x-",null,null,null,null,null,null,"-x-","-x-",null,null,null,null,null,null,"-x-","-x-","-x-",null,null,null,null,null,null,"-x-","-x-",null,null,null,null,null,null,"-x-","-x-"]
[null,null,null,null,null,null,null,null,null,null,null,null,"-x-","-x-",null,null,null,null,null,null,"-x-","-x-",null,null,null,null,null,null,"-x-","-x-",null,null,null,null,null,null,"-x-","-x-","-x-",null,null,null,null,null,null,"-x-","-x-",null,null,null,null,null,null,"-x-","-x-"]
[null,null,null,null,null,null,null,null,null,null,null,null,"-x-","-x-",null,null,null,null,null,null,"-x-","-x-",null,null,null,null,null,null,"-x-","-x-",null,null,null,null,null,null,"-x-","-x-","-x-",null,null,null,null,null,null,"-x-","-x-",null,null,null,null,null,null,"-x-","-x-"]
[null,null,null,null,null,null,null,null,null,null,null,null,"-x-","-x-",null,null,null,null,null,null,"-x-","-x-",null,null,null,null,null,null,"-x-","-x-",null,null,null,null,null,null,"-x-","-x-","-x-",null,null,null,null,null,null,"-x-","-x-",null,null,null,null,null,null,"-x-","-x-"]
[null,null,null,null,null,null,null,null,null,null,null,null,"-x-","-x-",null,null,null,null,null,null,"-x-","-x-",null,null,null,null,null,null,"-x-","-x-",null,null,null,null,null,null,"-x-","-x-","-x-",null,null,null,null,null,null,"-x-","-x-",null,null,null,null,null,null,"-x-","-x-"]
[null,null,null,null,null,null,null,null,null,null,null,null,"-x-","-x-",null,null,null,null,null,null,"-x-","-x-",null,null,null,null,null,null,"-x-","-x-",null,null,null,null,null,null,"-x-","-x-","-x-",null,null,null,null,null,null,"-x-","-x-",null,null,null,null,null,null,"-x-","-x-"]
[null,null,null,null,null,null,null,null,null,null,null,null,"-x-","-x-",null,null,null,null,null,null,"-x-","-x-",null,null,null,null,null,null,"-x-","-x-",null,null,null,null,null,null,"-x-","-x-","-x-",null,null,null,null,null,null,"-x-","-x-",null,null,null,null,null,null,"-x-","-x-"]
[null,null,null,null,null,null,null,null,null,null,null,null,{"$f":"IFERROR(MEDIAN(H198:L198),\"-x-\")","v":"-x-"},{"$f":"IFERROR(AVERAGEIFS(H198:L198,H198:L198,\">0\",H198:L198,\"<50\"),\"-x-\")","v":"-x-"},null,null,null,null,null,null,{"$f":"IFERROR(MEDIAN(P198:T198),\"-x-\")","v":"-x-"},{"$f":"IFERROR(AVERAGEIFS(P198:T198,P198:T198,\">0\",P198:T198,\"<50\"),\"-x-\")","v":"-x-"},null,null,null,null,null,null,{"$f":"IFERROR(MEDIAN(X198:AB198),\"-x-\")","v":"-x-"},{"$f":"IFERROR(AVERAGE(X198:AB198),\"-x-\")","v":"-x-"},null,null,null,null,null,null,{"$f":"IF(MAX(AF198:AJ198)=0,\"-x-\",MAX(AF198:AJ198))","v":"-x-"},{"$f":"IFERROR(AJ198/AK198,\"-x-\")","v":"-x-"},"-x-",null,null,null,null,null,null,{"$f":"IFERROR(MEDIAN(AO198:AS198),\"-x-\")","v":"-x-"},{"$f":"IFERROR(AVERAGEIFS(AO198:AS198,AO198:AS198,\">0\",AO198:AS198,\"<50\"),\"-x-\")","v":"-x-"},null,null,null,null,null,null,{"$f":"IFERROR(MEDIAN(AW198:BA198),\"-x-\")","v":"-x-"},{"$f":"IFERROR(AVERAGEIFS(AW198:BA198,AW198:BA198,\">0\",AW198:BA198,\"<50\"),\"-x-\")","v":"-x-"}]
[null,null,null,null,null,null,null,null,null,null,null,null,{"$f":"IFERROR(MEDIAN(H199:L199),\"-x-\")","v":"-x-"},"-x-",null,null,null,null,null,null,{"$f":"IFERROR(MEDIAN(P199:T199),\"-x-\")","v":"-x-"},"-x-",null,null,null,null,null,null,{"$f":"IFERROR(MEDIAN(X199:AB199),\"-x-\")","v":"-x-"},"-x-",null,null,null,null,null,null,{"$f":"IF(MAX(AF199:AJ199)=0,\"-x-\",MAX(AF199:AJ199))","v":"-x-"},{"$f":"IFERROR(AJ199/AK199,\"-x-\")","v":"-x-"},{"$f":"IFERROR(AVERAGEIFS(AF199:AJ199,AF199:AJ199,\">0\",AF199:AJ199,\"<30\"),\"-x-\")","v":"-x-"},null,null,null,null,null,null,{"$f":"IFERROR(MEDIAN(AO199:AS199),\"-x-\")","v":"-x-"},"-x-",null,null,null,null,null,null,{"$f":"IFERROR(MEDIAN(AW199:BA199),\"-x-\")","v":"-x-"},"-x-"]
[null,null,null,null,null,null,null,null,null,null,null,null,{"$f":"IFERROR(MEDIAN(H200:L200),\"-x-\")","v":"-x-"},"-x-",null,null,null,null,null,null,{"$f":"IFERROR(MEDIAN(P200:T200),\"-x-\")","v":"-x-"},"-x-",null,null,null,null,null,null,{"$f":"IFERROR(MEDIAN(X200:AB200),\"-x-\")","v":"-x-"},"-x-",null,null,null,null,null,null,{"$f":"IF(MAX(AF200:AJ200)=0,\"-x-\",MAX(AF200:AJ200))","v":"-x-"},{"$f":"IFERROR(AJ200/AK200,\"-x-\")","v":"-x-"},"-x-",null,null,null,null,null,null,{"$f":"IFERROR(MEDIAN(AO200:AS200),\"-x-\")","v":"-x-"},"-x-",null,null,null,null,null,null,{"$f":"IFERROR(MEDIAN(AW200:BA200),\"-x-\")","v":"-x-"},"-x-"]

{"sheet":"Dividends","index":2,"n_rows":197,"n_cols":19,"rows_kept":197,"cut":false,"hidden":false,"merged":[[4,13,4,14],[4,5,4,6],[4,7,4,8],[4,9,4,10],[4,11,4,12]]}
[]
[null,"Date:",{"$f":"Factsheet!AC3","v":"2020-05-08"},"← Do not modify"]
[null,null,null,null,null,"DIVIDENDS ANNUALIZED"]
[]
[null,null,null,null,null,{"$f":"EOMONTH(H5,-12)","v":"2016-12-31"},null,{"$f":"EOMONTH(J5,-12)","v":"2017-12-31"},null,{"$f":"EOMONTH(L5,-12)","v":"2018-12-31"},null,{"$f":"DATE(YEAR(N5)-1,12,31)","v":"2019-12-31"},null,{"$f":"$C$2","v":"2020-05-08"},null,"Last 5 Years Indicators"]
[null,{"$f":"_xll.ECOSECURITIES(\"stock\",\"active\",\"true\",\"USA;COL;CHL;MEX;PER;ARG;BRA\",\"xnys;xnas;xbog;xsgo;XLIM;XMEX;XBSP;XBUE\",,,\"SECTOR NAICS=\"&SUBSTITUTE(_xll.ECONOMATICA(Factsheet!F5,\"SECTOR NAICS\"),\",\",\"\\,\"))","v":"Codigo"},{"$f":"_xll.ECONOMATICA($B$7:$B$195,\"name\")","v":"Nombre"},{"$f":"_xll.ECONOMATICA($B$7:$B$198,\"SECTOR NAICS\",,,,,,,,,\"SECTOR NAICS\")","v":"SECTOR NAICS"},{"$f":"_xll.ECONOMATICA($B$7:$B$198,\"Ticker\",,,,,,,,,\"Ticker\")","v":"Ticker"},{"$f":"_xll.ECONOMATICA($B$7:$B$195,\"Div Yld (start)\",,F5,,,\"usd\",\"DECIMAL\",,,\"% Dividend Yield\")","v":"% Dividend Yield"},{"$f":"_xll.ECONOMATICA($B$7:$B$195,\"Divid per Share\",,F5,,,\"usd\",,,,\"$\")","v":"$"},{"$f":"_xll.ECONOMATICA($B$7:$B$195,\"Div Yld (start)\",,H5,,,\"usd\",\"DECIMAL\",,,\"% Dividend Yield\")","v":"% Dividend Yield"},{"$f":"_xll.ECONOMATICA($B$7:$B$195,\"Divid per Share\",,H5,,,\"USD\",,,,\"$\")","v":"$"},{"$f":"_xll.ECONOMATICA($B$7:$B$195,\"Div Yld (start)\",,J5,,,\"USD\",\"DECIMAL\",,,\"% Dividend Yield\")","v":"% Dividend Yield"},{"$f":"_xll.ECONOMATICA($B$7:$B$195,\"Divid per Share\",,J5,,,\"USD\",,,,\"$\")","v":"$"},{"$f":"_xll.ECONOMATICA($B$7:$B$195,\"Div Yld (start)\",,L5,,,\"USD\",\"DECIMAL\",,,\"% Dividend Yield\")","v":"% Dividend Yield"},{"$f":"_xll.ECONOMATICA($B$7:$B$195,\"Divid per Share\",,L5,,,\"USD\",,,,\"$\")","v":"$"},{"$f":"_xll.ECONOMATICA($B$7:$B$195,\"Div Yld (start)\",,N5,,,\"USD\",\"DECIMAL\",,,\"% Dividend Yield\")","v":"% Dividend Yield"},{"$f":"_xll.ECONOMATICA($B$7:$B$195,\"Divid per Share\",,N5,,,\"USD\",,,,\"$\")","v":"$"},"AVG","Median","Max","Min"]
[null,"ALK<XNYS>","Alaska Air Group, Inc","Transporte aéreo regular","ALK",1.36628990187637E-2,1.10000000000036,1.35241744618725E-2,1.20000000000073,1.7412596925587401E-2,1.28000000000065,2.30073952341627E-2,1.39999999999964,2.3479980227384699E-2,1.4250000000010901,{"$f":"IF(MAX(,,F7,H7,J7,L7,N7)=0,\"\",AVERAGE(,,F7,H7,J7,L7,N7))","v":1.3012435123967285E-2},{"$f":"IF(MAX(,,F7,H7,J7,L7,N7)=0,\"\",MEDIAN(,,F7,H7,J7,L7,N7))","v":1.36628990187637E-2},{"$f":"IF(MAX(,,F7,H7,J7,L7,N7)=0,\"\",MAX(,,F7,H7,J7,L7,N7))","v":2.3479980227384699E-2},{"$f":"IF(MAX(,,F7,H7,J7,L7,N7)=0,\"\",MIN(,,F7,H7,J7,L7,N7))","v":0}]
[null,"ALGT<XNAS>","Allegiant Travel Co","Transporte aéreo regular","ALGT",1.43001847107007E-2,2.3999999999978199,1.6826923076932902E-2,2.7999999999992702,1.8093699515338801E-2,2.7999999999992702,2.7938535222528999E-2,2.7999999999992702,1.9700274396691399E-2,2.7999999999992702,1.3837088131741828E-2,{"$f":"IF(MAX(,,F8,H8,J8,L8,N8)=0,\"\",MEDIAN(,,F8,H8,J8,L8,N8))","v":1.6826923076932902E-2},2.7938535222528999E-2,0]
[null,"AAL<XNAS>","American Airlines Group Inc","Transporte aéreo regular","AAL",9.4451003541962605E-3,0.400000000000091,8.5671449989331502E-3,0.400000000000091,7.6878723813206297E-3,0.400000000000091,1.24571784490763E-2,0.400000000000091,8.8888888888868697E-3,0.30000000000018201,6.7208835817733157E-3,8.5671449989331502E-3,1.24571784490763E-2,0]
[null,"PFAVH<XBOG>","Avianca Holdings S.A.","Transporte aéreo regular","PFAVH",3.1312920866184903E-2,1.6821458049918199E-2,2.1548974199904501E-2,2.5689900758891299E-2,3.3726946321912699E-2,3.3481453495085099E-2,2.92627922237443E-2,1.4832392906100699E-2,3.2960082509125598E-2,1.4832392906100699E-2,2.1258816588695998E-2,2.92627922237443E-2,3.3726946321912699E-2,0]
[null,"AZUL4<XBSP>","Azul S.A.","Transporte aéreo regular","AZUL4",null,null,null,null,0,0,0,0,0,0,"","","",""]
[null,"CVA<XSGO>","Costa Verde Aeronautica S.A.","Transporte aéreo regular","CVA",null,0,null,2.2112873631272099E-2,null,2.6816852345319799E-2,null,9.0382765444161402E-3,null,0.19966575787179899,"","","",""]
[null,"DAL<XNYS>","Delta Air Lines, Inc","Transporte aéreo regular","DAL",1.33162359439666E-2,0.67500000000018201,2.0634275259180899E-2,1.0149999999994199,2.3392857142862301E-2,1.30999999999949,3.01603206412983E-2,1.50500000000102,2.13906111603137E-2,1.2075000000004401,1.5556328592517401E-2,2.0634275259180899E-2,3.01603206412983E-2,0]
[null,"GOLL4<XBSP>","Gol","Transporte aéreo regular","GOLL4",0,0,0,0,0,0,0,0,0,0,"","","",""]
[null,"HA<XNAS>","Hawaiian Hldg Inc","Transporte aéreo regular","HA",0,0,2.1052631578982101E-3,0.12000000000000501,1.2045169385200999E-2,0.48000000000001802,1.8174933737209398E-2,0.48000000000001802,1.7712177121775301E-2,0.48000000000001802,7.1482204860119861E-3,2.1052631578982101E-3,1.8174933737209398E-2,0]
[null,"JBLU<XNAS>","Jetblue Airways Corp","Transporte aéreo regular","JBLU",0,0,0,0,0,0,0,0,0,0,"","","",""]
[null,"LTM<XSGO>","Latam Airlines Group S.A.","Transporte aéreo regular","LTM",0,0,4.0491545023633099E-3,3.4244479189908403E-2,5.4219771946827696E-3,7.6831466768794598E-2,9.0300838356142804E-3,9.0006191454449394E-2,9.1138269329167094E-3,9.0006191454449394E-2,3.9450060665110103E-3,4.0491545023633099E-3,9.1138269329167094E-3,0]
[null,"MESA<XNAS>","Mesa Air Group Inc","Transporte aéreo regular","MESA",null,null,null,null,null,null,0,0,0,0,"","","",""]
[null,"SKYW<XNAS>","Skywest Inc","Transporte aéreo regular","SKYW",9.9894847528958098E-3,0.19000000000005501,8.7791495198962406E-3,0.32000000000016399,7.5329566854998101E-3,0.400000000000091,1.0793793568700499E-2,0.48000000000001802,8.3640013382410006E-3,0.5,6.494197980747623E-3,8.3640013382410006E-3,1.0793793568700499E-2,0]
[null,"LUV<XNYS>","Southwest Airlines Co.","Transporte aéreo regular","LUV",8.7087784486902797E-3,0.37500000000045502,9.5304975922954303E-3,0.474999999999909,9.2436974790052803E-3,0.60500000000047305,1.50602409638668E-2,0.69999999999981799,1.3737836290802099E-2,0.72000000000025499,8.0401501106656982E-3,9.2436974790052803E-3,1.50602409638668E-2,0]
[null,"SAVE<XNAS>","Spirit Airlines, Inc","Transporte aéreo regular","SAVE",0,0,0,0,0,0,0,0,0,0,"","","",""]
[null,"UAL<XNYS>","United Airlines Hldg Inc","Transporte aéreo regular","UAL",0,0,0,0,0,0,0,0,0,0,"","","",""]
[null,"VOLARA<XMEX>","Volaris","Transporte aéreo regular","VOLARA",0,0,0,0,0,0,0,0,0,0,"","","",""]
[null,null,null,null,null,null,null,null,null,null,null,null,null,null,null,"","","",""]
[null,null,null,null,null,null,null,null,null,null,null,null,null,null,null,"","","",""]
[null,null,null,null,null,null,null,null,null,null,null,null,null,null,null,"","","",""]
[null,null,null,null,null,null,null,null,null,null,null,null,null,null,null,"","","",""]
[null,null,null,null,null,null,null,null,null,null,null,null,null,null,null,"","","",""]
[null,null,null,null,null,null,null,null,null,null,null,null,null,null,null,"","","",""]
[null,null,null,null,null,null,null,null,null,null,null,null,null,null,null,"","","",""]
[null,null,null,null,null,null,null,null,null,null,null,null,null,null,null,"","","",""]
[null,null,null,null,null,null,null,null,null,null,null,null,null,null,null,"","","",""]
[null,null,null,null,null,null,null,null,null,null,null,null,null,null,null,"","","",""]
[null,null,null,null,null,null,null,null,null,null,null,null,null,null,null,"","","",""]
[null,null,null,null,null,null,null,null,null,null,null,null,null,null,null,"","","",""]
[null,null,null,null,null,null,null,null,null,null,null,null,null,null,null,"","","",""]
[null,null,null,null,null,null,null,null,null,null,null,null,null,null,null,"","","",""]
[null,null,null,null,null,null,null,null,null,null,null,null,null,null,null,"","","",""]
[null,null,null,null,null,null,null,null,null,null,null,null,null,null,null,{"$f":"IF(MAX(,,F39,H39,J39,L39,N39)=0,\"\",AVERAGE(,,F39,H39,J39,L39,N39))","v":""},"",{"$f":"IF(MAX(,,F39,H39,J39,L39,N39)=0,\"\",MAX(,,F39,H39,J39,L39,N39))","v":""},{"$f":"IF(MAX(,,F39,H39,J39,L39,N39)=0,\"\",MIN(,,F39,H39,J39,L39,N39))","v":""}]
[null,null,null,null,null,null,null,null,null,null,null,null,null,null,null,"","","",""]
[null,null,null,null,null,null,null,null,null,null,null,null,null,null,null,"","","",""]
[null,null,null,null,null,null,null,null,null,null,null,null,null,null,null,"","","",""]
[null,null,null,null,null,null,null,null,null,null,null,null,null,null,null,"","","",""]
[null,null,null,null,null,null,null,null,null,null,null,null,null,null,null,"","","",""]
[null,null,null,null,null,null,null,null,null,null,null,null,null,null,null,"","","",""]
[null,null,null,null,null,null,null,null,null,null,null,null,null,null,null,"","","",""]
[null,null,null,null,null,null,null,null,null,null,null,null,null,null,null,"","","",""]
[null,null,null,null,null,null,null,null,null,null,null,null,null,null,null,"","","",""]
[null,null,null,null,null,null,null,null,null,null,null,null,null,null,null,"","","",""]
[null,null,null,null,null,null,null,null,null,null,null,null,null,null,null,"","","",""]
[null,null,null,null,null,null,null,null,null,null,null,null,null,null,null,"","","",""]
[null,null,null,null,null,null,null,null,null,null,null,null,null,null,null,"","","",""]
[null,null,null,null,null,null,null,null,null,null,null,null,null,null,null,"","","",""]
[null,null,null,null,null,null,null,null,null,null,null,null,null,null,null,"","","",""]
[null,null,null,null,null,null,null,null,null,null,null,null,null,null,null,"","","",""]
[null,null,null,null,null,null,null,null,null,null,null,null,null,null,null,"","","",""]
[null,null,null,null,null,null,null,null,null,null,null,null,null,null,null,"","","",""]
[null,null,null,null,null,null,null,null,null,null,null,null,null,null,null,"","","",""]
[null,null,null,null,null,null,null,null,null,null,null,null,null,null,null,"","","",""]
[null,null,null,null,null,null,null,null,null,null,null,null,null,null,null,"","","",""]
[null,null,null,null,null,null,null,null,null,null,null,null,null,null,null,"","","",""]
[null,null,null,null,null,null,null,null,null,null,null,null,null,null,null,"","","",""]
[null,null,null,null,null,null,null,null,null,null,null,null,null,null,null,"","","",""]
[null,null,null,null,null,null,null,null,null,null,null,null,null,null,null,"","","",""]
[null,null,null,null,null,null,null,null,null,null,null,null,null,null,null,"","","",""]
[null,null,null,null,null,null,null,null,null,null,null,null,null,null,null,"","","",""]
[null,null,null,null,null,null,null,null,null,null,null,null,null,null,null,"","","",""]
[null,null,null,null,null,null,null,null,null,null,null,null,null,null,null,"","","",""]
[null,null,null,null,null,null,null,null,null,null,null,null,null,null,null,"","","",""]
[null,null,null,null,null,null,null,null,null,null,null,null,null,null,null,"","","",""]
[null,null,null,null,null,null,null,null,null,null,null,null,null,null,null,{"$f":"IF(MAX(,,F71,H71,J71,L71,N71)=0,\"\",AVERAGE(,,F71,H71,J71,L71,N71))","v":""},"",{"$f":"IF(MAX(,,F71,H71,J71,L71,N71)=0,\"\",MAX(,,F71,H71,J71,L71,N71))","v":""},{"$f":"IF(MAX(,,F71,H71,J71,L71,N71)=0,\"\",MIN(,,F71,H71,J71,L71,N71))","v":""}]
[null,null,null,null,null,null,null,null,null,null,null,null,null,null,null,"",{"$f":"IF(MAX(,,F72,H72,J72,L72,N72)=0,\"\",MEDIAN(,,F72,H72,J72,L72,N72))","v":""},"",""]
[null,null,null,null,null,null,null,null,null,null,null,null,null,null,null,"","","",""]
[null,null,null,null,null,null,null,null,null,null,null,null,null,null,null,"","","",""]
[null,null,null,null,null,null,null,null,null,null,null,null,null,null,null,"","","",""]
[null,null,null,null,null,null,null,null,null,null,null,null,null,null,null,"","","",""]
[null,null,null,null,null,null,null,null,null,null,null,null,null,null,null,"","","",""]
[null,null,null,null,null,null,null,null,null,null,null,null,null,null,null,"","","",""]
[null,null,null,null,null,null,null,null,null,null,null,null,null,null,null,"","","",""]
[null,null,null,null,null,null,null,null,null,null,null,null,null,null,null,"","","",""]
[null,null,null,null,null,null,null,null,null,null,null,null,null,null,null,"","","",""]
[null,null,null,null,null,null,null,null,null,null,null,null,null,null,null,"","","",""]
[null,null,null,null,null,null,null,null,null,null,null,null,null,null,null,"","","",""]
[null,null,null,null,null,null,null,null,null,null,null,null,null,null,null,"","","",""]
[null,null,null,null,null,null,null,null,null,null,null,null,null,null,null,"","","",""]
[null,null,null,null,null,null,null,null,null,null,null,null,null,null,null,"","","",""]
[null,null,null,null,null,null,null,null,null,null,null,null,null,null,null,"","","",""]
[null,null,null,null,null,null,null,null,null,null,null,null,null,null,null,"","","",""]
[null,null,null,null,null,null,null,null,null,null,null,null,null,null,null,"","","",""]
[null,null,null,null,null,null,null,null,null,null,null,null,null,null,null,"","","",""]
[null,null,null,null,null,null,null,null,null,null,null,null,null,null,null,"","","",""]
[null,null,null,null,null,null,null,null,null,null,null,null,null,null,null,"","","",""]
[null,null,null,null,null,null,null,null,null,null,null,null,null,null,null,"","","",""]
[null,null,null,null,null,null,null,null,null,null,null,null,null,null,null,"","","",""]
[null,null,null,null,null,null,null,null,null,null,null,null,null,null,null,"","","",""]
[null,null,null,null,null,null,null,null,null,null,null,null,null,null,null,"","","",""]
[null,null,null,null,null,null,null,null,null,null,null,null,null,null,null,"","","",""]
[null,null,null,null,null,null,null,null,null,null,null,null,null,null,null,"","","",""]
[null,null,null,null,null,null,null,null,null,null,null,null,null,null,null,"","","",""]
[null,null,null,null,null,null,null,null,null,null,null,null,null,null,null,"","","",""]
[null,null,null,null,null,null,null,null,null,null,null,null,null,null,null,"","","",""]
[null,null,null,null,null,null,null,null,null,null,null,null,null,null,null,"","","",""]
[null,null,null,null,null,null,null,null,null,null,null,null,null,null,null,{"$f":"IF(MAX(,,F103,H103,J103,L103,N103)=0,\"\",AVERAGE(,,F103,H103,J103,L103,N103))","v":""},"",{"$f":"IF(MAX(,,F103,H103,J103,L103,N103)=0,\"\",MAX(,,F103,H103,J103,L103,N103))","v":""},{"$f":"IF(MAX(,,F103,H103,J103,L103,N103)=0,\"\",MIN(,,F103,H103,J103,L103,N103))","v":""}]
[null,null,null,null,null,null,null,null,null,null,null,null,null,null,null,"","","",""]
[null,null,null,null,null,null,null,null,null,null,null,null,null,null,null,"","","",""]
[null,null,null,null,null,null,null,null,null,null,null,null,null,null,null,"","","",""]
[null,null,null,null,null,null,null,null,null,null,null,null,null,null,null,"","","",""]
[null,null,null,null,null,null,null,null,null,null,null,null,null,null,null,"","","",""]
[null,null,null,null,null,null,null,null,null,null,null,null,null,null,null,"","","",""]
[null,null,null,null,null,null,null,null,null,null,null,null,null,null,null,"","","",""]
[null,null,null,null,null,null,null,null,null,null,null,null,null,null,null,"","","",""]
[null,null,null,null,null,null,null,null,null,null,null,null,null,null,null,"","","",""]
[null,null,null,null,null,null,null,null,null,null,null,null,null,null,null,"","","",""]
[null,null,null,null,null,null,null,null,null,null,null,null,null,null,null,"","","",""]
[null,null,null,null,null,null,null,null,null,null,null,null,null,null,null,"","","",""]
[null,null,null,null,null,null,null,null,null,null,null,null,null,null,null,"","","",""]
[null,null,null,null,null,null,null,null,null,null,null,null,null,null,null,"","","",""]
[null,null,null,null,null,null,null,null,null,null,null,null,null,null,null,"","","",""]
[null,null,null,null,null,null,null,null,null,null,null,null,null,null,null,"","","",""]
[null,null,null,null,null,null,null,null,null,null,null,null,null,null,null,"","","",""]
[null,null,null,null,null,null,null,null,null,null,null,null,null,null,null,"","","",""]
[null,null,null,null,null,null,null,null,null,null,null,null,null,null,null,"","","",""]
[null,null,null,null,null,null,null,null,null,null,null,null,null,null,null,"","","",""]
[null,null,null,null,null,null,null,null,null,null,null,null,null,null,null,"","","",""]
[null,null,null,null,null,null,null,null,null,null,null,null,null,null,null,"","","",""]
[null,null,null,null,null,null,null,null,null,null,null,null,null,null,null,"","","",""]
[null,null,null,null,null,null,null,null,null,null,null,null,null,null,null,"","","",""]
[null,null,null,null,null,null,null,null,null,null,null,null,null,null,null,"","","",""]
[null,null,null,null,null,null,null,null,null,null,null,null,null,null,null,"","","",""]
[null,null,null,null,null,null,null,null,null,null,null,null,null,null,null,"","","",""]
[null,null,null,null,null,null,null,null,null,null,null,null,null,null,null,"","","",""]
[null,null,null,null,null,null,null,null,null,null,null,null,null,null,null,"","","",""]
[null,null,null,null,null,null,null,null,null,null,null,null,null,null,null,"","","",""]
[null,null,null,null,null,null,null,null,null,null,null,null,null,null,null,"","","",""]
[null,null,null,null,null,null,null,null,null,null,null,null,null,null,null,{"$f":"IF(MAX(,,F135,H135,J135,L135,N135)=0,\"\",AVERAGE(,,F135,H135,J135,L135,N135))","v":""},"",{"$f":"IF(MAX(,,F135,H135,J135,L135,N135)=0,\"\",MAX(,,F135,H135,J135,L135,N135))","v":""},{"$f":"IF(MAX(,,F135,H135,J135,L135,N135)=0,\"\",MIN(,,F135,H135,J135,L135,N135))","v":""}]
[null,null,null,null,null,null,null,null,null,null,null,null,null,null,null,"",{"$f":"IF(MAX(,,F136,H136,J136,L136,N136)=0,\"\",MEDIAN(,,F136,H136,J136,L136,N136))","v":""},"",""]
[null,null,null,null,null,null,null,null,null,null,null,null,null,null,null,"","","",""]
[null,null,null,null,null,null,null,null,null,null,null,null,null,null,null,"","","",""]
[null,null,null,null,null,null,null,null,null,null,null,null,null,null,null,"","","",""]
[null,null,null,null,null,null,null,null,null,null,null,null,null,null,null,"","","",""]
[null,null,null,null,null,null,null,null,null,null,null,null,null,null,null,"","","",""]
[null,null,null,null,null,null,null,null,null,null,null,null,null,null,null,"","","",""]
[null,null,null,null,null,null,null,null,null,null,null,null,null,null,null,"","","",""]
[null,null,null,null,null,null,null,null,null,null,null,null,null,null,null,"","","",""]
[null,null,null,null,null,null,null,null,null,null,null,null,null,null,null,"","","",""]
[null,null,null,null,null,null,null,null,null,null,null,null,null,null,null,"","","",""]
[null,null,null,null,null,null,null,null,null,null,null,null,null,null,null,"","","",""]
[null,null,null,null,null,null,null,null,null,null,null,null,null,null,null,"","","",""]
[null,null,null,null,null,null,null,null,null,null,null,null,null,null,null,"","","",""]
[null,null,null,null,null,null,null,null,null,null,null,null,null,null,null,"","","",""]
[null,null,null,null,null,null,null,null,null,null,null,null,null,null,null,"","","",""]
[null,null,null,null,null,null,null,null,null,null,null,null,null,null,null,"","","",""]
[null,null,null,null,null,null,null,null,null,null,null,null,null,null,null,"","","",""]
[null,null,null,null,null,null,null,null,null,null,null,null,null,null,null,"","","",""]
[null,null,null,null,null,null,null,null,null,null,null,null,null,null,null,"","","",""]
[null,null,null,null,null,null,null,null,null,null,null,null,null,null,null,"","","",""]
[null,null,null,null,null,null,null,null,null,null,null,null,null,null,null,"","","",""]
[null,null,null,null,null,null,null,null,null,null,null,null,null,null,null,"","","",""]
[null,null,null,null,null,null,null,null,null,null,null,null,null,null,null,"","","",""]
[null,null,null,null,null,null,null,null,null,null,null,null,null,null,null,"","","",""]
[null,null,null,null,null,null,null,null,null,null,null,null,null,null,null,"","","",""]
[null,null,null,null,null,null,null,null,null,null,null,null,null,null,null,"","","",""]
[null,null,null,null,null,null,null,null,null,null,null,null,null,null,null,"","","",""]
[null,null,null,null,null,null,null,null,null,null,null,null,null,null,null,"","","",""]
[null,null,null,null,null,null,null,null,null,null,null,null,null,null,null,"","","",""]
[null,null,null,null,null,null,null,null,null,null,null,null,null,null,null,"","","",""]
[null,null,null,null,null,null,null,null,null,null,null,null,null,null,null,{"$f":"IF(MAX(,,F167,H167,J167,L167,N167)=0,\"\",AVERAGE(,,F167,H167,J167,L167,N167))","v":""},"",{"$f":"IF(MAX(,,F167,H167,J167,L167,N167)=0,\"\",MAX(,,F167,H167,J167,L167,N167))","v":""},{"$f":"IF(MAX(,,F167,H167,J167,L167,N167)=0,\"\",MIN(,,F167,H167,J167,L167,N167))","v":""}]
[null,null,null,null,null,null,null,null,null,null,null,null,null,null,null,"","","",""]
[null,null,null,null,null,null,null,null,null,null,null,null,null,null,null,"","","",""]
[null,null,null,null,null,null,null,null,null,null,null,null,null,null,null,"","","",""]
[null,null,null,null,null,null,null,null,null,null,null,null,null,null,null,"","","",""]
[null,null,null,null,null,null,null,null,null,null,null,null,null,null,null,"","","",""]
[null,null,null,null,null,null,null,null,null,null,null,null,null,null,null,"","","",""]
[null,null,null,null,null,null,null,null,null,null,null,null,null,null,null,"","","",""]
[null,null,null,null,null,null,null,null,null,null,null,null,null,null,null,"","","",""]
[null,null,null,null,null,null,null,null,null,null,null,null,null,null,null,"","","",""]
[null,null,null,null,null,null,null,null,null,null,null,null,null,null,null,"","","",""]
[null,null,null,null,null,null,null,null,null,null,null,null,null,null,null,"","","",""]
[null,null,null,null,null,null,null,null,null,null,null,null,null,null,null,"","","",""]
[null,null,null,null,null,null,null,null,null,null,null,null,null,null,null,"","","",""]
[null,null,null,null,null,null,null,null,null,null,null,null,null,null,null,"","","",""]
[null,null,null,null,null,null,null,null,null,null,null,null,null,null,null,"","","",""]
[null,null,null,null,null,null,null,null,null,null,null,null,null,null,null,"","","",""]
[null,null,null,null,null,null,null,null,null,null,null,null,null,null,null,"","","",""]
[null,null,null,null,null,null,null,null,null,null,null,null,null,null,null,"","","",""]
[null,null,null,null,null,null,null,null,null,null,null,null,null,null,null,"","","",""]
[null,null,null,null,null,null,null,null,null,null,null,null,null,null,null,"","","",""]
[null,null,null,null,null,null,null,null,null,null,null,null,null,null,null,"","","",""]
[null,null,null,null,null,null,null,null,null,null,null,null,null,null,null,"","","",""]
[null,null,null,null,null,null,null,null,null,null,null,null,null,null,null,"","","",""]
[null,null,null,null,null,null,null,null,null,null,null,null,null,null,null,"","","",""]
[null,null,null,null,null,null,null,null,null,null,null,null,null,null,null,"","","",""]
[null,null,null,null,null,null,null,null,null,null,null,null,null,null,null,"","","",""]
[null,null,null,null,null,null,null,null,null,null,null,null,null,null,null,"","","",""]
[null,null,null,null,null,null,null,null,null,null,null,null,null,null,null,"","","",""]
[null,null,null,null,null,null,null,null,null,null,null,null,null,null,null,"","","",""]
[null,null,null,null,null,null,null,null,null,null,null,null,null,null,null,"","","",""]

{"sheet":"Base Factsheet","index":3,"n_rows":2794,"n_cols":14,"rows_kept":2794,"cut":false,"hidden":false,"merged":[]}
["Please do not modify - Pivot table"]
["Start date:",{"$f":"_xll.ECONOMATICA(B5,\"Series Start Date\")","v":"2012-01-03"}]
["Period:",{"$f":"IF(Factsheet!AC15=\"DESDE O INÍCIO\",B2,Factsheet!AC15)","v":"12M"},"Maximum:",{"$f":"ROUNDUP(MAX($B$8:$D$10000),-1)","v":150}]
["End Date:",{"$f":"Factsheet!AC3:AC3","v":"2020-05-08"},"Minimum:",{"$f":"ROUNDDOWN(MIN($B$8:$D$10000),-1)","v":10}]
["Ticker:",{"$f":"Factsheet!F5","v":"PFAVH<XBOG>"},{"$f":"AtualizarLimitesGrafico(\"Factsheet\",\"Base100\",D4,D3)","v":"Base100, Min:10, Max:150"}]
[null,{"$f":"TRIM(LEFT(SUBSTITUTE(B5,\"<\",REPT(\" \",100)),20))","v":"PFAVH"}]
["Date",{"$f":"_xll.ECONOMATICA(B5,\"ticker\")","v":"PFAVH"},{"$f":"N15","v":"COLCAP RT"},"DJIA",null,{"$f":"_xll.ECOSECURITIES(\"STOCK\",\"ACTIVE\",,L15,,,,{\"Sector Economatica<>Finanzas y Seguros\";\"Index particip.>0\"})","v":{"$error":"#VALUE!"}},{"$f":"_xll.ECONOMATICA($F$8:$F$3000,\"name\")","v":"Nombre"},{"$f":"_xll.ECONOMATICA($F$8:$F$3000,\"Class\")","v":"Clase"},"Nombre y Clase","Codigo","Colombia","COL","COLCAPRT<XBOG>",{"$f":"IF(M7=\"S&P 500\",\"S&P 500\", \"COLCAP RT\")","v":"COLCAP RT"}]
[{"$f":"_xll.ECONOMATICA(B5,\"Close\",,B4,B3,\"D\",,,TRUE,FALSE,,{\"def.defdef=6\"})","v":"2019-05-08"},100,{"$f":"_xll.ECONOMATICA(M15,\"Close\",,B4,B3,\"D\",,,FALSE,FALSE,,{\"def.defdef=6\"})","v":100},{"$f":"_xll.ECONOMATICA(\"DJIA\",\"Close\",,B4,B3,\"D\",,,FALSE,FALSE,,{\"def.defdef=6\"})","v":100},null,"PFAVH<XBOG>","Avianca Holdings S.A.","Pref",{"$f":"CONCATENATE(G8,\" \",H8)","v":"Avianca Holdings S.A. Pref"},{"$f":"F8","v":"PFAVH<XBOG>"},"Chile","CHL","SP IPSA<XSGO>","IPSA"]
["2019-05-09",97.258557233144501,100.128742146189,99.4648275352083,null,"CELSIA<XBOG>","Celsia S.A. e.S.P","Ord",{"$f":"CONCATENATE(G9,\" \",H9)","v":"Celsia S.A. e.S.P Ord"},{"$f":"F9","v":"CELSIA<XBOG>"},"Estados Unidos","USA","S&P 500","S&P 500"]
["2019-05-10",98.504582241410404,100.584615201456,99.903879220597403,null,"CEMARGOS<XBOG>","Cementos Argos","Ord","Cementos Argos Ord","CEMARGOS<XBOG>","Argentina","ARG","MERVAL<XBUE>","MERVAL"]
["2019-05-13",94.335118874092601,98.922090511652598,97.526353306253398,null,"PFCEMARGOS<XBOG>","Cementos Argos","Pref","Cementos Argos Pref","PFCEMARGOS<XBOG>","Perú","PER","SPBL25PT<XLIM>","BVL 25"]
["2019-05-14",88.576637487509302,97.747501925216099,98.323739868588703,null,"CLH<XBOG>","Cemex Latam Holdings","Ord","Cemex Latam Holdings Ord","CLH<XBOG>","Brasil","BRA","IBOV<XBSP>","BOVESPA"]
["2019-05-15",88.950611796579295,97.6688268424477,98.770339499693407,null,"CONCONCRET<XBOG>","Constructora Conconcreto S.A.","Ord","Constructora Conconcreto S.A. Ord","CONCONCRET<XBOG>","México","MEX","IPyC<XMEX>","IP Y C"]
["2019-05-16",84.287747530499502,97.459328444558196,99.596993607003199,null,"ECOPETROL<XBOG>","Ecopetrol","Ord","Ecopetrol Ord","ECOPETROL<XBOG>"]
["2019-05-17",84.421982045401805,97.418715608073398,99.216977640753598,null,"ETB<XBOG>","Emp.Telec.Bogota","Ord","Emp.Telec.Bogota Ord","ETB<XBOG>",{"$f":"Factsheet!H5","v":"Colombia"},{"$f":"VLOOKUP($K$15,$K$7:$N$13,2,FALSE)","v":"COL"},{"$f":"VLOOKUP($K$15,$K$7:$N$13,3,FALSE)","v":"COLCAPRT<XBOG>"},{"$f":"VLOOKUP($K$15,$K$7:$N$13,4,FALSE)","v":"COLCAP RT"}]
["2019-05-20",82.148066996363895,95.613320833770601,98.893109149066703,null,"EXITO<XBOG>","Exito","Ord","Exito Ord","EXITO<XBOG>"]
["2019-05-21",88.251971912686699,95.485665866988697,99.653410651022597,null,"PFAVAL<XBOG>","Grupo Aval Ac Va","Pref","Grupo Aval Ac Va Pref","PFAVAL<XBOG>"]
["2019-05-22",84.490109893376896,95.167277951142793,99.265538659528801,null,"GRUPOSURA<XBOG>","Grupo de Inversiones Suramericana","Ord","Grupo de Inversiones Suramericana Ord","GRUPOSURA<XBOG>"]
["2019-05-23",83.904437873628893,94.161681003286503,98.163615589262903,null,"PFGRUPSURA<XBOG>","Grupo de Inversiones Suramericana","Pref","Grupo de Inversiones Suramericana Pref","PFGRUPSURA<XBOG>"]
["2019-05-24",110.281008561607,94.480935899657197,98.530307120527098,null,"GEB<XBOG>","Grupo Energia Bogota S.A. Esp","Ord","Grupo Energia Bogota S.A. Esp Ord","GEB<XBOG>"]
["2019-05-27",124.683930517989,94.162700363085605,null,null,"ISA<XBOG>","Interconexion Electrica S.A. Esp","Ord","Interconexion Electrica S.A. Esp Ord","ISA<XBOG>"]
["2019-05-28",114.96394668729,93.104219645960299,97.614078921498702,null,"NUTRESA<XBOG>","Nutresa","Ord","Nutresa Ord","NUTRESA<XBOG>"]
["2019-05-29",111.49140405748,94.203805319033606,96.761623162659802,null,null,null,null," ",0]
["2019-05-30",110.06765356520199,94.184504967182903,96.929025818128096,null,null,null,null," ",0]
["2019-05-31",104.60538531711801,94.670233079465106,95.562539544771397,null,null,null,null," ",0]
["2019-06-03",null,null,95.580793250585003,null,null,null,null," ",0]
["2019-06-04",100.672804531059,94.782443076954195,97.554041944211306,null,null,null,null," ",0]
["2019-06-05",102.487737280549,95.911100242403293,98.352699334034696,null,null,null,null," ",0]
["2019-06-06",97.660978548927204,96.613344765733899,99.0500756142428,null,null,null,null," ",0]
["2019-06-07",103.38103273639,98.143023751792498,100.063964989851,null,null,null,null," ",0]
["2019-06-10",102.446931035258,97.865869671455599,100.36719216033801,null,null,null,null," ",0]
["2019-06-11",105.076279167552,99.761822200845899,100.31262359279199,null,null,null,null," ",0]
["2019-06-12",107.39745616354,99.5571480504004,100.144412228721,null,null,null,null," ",0]
["2019-06-13",102.423739646096,99.660789444344104,100.536982431426,null,null,null,null," ",0]
["2019-06-14",102.00857028598,99.898532632156304,100.47089939552799,null,null,null,null," ",0]
["2019-06-17",97.753989382647006,99.248563803150304,100.55916414968701,null,null,null,null," ",0]
["2019-06-18",96.937648727209293,100.037420866429,101.918603106285,null,null,null,null," ",0]
["2019-06-19",103.44216236390599,101.252727413084,102.06671228806999,null,null,null,null," ",0]
["2019-06-20",106.379404704319,102.30820674542301,103.026264155749,null,null,null,null," ",0]
["2019-06-21",108.64072536095,104.175310546299,102.895176361897,null,null,null,null," ",0]
["2019-06-24",null,null,102.927563211066,null,null,null,null," ",0]
["2019-06-25",105.481940052588,104.571459264494,102.237003188231,null,null,null,null," ",0]
["2019-06-26",109.500487159588,104.38610755151601,102.193101870595,null,null,null,null," ",0]
["2019-06-27",107.338073465042,104.55101501732101,102.153667704784,null,null,null,null," ",0]
["2019-06-28",108.098920546239,104.005557584576,102.436253553955,null,null,null,null," ",0]
["2019-07-01",null,null,102.888629674329,null,null,null,null," ",0]
["2019-07-02",105.00482040795001,103.423972628196,103.15531092335,null,null,null,null," ",0]
["2019-07-03",108.33453408326,104.58300302713199,103.84587094630101,null,null,null,null," ",0]
["2019-07-04",110.229638469522,104.883579969639,null,null,null,null,null," ",0]
["2019-07-05",113.03803690196899,105.765759944217,103.6768893837,null,null,null,null," ",0]
["2019-07-08",114.07726513652599,105.55478465592,103.230251242523,null,null,null,null," ",0]
["2019-07-09",113.362928096903,106.43721543380499,103.143026256468,null,null,null,null," ",0]
["2019-07-10",114.196826750063,106.719378333539,103.43843591155,null,null,null,null," ",0]
["2019-07-11",115.630456627347,107.050372253638,104.31600014329899,null,null,null,null," ",0]
["2019-07-12",119.70856505970001,107.878772382159,105.25544982869199,null,null,null,null," ",0]
["2019-07-15",121.389101230539,108.114035976352,105.359927262412,null,null,null,null," ",0]
["2019-07-16",121.729385132319,109.088720308733,105.26931340259,null,null,null,null," ",0]
["2019-07-17",120.329189445707,107.948779254104,104.823445460061,null,null,null,null," ",0]
["2019-07-18",117.54873975541,106.96570900012701,104.835229497985,null,null,null,null," ",0]
["2019-07-19",122.37563457340001,108.207106041722,104.57062778493901,null,null,null,null," ",0]
["2019-07-22",120.765713557601,108.26476127910399,104.638790356927,null,null,null,null," ",0]
["2019-07-23",116.909474095562,108.50648683938201,105.321532864589,null,null,null,null," ",0]
["2019-07-24",114.414797499659,107.521915491903,105.01645721751299,null,null,null,null," ",0]
["2019-07-25",108.890335782082,107.484985332587,104.51971766050001,null,null,null,null," ",0]
["2019-07-26",111.06909489410501,null,104.717928258236,null,null,null,null," ",0]
["2019-07-29",114.90268348425199,105.565025501535,104.829221949214,null,null,null,null," ",0]
["2019-07-30",114.552127668401,103.46271446521899,104.73937828803901,null,null,null,null," ",0]
["2019-07-31",109.271687831264,102.005848302622,103.45410945219901,null,null,null,null," ",0]
["2019-08-01",107.729661016958,100.558328449493,102.37255813356001,null,null,null,null," ",0]
["2019-08-02",110.914137240965,99.8025289480574,101.993581935414,null,null,null,null," ",0]
["2019-08-05",106.535344954347,93.639817922026893,99.038830715347999,null,null,null,null," ",0]
["2019-08-06",103.809709403082,94.144143319223105,100.23949324013699,null,null,null,null," ",0]
["2019-08-07",null,null,100.15303845249601,null,null,null,null,{"$f":"CONCATENATE(G73,\" \",H73)","v":" "},{"$f":"F73","v":0}]
["2019-08-08",111.224484198377,96.963305806857505,101.58221888809901,null,null,null,null," ",0]
["2019-08-09",110.76777743327,97.526044701109598,101.23274129454499,null,null,null,null," ",0]
["2019-08-12",106.49815208127301,97.461771164089399,99.727003122796305,null,null,null,null," ",0]
["2019-08-13",109.097570124315,97.408545985352205,101.203743319027,null,null,null,null," ",0]
["2019-08-14",108.02782017795801,95.772518658079207,98.121062119142195,null,null,null,null," ",0]
["2019-08-15",97.915382464998402,95.143511284375606,98.506045866059097,null,null,null,null," ",0]
["2019-08-16",95.346045598853394,96.348246063338607,99.686837268178394,null,null,null,null," ",0]
["2019-08-19",null,null,100.648738241405,null,null,null,null," ",0]
["2019-08-20",86.988755514263204,96.884240549406996,99.981168645317695,null,null,null,null," ",0]
["2019-08-21",83.182262291898994,97.028124957228997,100.906523697195,null,null,null,null," ",0]
["2019-08-22",83.051002938649603,97.122869485290707,101.097186349216,null,null,null,null," ",0]
["2019-08-23",82.917816303321203,95.979528916766895,98.696708517963998,null,null,null,null," ",0]
["2019-08-26",81.688292762613898,96.204212428885498,99.736206995556103,null,null,null,null," ",0]
["2019-08-27",74.273812132654697,96.067942697554798,99.270506440196201,null,null,null,null," ",0]
["2019-08-28",74.394321820582306,95.726247802260303,100.264832772547,null,null,null,null," ",0]
["2019-08-29",74.628804634208805,95.536752424202902,101.52083406341301,null,null,null,null," ",0]
["2019-08-30",72.945550995296799,96.972568564815404,101.678840296576,null,null,null,null," ",0]
["2019-09-02",78.379713703529006,98.097110492992201,null,null,null,null,null," ",0]
["2019-09-03",74.726421963074202,98.139543003053404,100.580306100077,null,null,null,null," ",0]
["2019-09-04",73.818372316192793,98.091099379700594,101.49472433247099,null,null,null,null," ",0]
["2019-09-05",71.287008012528503,99.267245521536097,102.929912316729,null,null,null,null," ",0]
["2019-09-06",70.775118503137506,99.974394784891004,103.196824625367,null,null,null,null," ",0]
["2019-09-09",77.200198405422299,101.031777569326,103.343354900135,null,null,null,null," ",0]
["2019-09-10",82.443633037852095,100.56677858741,103.62802028551199,null,null,null,null," ",0]
["2019-09-11",83.334834895329493,101.25571033661301,104.50246521295,null,null,null,null," ",0]
["2019-09-12",85.728822254575803,101.418243050808,104.679418330546,null,null,null,null," ",0]
["2019-09-13",89.795078806346297,101.40292624896399,104.822174632573,null,null,null,null," ",0]
["2019-09-16",85.128480618470306,102.779852467822,104.272637964692,null,null,null,null," ",0]
["2019-09-17",88.900625581620304,102.36057775211501,104.40349469892701,null,null,null,null," ",0]
["2019-09-18",89.150167323648901,101.82456685754001,104.54320871655401,null,null,null,null," ",0]
["2019-09-19",86.155785228474997,101.711582988733,104.341840304667,null,null,null,null," ",0]
["2019-09-20",84.789990236749901,101.72203998302599,103.726759739919,null,null,null,null," ",0]
["2019-09-23",84.176928043947598,101.171515569207,103.785525889718,null,null,null,null," ",0]
["2019-09-24",80.957206070073894,99.747806730098105,103.236528360867,null,null,null,null," ",0]
["2019-09-25",83.959012465551496,100.05165122402801,103.86400912224801,null,null,null,null," ",0]
["2019-09-26",89.681707334821098,100.22353803785499,103.566134831752,null,null,null,null," ",0]
["2019-09-27",98.148327255737996,99.637825358076995,103.295833649347,null,null,null,null," ",0]
["2019-09-30",101.40557113650701,98.444831016822704,103.673731569666,null,null,null,null," ",0]
["2019-10-01",101.61950662499299,98.285205981112099,102.345755224,null,null,null,null," ",0]
["2019-10-02",98.901257522171406,97.466018747421899,100.428576985025,null,null,null,null," ",0]
["2019-10-03",97.739565898897098,98.148240681272,100.900015519466,null,null,null,null," ",0]
["2019-10-04",99.909965787665001,99.266567541286307,102.331159961293,null,null,null,null," ",0]
["2019-10-07",107.730073693674,100.58582334383399,101.96666349598701,null,null,null,null," ",0]
["2019-10-08",112.273259617039,99.695419077179395,100.75752878713,null,null,null,null," ",0]
["2019-10-09",112.051806931733,99.516852688509999,101.458293940872,null,null,null,null," ",0]
["2019-10-10",110.315807831474,99.091496168519399,102.038484511082,null,null,null,null," ",0]
["2019-10-11",105.851758669014,99.444321927381694,103.261983423028,null,null,null,null," ",0]
["2019-10-14",null,null,103.15792959847001,null,null,null,null," ",0]
["2019-10-15",110.38535349955799,99.470396212534993,104.072309321025,null,null,null,null," ",0]
["2019-10-16",115.772700078553,98.939924087491804,103.984429665958,null,null,null,null," ",0]
["2019-10-17",122.84139982599299,98.651557172182905,104.07646839309,null,null,null,null," ",0]
["2019-10-18",122.63579862588099,98.693465377204106,103.091846562573,null,null,null,null," ",0]
["2019-10-21",128.32784600672301,100.963190921932,103.313047587057,null,null,null,null," ",0]
["2019-10-22",122.768899780349,101.54300364444499,103.160779333091,null,null,null,null," ",0]
["2019-10-23",123.888862422551,101.905592205934,103.337347351364,null,null,null,null," ",0]
["2019-10-24",121.94250323052999,102.703946973779,103.227902136976,null,null,null,null," ",0]
["2019-10-25",122.378039167263,104.15868695883501,103.815294063766,null,null,null,null," ",0]
["2019-10-28",123.807278051274,103.517738036811,104.326166764135,null,null,null,null," ",0]
["2019-10-29",128.04122379492,104.65800340671601,104.25184260367,null,null,null,null," ",0]
["2019-10-30",124.674343161634,104.740762050264,104.695746539976,null,null,null,null," ",0]
["2019-10-31",127.407836338039,104.416346133337,104.15483609587,null,null,null,null," ",0]
["2019-11-01",130.73025210271601,105.513120942982,105.314485547831,null,null,null,null," ",0]
["2019-11-04",null,null,105.756386967842,null,null,null,null," ",0]
["2019-11-05",132.456779828994,108.043965150137,105.87391926697499,null,null,null,null,{"$f":"CONCATENATE(G137,\" \",H137)","v":" "},{"$f":"F137","v":0}]
["2019-11-06",132.23982035787799,108.20499239838701,105.873649697518,null,null,null,null," ",0]
["2019-11-07",131.84533584117901,108.076684231521,106.575454619364,null,null,null,null," ",0]
["2019-11-08",131.55287634930599,106.522224596702,106.58912564360099,null,null,null,null," ",0]
["2019-11-11",null,null,106.639727688627,null,null,null,null," ",0]
["2019-11-12",126.1628928961,105.809722842881,106.639727688627,null,null,null,null," ",0]
["2019-11-13",126.25860001333101,103.956996041583,106.99440412235001,null,null,null,null," ",0]
["2019-11-14",127.833458551555,101.65224597021,106.988127004239,null,null,null,null," ",0]
["2019-11-15",127.099860879476,102.182299818611,107.846628821571,null,null,null,null," ",0]
["2019-11-18",125.903934434755,102.747680472094,107.96728042501501,null,null,null,null," ",0]
["2019-11-19",124.267039493308,101.07924871228199,107.57370896427901,null,null,null,null," ",0]
["2019-11-20",122.392745590652,101.124846905819,107.138816351187,null,null,null,null," ",0]
["2019-11-21",115.953450561268,100.815111201024,106.927781947539,null,null,null,null," ",0]
["2019-11-22",118.816855164827,101.798870856874,107.348810986732,null,null,null,null," ",0]
["2019-11-25",123.921083153109,101.92168970836801,108.083772956277,null,null,null,null," ",0]
["2019-11-26",110.978228245629,100.944885060773,108.29638626694199,null,null,null,null," ",0]
["2019-11-27",118.511636712938,99.368311052210601,108.459360280773,null,null,null,null," ",0]
["2019-11-28",113.40828251268201,99.3362475818722,null,null,null,null,null," ",0]
["2019-11-29",117.364385391003,99.831487540039205,108.02577700512499,null,null,null,null," ",0]
["2019-12-02",117.696205754997,98.519149111001795,106.992286076304,null,null,null,null," ",0]
["2019-12-03",117.839722737786,98.373639568919302,105.9131223734,null,null,null,null," ",0]
["2019-12-04",114.604295512196,99.806903066462795,106.479102780228,null,null,null,null," ",0]
["2019-12-05",120.84180016606101,100.76309616269999,106.586969087599,null,null,null,null," ",0]
["2019-12-06",124.495326469536,101.198269789573,107.885793418158,null,null,null,null," ",0]
["2019-12-09",125.908422479522,101.623761473689,107.479667720851,null,null,null,null," ",0]
["2019-12-10",128.37105282559099,101.843936172314,107.372302042553,null,null,null,null," ",0]
["2019-12-11",124.650308388402,102.046938898275,107.48621440865099,null,null,null,null," ",0]
["2019-12-12",126.809181585792,103.84303021873301,108.336321061943,null,null,null,null," ",0]
["2019-12-13",130.81656015315099,105.02502528578,108.350184635841,null,null,null,null," ",0]
["2019-12-16",126.629784858786,105.021801194991,108.736208150745,null,null,null,null," ",0]
["2019-12-17",126.664801191306,104.873065759311,109.093349219882,null,null,null,null," ",0]
["2019-12-18",130.73397653200701,106.546686767484,108.749263016274,null,null,null,null," ",0]
["2019-12-19",131.43593975692099,107.820201818016,109.279467700399,null,null,null,null," ",0]
["2019-12-20",128.91545043885699,107.50525288214,109.58034576522201,null,null,null,null," ",0]
["2019-12-23",128.14152308087799,109.124789577792,109.95173550758,null,null,null,null," ",0]
["2019-12-24",129.51631897455101,109.498295694357,109.812791688601,null,null,null,null," ",0]
["2019-12-25",null,null,null,null,null,null,null," ",0]
["2019-12-26",126.457120980136,109.428967021522,110.220765862265,null,null,null,null," ",0]
["2019-12-27",129.158633137587,110.538835803163,110.312689059647,null,null,null,null," ",0]
["2019-12-30",null,110.197896246798,109.60749526415,null,null,null,null," ",0]
["2019-12-31",null,null,109.90132601233201,null,null,null,null," ",0]
["2020-01-01",null,null,null,null,null,null,null," ",0]
["2020-01-02",127.91697480494599,110.47879463073301,111.173539982759,null,null,null,null," ",0]
["2020-01-03",128.98965914361199,112.281061545364,110.27271575469101,null,null,null,null," ",0]
["2020-01-06",null,null,110.53650875925101,null,null,null,null," ",0]
["2020-01-07",124.614505880978,111.45703770814001,110.075544925057,null,null,null,null," ",0]
["2020-01-08",124.53013819630701,110.919616102357,110.697133667534,null,null,null,null," ",0]
["2020-01-09",124.906665061368,110.987655617995,111.512812445522,null,null,null,null," ",0]
["2020-01-10",124.21719754696799,111.154323578347,111.00012977852001,null,null,null,null," ",0]
["2020-01-13",121.38902193936499,110.259059474221,111.320840456057,null,null,null,null," ",0]
["2020-01-14",129.24863209738399,109.845162674668,111.446459840052,null,null,null,null," ",0]
["2020-01-15",null,null,111.795167235075,null,null,null,null," ",0]
["2020-01-16",133.111460613552,109.16699954588,112.82499972067301,null,null,null,null," ",0]
["2020-01-17",132.790699177422,109.182779293507,113.019320815802,null,null,null,null," ",0]
["2020-01-20",133.19150517392001,108.981838908279,null,null,null,null,null," ",0]
["2020-01-21",137.01684866449801,108.803665962536,112.433738855645,null,null,null,null," ",0]
["2020-01-22",134.18141783494499,107.723720274749,112.396114656352,null,null,null,null," ",0]
["2020-01-23",135.28102971939401,107.913815647131,112.295295665739,null,null,null,null," ",0]
["2020-01-24",135.669052209938,107.358104599174,111.63924053800299,null,null,null,null," ",0]
["2020-01-27",132.43063229462101,105.403826016583,109.891159391496,null,null,null,null," ",0]
["2020-01-28",132.86751487944301,104.427158130682,110.61148758838,null,null,null,null," ",0]
["2020-01-29",133.43506117956699,105.241360495333,110.65615910443,null,null,null,null," ",0]
["2020-01-30",136.39810976944901,105.40005615633,111.13749469036701,null,null,null,null," ",0]
["2020-01-31",136.42142621520901,104.029651642079,108.81376714503899,null,null,null,null," ",0]
["2020-02-03",135.614227594342,103.754675972974,109.3674628851,null,null,null,null,{"$f":"CONCATENATE(G201,\" \",H201)","v":" "},{"$f":"F201","v":0}]
["2020-02-04",136.47857114672701,105.619469699799,110.937974755187,null,null,null,null," ",0]
["2020-02-05",139.85965751647001,107.44804280810099,112.798851479893,null,null,null,null," ",0]
["2020-02-06",140.07527430867799,107.72515806579,113.141281756689,null,null,null,null," ",0]
["2020-02-07",140.48936411039901,107.040427453234,112.073555502226,null,null,null,null," ",0]
["2020-02-10",137.900796111207,105.361031197244,112.744822051376,null,null,null,null," ",0]
["2020-02-11",136.92952095251499,104.492983078235,112.742973574903,null,null,null,null," ",0]
["2020-02-12",139.94261754583599,105.66316643799701,113.802304665092,null,null,null,null," ",0]
["2020-02-13",138.79138812795301,107.075401968439,113.30895398173,null,null,null,null," ",0]
["2020-02-14",137.82408856810099,107.46820266312,113.211793434341,null,null,null,null," ",0]
["2020-02-17",137.41864921897599,107.748948160559,null,null,null,null,null," ",0]
["2020-02-18",140.15334870596399,107.750477549038,112.57295224419801,null,null,null,null," ",0]
["2020-02-19",142.565257079666,107.441683831508,113.019051246345,null,null,null,null," ",0]
["2020-02-20",142.95342586655201,107.303795971209,112.52593162248399,null,null,null,null," ",0]
["2020-02-21",138.65864375676,104.942735848599,111.649561198545,null,null,null,null," ",0]
["2020-02-24",131.86165141547099,104.377357245889,107.6768385506,null,null,null,null," ",0]
["2020-02-25",124.514983317,102.708538919687,104.290121471859,null,null,null,null," ",0]
["2020-02-26",121.375373505638,101.481343729654,103.813484097132,null,null,null,null," ",0]
["2020-02-27",108.70908374351001,98.890631947666407,99.227144261589302,null,null,null,null," ",0]
["2020-02-28",108.004289890989,96.610003127600095,97.851261566043803,null,null,null,null," ",0]
["2020-03-02",101.785299209645,94.905838494538301,102.834292166284,null,null,null,null," ",0]
["2020-03-03",98.642092314781607,94.167902659974104,99.807758441078505,null,null,null,null," ",0]
["2020-03-04",100.25807607616299,97.729706626618295,104.326705903164,null,null,null,null," ",0]
["2020-03-05",97.502982386853503,97.783095085993395,100.592860336415,null,null,null,null," ",0]
["2020-03-06",86.880541354650603,93.288479239679901,99.605080691748299,null,null,null,null," ",0]
["2020-03-09",93.4278318389552,82.019535241066507,91.850105497986107,null,null,null,null," ",0]
["2020-03-10",85.011903865030007,78.193282178486697,96.344753195648096,null,null,null,null," ",0]
["2020-03-11",74.231154951266902,74.940778167801895,90.703279852052205,null,null,null,null," ",0]
["2020-03-12",57.212087749270701,66.963216401170897,81.643434269120903,null,null,null,null," ",0]
["2020-03-13",30.855200154008301,64.6808207791764,89.289118288201294,null,null,null,null," ",0]
["2020-03-16",39.842598227667601,55.358050102077001,77.745844490011194,null,null,null,null," ",0]
["2020-03-17",28.166968490171701,53.369558017933699,81.784996763221002,null,null,null,null," ",0]
["2020-03-18",27.696065359108601,48.3459132508724,76.630596984643503,null,null,null,null," ",0]
["2020-03-19",19.581002568884301,47.666547395172501,77.3556233928539,null,null,null,null," ",0]
["2020-03-20",21.795936289330701,48.416875789291197,73.838858288363596,null,null,null,null," ",0]
["2020-03-23",null,null,71.597387948655495,null,null,null,null," ",0]
["2020-03-24",22.643868885323201,49.504853897553403,79.734458644758007,null,null,null,null," ",0]
["2020-03-25",34.322095770621701,55.737260800495299,81.643164699664297,null,null,null,null," ",0]
["2020-03-26",33.064953227760299,62.457952987984797,86.848243542830502,null,null,null,null," ",0]
["2020-03-27",31.7908567266422,63.095387920155197,83.323083274182906,null,null,null,null," ",0]
["2020-03-30",30.393164506182099,61.409057019976899,85.982963978196494,null,null,null,null," ",0]
["2020-03-31",28.410331386170601,60.798022078874098,84.402824626187794,null,null,null,null," ",0]
["2020-04-01",27.3430019575753,57.664743095636403,80.653305518790106,null,null,null,null," ",0]
["2020-04-02",25.750458263530199,60.050979198887902,82.463002549717203,null,null,null,null," ",0]
["2020-04-03",26.246690834726898,60.980585564684603,81.073140750289895,null,null,null,null," ",0]
["2020-04-06",27.712735634093399,63.640898748009903,87.340477438410701,null,null,null,null," ",0]
["2020-04-07",28.156717344303601,64.310960624134196,87.239850997459101,null,null,null,null," ",0]
["2020-04-08",28.943377399729801,66.816767755546607,90.242508567404002,null,null,null,null," ",0]
["2020-04-09",null,null,91.343122300226199,null,null,null,null," ",0]
["2020-04-10",null,null,null,null,null,null,null," ",0]
["2020-04-13",32.029063019494103,67.611427505267798,90.077686077100196,null,null,null,null," ",0]
["2020-04-14",35.805689711240099,68.870629266486503,92.230352523620198,null,null,null,null," ",0]
["2020-04-15",36.636342066689402,68.736259325873107,90.515081835445002,null,null,null,null," ",0]
["2020-04-16",35.697775760723701,67.566622709040502,90.643435424426599,null,null,null,null," ",0]
["2020-04-17",35.966398436110502,66.607927345088697,93.357653636368894,null,null,null,null," ",0]
["2020-04-20",33.600772347999701,66.240806538960896,91.077673368738004,null,null,null,null," ",0]
["2020-04-21",31.433657038636699,63.6129019581713,88.6455403770087,null,null,null,null," ",0]
["2020-04-22",31.689831428142501,62.505262486403801,90.405213011894404,null,null,null,null," ",0]
["2020-04-23",31.9740328182233,63.668887742445797,90.557096166536198,null,null,null,null," ",0]
["2020-04-24",28.720299015112701,62.293842204671797,91.558392795850494,null,null,null,null," ",0]
["2020-04-27",28.2998643844039,61.687688939040498,92.939012212678804,null,null,null,null," ",0]
["2020-04-28",26.299124268145501,63.352294854936197,92.814894715789706,null,null,null,null," ",0]
["2020-04-29",30.711331735539702,63.280722645984497,94.864816675428301,null,null,null,null," ",0]
["2020-04-30",29.165713447087899,64.076403375715003,93.755191619624398,null,null,null,null," ",0]
["2020-05-01",null,null,91.359758588951095,null,null,null,null,{"$f":"CONCATENATE(G265,\" \",H265)","v":" "},{"$f":"F265","v":0}]
["2020-05-04",28.659812227415401,62.794911535980603,91.460153970285305,null,null,null,null," ",0]
["2020-05-05",27.263629576365901,61.558373252570199,91.973606835934305,null,null,null,null," ",0]
["2020-05-06",25.943412222783099,62.044952761498301,91.132357466034605,null,null,null,null," ",0]
["2020-05-07",25.652046674193102,62.777077502920299,91.945879688020796,null,null,null,null," ",0]
["2020-05-08",26.483190185274001,null,93.699737323680907,null,null,null,null," ",0]
[null,null,null,null,null,null,null,null," ",0]
[null,null,null,null,null,null,null,null," ",0]
[null,null,null,null,null,null,null,null," ",0]
[null,null,null,null,null,null,null,null," ",0]
[null,null,null,null,null,null,null,null," ",0]
[null,null,null,null,null,null,null,null," ",0]
[null,null,null,null,null,null,null,null," ",0]
[null,null,null,null,null,null,null,null," ",0]
[null,null,null,null,null,null,null,null," ",0]
[null,null,null,null,null,null,null,null," ",0]
[null,null,null,null,null,null,null,null," ",0]
[null,null,null,null,null,null,null,null," ",0]
[null,null,null,null,null,null,null,null," ",0]
[null,null,null,null,null,null,null,null," ",0]
[null,null,null,null,null,null,null,null," ",0]
[null,null,null,null,null,null,null,null," ",0]
[null,null,null,null,null,null,null,null," ",0]
[null,null,null,null,null,null,null,null," ",0]
[null,null,null,null,null,null,null,null," ",0]
[null,null,null,null,null,null,null,null," ",0]
[null,null,null,null,null,null,null,null," ",0]
[null,null,null,null,null,null,null,null," ",0]
[null,null,null,null,null,null,null,null," ",0]
[null,null,null,null,null,null,null,null," ",0]
[null,null,null,null,null,null,null,null," ",0]
[null,null,null,null,null,null,null,null," ",0]
[null,null,null,null,null,null,null,null," ",0]
[null,null,null,null,null,null,null,null," ",0]
[null,null,null,null,null,null,null,null," ",0]
[null,null,null,null,null,null,null,null," ",0]
[null,null,null,null,null,null,null,null," ",0]
[null,null,null,null,null,null,null,null," ",0]
[null,null,null,null,null,null,null,null," ",0]
[null,null,null,null,null,null,null,null," ",0]
[null,null,null,null,null,null,null,null," ",0]
[null,null,null,null,null,null,null,null," ",0]
[null,null,null,null,null,null,null,null," ",0]
[null,null,null,null,null,null,null,null," ",0]
[null,null,null,null,null,null,null,null," ",0]
[null,null,null,null,null,null,null,null," ",0]
[null,null,null,null,null,null,null,null," ",0]
[null,null,null,null,null,null,null,null," ",0]
[null,null,null,null,null,null,null,null," ",0]
[null,null,null,null,null,null,null,null," ",0]
[null,null,null,null,null,null,null,null," ",0]
[null,null,null,null,null,null,null,null," ",0]
[null,null,null,null,null,null,null,null," ",0]
[null,null,null,null,null,null,null,null," ",0]
[null,null,null,null,null,null,null,null," ",0]
[null,null,null,null,null,null,null,null," ",0]
[null,null,null,null,null,null,null,null," ",0]
[null,null,null,null,null,null,null,null," ",0]
[null,null,null,null,null,null,null,null," ",0]
[null,null,null,null,null,null,null,null," ",0]
[null,null,null,null,null,null,null,null," ",0]
[null,null,null,null,null,null,null,null," ",0]
[null,null,null,null,null,null,null,null," ",0]
[null,null,null,null,null,null,null,null," ",0]
[null,null,null,null,null,null,null,null,{"$f":"CONCATENATE(G329,\" \",H329)","v":" "},{"$f":"F329","v":0}]
[null,null,null,null,null,null,null,null," ",0]
[null,null,null,null,null,null,null,null," ",0]
[null,null,null,null,null,null,null,null," ",0]
[null,null,null,null,null,null,null,null," ",0]
[null,null,null,null,null,null,null,null," ",0]
[null,null,null,null,null,null,null,null," ",0]
[null,null,null,null,null,null,null,null," ",0]
[null,null,null,null,null,null,null,null," ",0]
[null,null,null,null,null,null,null,null," ",0]
[null,null,null,null,null,null,null,null," ",0]
[null,null,null,null,null,null,null,null," ",0]
[null,null,null,null,null,null,null,null," ",0]
[null,null,null,null,null,null,null,null," ",0]
[null,null,null,null,null,null,null,null," ",0]
[null,null,null,null,null,null,null,null," ",0]
[null,null,null,null,null,null,null,null," ",0]
[null,null,null,null,null,null,null,null," ",0]
[null,null,null,null,null,null,null,null," ",0]
[null,null,null,null,null,null,null,null," ",0]
[null,null,null,null,null,null,null,null," ",0]
[null,null,null,null,null,null,null,null," ",0]
[null,null,null,null,null,null,null,null," ",0]
[null,null,null,null,null,null,null,null," ",0]
[null,null,null,null,null,null,null,null," ",0]
[null,null,null,null,null,null,null,null," ",0]
[null,null,null,null,null,null,null,null," ",0]
[null,null,null,null,null,null,null,null," ",0]
[null,null,null,null,null,null,null,null," ",0]
[null,null,null,null,null,null,null,null," ",0]
[null,null,null,null,null,null,null,null," ",0]
[null,null,null,null,null,null,null,null," ",0]
[null,null,null,null,null,null,null,null," ",0]
[null,null,null,null,null,null,null,null," ",0]
[null,null,null,null,null,null,null,null," ",0]
[null,null,null,null,null,null,null,null," ",0]
[null,null,null,null,null,null,null,null," ",0]
[null,null,null,null,null,null,null,null," ",0]
[null,null,null,null,null,null,null,null," ",0]
[null,null,null,null,null,null,null,null," ",0]
[null,null,null,null,null,null,null,null," ",0]
[null,null,null,null,null,null,null,null," ",0]
[null,null,null,null,null,null,null,null," ",0]
[null,null,null,null,null,null,null,null," ",0]
[null,null,null,null,null,null,null,null," ",0]
[null,null,null,null,null,null,null,null," ",0]
[null,null,null,null,null,null,null,null," ",0]
[null,null,null,null,null,null,null,null," ",0]
[null,null,null,null,null,null,null,null," ",0]
[null,null,null,null,null,null,null,null," ",0]
[null,null,null,null,null,null,null,null," ",0]
[null,null,null,null,null,null,null,null," ",0]
[null,null,null,null,null,null,null,null," ",0]
[null,null,null,null,null,null,null,null," ",0]
[null,null,null,null,null,null,null,null," ",0]
[null,null,null,null,null,null,null,null," ",0]
[null,null,null,null,null,null,null,null," ",0]
[null,null,null,null,null,null,null,null," ",0]
[null,null,null,null,null,null,null,null," ",0]
[null,null,null,null,null,null,null,null," ",0]
[null,null,null,null,null,null,null,null," ",0]
[null,null,null,null,null,null,null,null," ",0]
[null,null,null,null,null,null,null,null," ",0]
[null,null,null,null,null,null,null,null," ",0]
[null,null,null,null,null,null,null,null,{"$f":"CONCATENATE(G393,\" \",H393)","v":" "},{"$f":"F393","v":0}]
[null,null,null,null,null,null,null,null," ",0]
[null,null,null,null,null,null,null,null," ",0]
[null,null,null,null,null,null,null,null," ",0]
[null,null,null,null,null,null,null,null," ",0]
[null,null,null,null,null,null,null,null," ",0]
[null,null,null,null,null,null,null,null," ",0]
[null,null,null,null,null,null,null,null," ",0]
[null,null,null,null,null,null,null,null," ",0]
[null,null,null,null,null,null,null,null," ",0]
[null,null,null,null,null,null,null,null," ",0]
[null,null,null,null,null,null,null,null," ",0]
[null,null,null,null,null,null,null,null," ",0]
[null,null,null,null,null,null,null,null," ",0]
[null,null,null,null,null,null,null,null," ",0]
[null,null,null,null,null,null,null,null," ",0]
[null,null,null,null,null,null,null,null," ",0]
[null,null,null,null,null,null,null,null," ",0]
[null,null,null,null,null,null,null,null," ",0]
[null,null,null,null,null,null,null,null," ",0]
[null,null,null,null,null,null,null,null," ",0]
[null,null,null,null,null,null,null,null," ",0]
[null,null,null,null,null,null,null,null," ",0]
[null,null,null,null,null,null,null,null," ",0]
[null,null,null,null,null,null,null,null," ",0]
[null,null,null,null,null,null,null,null," ",0]
[null,null,null,null,null,null,null,null," ",0]
[null,null,null,null,null,null,null,null," ",0]
[null,null,null,null,null,null,null,null," ",0]
[null,null,null,null,null,null,null,null," ",0]
[null,null,null,null,null,null,null,null," ",0]
[null,null,null,null,null,null,null,null," ",0]
[null,null,null,null,null,null,null,null," ",0]
[null,null,null,null,null,null,null,null," ",0]
[null,null,null,null,null,null,null,null," ",0]
[null,null,null,null,null,null,null,null," ",0]
[null,null,null,null,null,null,null,null," ",0]
[null,null,null,null,null,null,null,null," ",0]
[null,null,null,null,null,null,null,null," ",0]
[null,null,null,null,null,null,null,null," ",0]
[null,null,null,null,null,null,null,null," ",0]
[null,null,null,null,null,null,null,null," ",0]
[null,null,null,null,null,null,null,null," ",0]
[null,null,null,null,null,null,null,null," ",0]
[null,null,null,null,null,null,null,null," ",0]
[null,null,null,null,null,null,null,null," ",0]
[null,null,null,null,null,null,null,null," ",0]
[null,null,null,null,null,null,null,null," ",0]
[null,null,null,null,null,null,null,null," ",0]
[null,null,null,null,null,null,null,null," ",0]
[null,null,null,null,null,null,null,null," ",0]
[null,null,null,null,null,null,null,null," ",0]
[null,null,null,null,null,null,null,null," ",0]
[null,null,null,null,null,null,null,null," ",0]
[null,null,null,null,null,null,null,null," ",0]
[null,null,null,null,null,null,null,null," ",0]
[null,null,null,null,null,null,null,null," ",0]
[null,null,null,null,null,null,null,null," ",0]
[null,null,null,null,null,null,null,null," ",0]
[null,null,null,null,null,null,null,null," ",0]
[null,null,null,null,null,null,null,null," ",0]
[null,null,null,null,null,null,null,null," ",0]
[null,null,null,null,null,null,null,null," ",0]
[null,null,null,null,null,null,null,null," ",0]
[null,null,null,null,null,null,null,null,{"$f":"CONCATENATE(G457,\" \",H457)","v":" "},{"$f":"F457","v":0}]
[null,null,null,null,null,null,null,null," ",0]
[null,null,null,null,null,null,null,null," ",0]
[null,null,null,null,null,null,null,null," ",0]
[null,null,null,null,null,null,null,null," ",0]
[null,null,null,null,null,null,null,null," ",0]
[null,null,null,null,null,null,null,null," ",0]
[null,null,null,null,null,null,null,null," ",0]
[null,null,null,null,null,null,null,null," ",0]
[null,null,null,null,null,null,null,null," ",0]
[null,null,null,null,null,null,null,null," ",0]
[null,null,null,null,null,null,null,null," ",0]
[null,null,null,null,null,null,null,null," ",0]
[null,null,null,null,null,null,null,null," ",0]
[null,null,null,null,null,null,null,null," ",0]
[null,null,null,null,null,null,null,null," ",0]
[null,null,null,null,null,null,null,null," ",0]
[null,null,null,null,null,null,null,null," ",0]
[null,null,null,null,null,null,null,null," ",0]
[null,null,null,null,null,null,null,null," ",0]
[null,null,null,null,null,null,null,null," ",0]
[null,null,null,null,null,null,null,null," ",0]
[null,null,null,null,null,null,null,null," ",0]
[null,null,null,null,null,null,null,null," ",0]
[null,null,null,null,null,null,null,null," ",0]
[null,null,null,null,null,null,null,null," ",0]
[null,null,null,null,null,null,null,null," ",0]
[null,null,null,null,null,null,null,null," ",0]
[null,null,null,null,null,null,null,null," ",0]
[null,null,null,null,null,null,null,null," ",0]
[null,null,null,null,null,null,null,null," ",0]
[null,null,null,null,null,null,null,null," ",0]
[null,null,null,null,null,null,null,null," ",0]
[null,null,null,null,null,null,null,null," ",0]
[null,null,null,null,null,null,null,null," ",0]
[null,null,null,null,null,null,null,null," ",0]
[null,null,null,null,null,null,null,null," ",0]
[null,null,null,null,null,null,null,null," ",0]
[null,null,null,null,null,null,null,null," ",0]
[null,null,null,null,null,null,null,null," ",0]
[null,null,null,null,null,null,null,null," ",0]
[null,null,null,null,null,null,null,null," ",0]
[null,null,null,null,null,null,null,null," ",0]
[null,null,null,null,null,null,null,null," ",0]
[null,null,null,null,null,null,null,null," ",0]
[null,null,null,null,null,null,null,null," ",0]
[null,null,null,null,null,null,null,null," ",0]
[null,null,null,null,null,null,null,null," ",0]
[null,null,null,null,null,null,null,null," ",0]
[null,null,null,null,null,null,null,null," ",0]
[null,null,null,null,null,null,null,null," ",0]
[null,null,null,null,null,null,null,null," ",0]
[null,null,null,null,null,null,null,null," ",0]
[null,null,null,null,null,null,null,null," ",0]
[null,null,null,null,null,null,null,null," ",0]
[null,null,null,null,null,null,null,null," ",0]
[null,null,null,null,null,null,null,null," ",0]
[null,null,null,null,null,null,null,null," ",0]
[null,null,null,null,null,null,null,null," ",0]
[null,null,null,null,null,null,null,null," ",0]
[null,null,null,null,null,null,null,null," ",0]
[null,null,null,null,null,null,null,null," ",0]
[null,null,null,null,null,null,null,null," ",0]
[null,null,null,null,null,null,null,null," ",0]
[null,null,null,null,null,null,null,null,{"$f":"CONCATENATE(G521,\" \",H521)","v":" "},{"$f":"F521","v":0}]
[null,null,null,null,null,null,null,null," ",0]
[null,null,null,null,null,null,null,null," ",0]
[null,null,null,null,null,null,null,null," ",0]
[null,null,null,null,null,null,null,null," ",0]
[null,null,null,null,null,null,null,null," ",0]
[null,null,null,null,null,null,null,null," ",0]
[null,null,null,null,null,null,null,null," ",0]
[null,null,null,null,null,null,null,null," ",0]
[null,null,null,null,null,null,null,null," ",0]
[null,null,null,null,null,null,null,null," ",0]
[null,null,null,null,null,null,null,null," ",0]
[null,null,null,null,null,null,null,null," ",0]
[null,null,null,null,null,null,null,null," ",0]
[null,null,null,null,null,null,null,null," ",0]
[null,null,null,null,null,null,null,null," ",0]
[null,null,null,null,null,null,null,null," ",0]
[null,null,null,null,null,null,null,null," ",0]
[null,null,null,null,null,null,null,null," ",0]
[null,null,null,null,null,null,null,null," ",0]
[null,null,null,null,null,null,null,null," ",0]
[null,null,null,null,null,null,null,null," ",0]
[null,null,null,null,null,null,null,null," ",0]
[null,null,null,null,null,null,null,null," ",0]
[null,null,null,null,null,null,null,null," ",0]
[null,null,null,null,null,null,null,null," ",0]
[null,null,null,null,null,null,null,null," ",0]
[null,null,null,null,null,null,null,null," ",0]
[null,null,null,null,null,null,null,null," ",0]
[null,null,null,null,null,null,null,null," ",0]
[null,null,null,null,null,null,null,null," ",0]
[null,null,null,null,null,null,null,null," ",0]
[null,null,null,null,null,null,null,null," ",0]
[null,null,null,null,null,null,null,null," ",0]
[null,null,null,null,null,null,null,null," ",0]
[null,null,null,null,null,null,null,null," ",0]
[null,null,null,null,null,null,null,null," ",0]
[null,null,null,null,null,null,null,null," ",0]
[null,null,null,null,null,null,null,null," ",0]
[null,null,null,null,null,null,null,null," ",0]
[null,null,null,null,null,null,null,null," ",0]
[null,null,null,null,null,null,null,null," ",0]
[null,null,null,null,null,null,null,null," ",0]
[null,null,null,null,null,null,null,null," ",0]
[null,null,null,null,null,null,null,null," ",0]
[null,null,null,null,null,null,null,null," ",0]
[null,null,null,null,null,null,null,null," ",0]
[null,null,null,null,null,null,null,null," ",0]
[null,null,null,null,null,null,null,null," ",0]
[null,null,null,null,null,null,null,null," ",0]
[null,null,null,null,null,null,null,null," ",0]
[null,null,null,null,null,null,null,null," ",0]
[null,null,null,null,null,null,null,null," ",0]
[null,null,null,null,null,null,null,null," ",0]
[null,null,null,null,null,null,null,null," ",0]
[null,null,null,null,null,null,null,null," ",0]
[null,null,null,null,null,null,null,null," ",0]
[null,null,null,null,null,null,null,null," ",0]
[null,null,null,null,null,null,null,null," ",0]
[null,null,null,null,null,null,null,null," ",0]
[null,null,null,null,null,null,null,null," ",0]
[null,null,null,null,null,null,null,null," ",0]
[null,null,null,null,null,null,null,null," ",0]
[null,null,null,null,null,null,null,null," ",0]
[null,null,null,null,null,null,null,null,{"$f":"CONCATENATE(G585,\" \",H585)","v":" "},{"$f":"F585","v":0}]
[null,null,null,null,null,null,null,null," ",0]
[null,null,null,null,null,null,null,null," ",0]
[null,null,null,null,null,null,null,null," ",0]
[null,null,null,null,null,null,null,null," ",0]
[null,null,null,null,null,null,null,null," ",0]
[null,null,null,null,null,null,null,null," ",0]
[null,null,null,null,null,null,null,null," ",0]
[null,null,null,null,null,null,null,null," ",0]
[null,null,null,null,null,null,null,null," ",0]
[null,null,null,null,null,null,null,null," ",0]
[null,null,null,null,null,null,null,null," ",0]
[null,null,null,null,null,null,null,null," ",0]
[null,null,null,null,null,null,null,null," ",0]
[null,null,null,null,null,null,null,null," ",0]
[null,null,null,null,null,null,null,null," ",0]
[null,null,null,null,null,null,null,null," ",0]
[null,null,null,null,null,null,null,null," ",0]
[null,null,null,null,null,null,null,null," ",0]
[null,null,null,null,null,null,null,null," ",0]
[null,null,null,null,null,null,null,null," ",0]
[null,null,null,null,null,null,null,null," ",0]
[null,null,null,null,null,null,null,null," ",0]
[null,null,null,null,null,null,null,null," ",0]
[null,null,null,null,null,null,null,null," ",0]
[null,null,null,null,null,null,null,null," ",0]
[null,null,null,null,null,null,null,null," ",0]
[null,null,null,null,null,null,null,null," ",0]
[null,null,null,null,null,null,null,null," ",0]
[null,null,null,null,null,null,null,null," ",0]
[null,null,null,null,null,null,null,null," ",0]
[null,null,null,null,null,null,null,null," ",0]
[null,null,null,null,null,null,null,null," ",0]
[null,null,null,null,null,null,null,null," ",0]
[null,null,null,null,null,null,null,null," ",0]
[null,null,null,null,null,null,null,null," ",0]
[null,null,null,null,null,null,null,null," ",0]
[null,null,null,null,null,null,null,null," ",0]
[null,null,null,null,null,null,null,null," ",0]
[null,null,null,null,null,null,null,null," ",0]
[null,null,null,null,null,null,null,null," ",0]
[null,null,null,null,null,null,null,null," ",0]
[null,null,null,null,null,null,null,null," ",0]
[null,null,null,null,null,null,null,null," ",0]
[null,null,null,null,null,null,null,null," ",0]
[null,null,null,null,null,null,null,null," ",0]
[null,null,null,null,null,null,null,null," ",0]
[null,null,null,null,null,null,null,null," ",0]
[null,null,null,null,null,null,null,null," ",0]
[null,null,null,null,null,null,null,null," ",0]
[null,null,null,null,null,null,null,null," ",0]
[null,null,null,null,null,null,null,null," ",0]
[null,null,null,null,null,null,null,null," ",0]
[null,null,null,null,null,null,null,null," ",0]
[null,null,null,null,null,null,null,null," ",0]
[null,null,null,null,null,null,null,null," ",0]
[null,null,null,null,null,null,null,null," ",0]
[null,null,null,null,null,null,null,null," ",0]
[null,null,null,null,null,null,null,null," ",0]
[null,null,null,null,null,null,null,null," ",0]
[null,null,null,null,null,null,null,null," ",0]
[null,null,null,null,null,null,null,null," ",0]
[null,null,null,null,null,null,null,null," ",0]
[null,null,null,null,null,null,null,null," ",0]
[null,null,null,null,null,null,null,null,{"$f":"CONCATENATE(G649,\" \",H649)","v":" "},{"$f":"F649","v":0}]
[null,null,null,null,null,null,null,null," ",0]
[null,null,null,null,null,null,null,null," ",0]
[null,null,null,null,null,null,null,null," ",0]
[null,null,null,null,null,null,null,null," ",0]
[null,null,null,null,null,null,null,null," ",0]
[null,null,null,null,null,null,null,null," ",0]
[null,null,null,null,null,null,null,null," ",0]
[null,null,null,null,null,null,null,null," ",0]
[null,null,null,null,null,null,null,null," ",0]
[null,null,null,null,null,null,null,null," ",0]
[null,null,null,null,null,null,null,null," ",0]
[null,null,null,null,null,null,null,null," ",0]
[null,null,null,null,null,null,null,null," ",0]
[null,null,null,null,null,null,null,null," ",0]
[null,null,null,null,null,null,null,null," ",0]
[null,null,null,null,null,null,null,null," ",0]
[null,null,null,null,null,null,null,null," ",0]
[null,null,null,null,null,null,null,null," ",0]
[null,null,null,null,null,null,null,null," ",0]
[null,null,null,null,null,null,null,null," ",0]
[null,null,null,null,null,null,null,null," ",0]
[null,null,null,null,null,null,null,null," ",0]
[null,null,null,null,null,null,null,null," ",0]
[null,null,null,null,null,null,null,null," ",0]
[null,null,null,null,null,null,null,null," ",0]
[null,null,null,null,null,null,null,null," ",0]
[null,null,null,null,null,null,null,null," ",0]
[null,null,null,null,null,null,null,null," ",0]
[null,null,null,null,null,null,null,null," ",0]
[null,null,null,null,null,null,null,null," ",0]
[null,null,null,null,null,null,null,null," ",0]
[null,null,null,null,null,null,null,null," ",0]
[null,null,null,null,null,null,null,null," ",0]
[null,null,null,null,null,null,null,null," ",0]
[null,null,null,null,null,null,null,null," ",0]
[null,null,null,null,null,null,null,null," ",0]
[null,null,null,null,null,null,null,null," ",0]
[null,null,null,null,null,null,null,null," ",0]
[null,null,null,null,null,null,null,null," ",0]
[null,null,null,null,null,null,null,null," ",0]
[null,null,null,null,null,null,null,null," ",0]
[null,null,null,null,null,null,null,null," ",0]
[null,null,null,null,null,null,null,null," ",0]
[null,null,null,null,null,null,null,null," ",0]
[null,null,null,null,null,null,null,null," ",0]
[null,null,null,null,null,null,null,null," ",0]
[null,null,null,null,null,null,null,null," ",0]
[null,null,null,null,null,null,null,null," ",0]
[null,null,null,null,null,null,null,null," ",0]
[null,null,null,null,null,null,null,null," ",0]
[null,null,null,null,null,null,null,null," ",0]
[null,null,null,null,null,null,null,null," ",0]
[null,null,null,null,null,null,null,null," ",0]
[null,null,null,null,null,null,null,null," ",0]
[null,null,null,null,null,null,null,null," ",0]
[null,null,null,null,null,null,null,null," ",0]
[null,null,null,null,null,null,null,null," ",0]
[null,null,null,null,null,null,null,null," ",0]
[null,null,null,null,null,null,null,null," ",0]
[null,null,null,null,null,null,null,null," ",0]
[null,null,null,null,null,null,null,null," ",0]
[null,null,null,null,null,null,null,null," ",0]
[null,null,null,null,null,null,null,null," ",0]
[null,null,null,null,null,null,null,null,{"$f":"CONCATENATE(G713,\" \",H713)","v":" "},{"$f":"F713","v":0}]
[null,null,null,null,null,null,null,null," ",0]
[null,null,null,null,null,null,null,null," ",0]
[null,null,null,null,null,null,null,null," ",0]
[null,null,null,null,null,null,null,null," ",0]
[null,null,null,null,null,null,null,null," ",0]
[null,null,null,null,null,null,null,null," ",0]
[null,null,null,null,null,null,null,null," ",0]
[null,null,null,null,null,null,null,null," ",0]
[null,null,null,null,null,null,null,null," ",0]
[null,null,null,null,null,null,null,null," ",0]
[null,null,null,null,null,null,null,null," ",0]
[null,null,null,null,null,null,null,null," ",0]
[null,null,null,null,null,null,null,null," ",0]
[null,null,null,null,null,null,null,null," ",0]
[null,null,null,null,null,null,null,null," ",0]
[null,null,null,null,null,null,null,null," ",0]
[null,null,null,null,null,null,null,null," ",0]
[null,null,null,null,null,null,null,null," ",0]
[null,null,null,null,null,null,null,null," ",0]
[null,null,null,null,null,null,null,null," ",0]
[null,null,null,null,null,null,null,null," ",0]
[null,null,null,null,null,null,null,null," ",0]
[null,null,null,null,null,null,null,null," ",0]
[null,null,null,null,null,null,null,null," ",0]
[null,null,null,null,null,null,null,null," ",0]
[null,null,null,null,null,null,null,null," ",0]
[null,null,null,null,null,null,null,null," ",0]
[null,null,null,null,null,null,null,null," ",0]
[null,null,null,null,null,null,null,null," ",0]
[null,null,null,null,null,null,null,null," ",0]
[null,null,null,null,null,null,null,null," ",0]
[null,null,null,null,null,null,null,null," ",0]
[null,null,null,null,null,null,null,null," ",0]
[null,null,null,null,null,null,null,null," ",0]
[null,null,null,null,null,null,null,null," ",0]
[null,null,null,null,null,null,null,null," ",0]
[null,null,null,null,null,null,null,null," ",0]
[null,null,null,null,null,null,null,null," ",0]
[null,null,null,null,null,null,null,null," ",0]
[null,null,null,null,null,null,null,null," ",0]
[null,null,null,null,null,null,null,null," ",0]
[null,null,null,null,null,null,null,null," ",0]
[null,null,null,null,null,null,null,null," ",0]
[null,null,null,null,null,null,null,null," ",0]
[null,null,null,null,null,null,null,null," ",0]
[null,null,null,null,null,null,null,null," ",0]
[null,null,null,null,null,null,null,null," ",0]
[null,null,null,null,null,null,null,null," ",0]
[null,null,null,null,null,null,null,null," ",0]
[null,null,null,null,null,null,null,null," ",0]
[null,null,null,null,null,null,null,null," ",0]
[null,null,null,null,null,null,null,null," ",0]
[null,null,null,null,null,null,null,null," ",0]
[null,null,null,null,null,null,null,null," ",0]
[null,null,null,null,null,null,null,null," ",0]
[null,null,null,null,null,null,null,null," ",0]
[null,null,null,null,null,null,null,null," ",0]
[null,null,null,null,null,null,null,null," ",0]
[null,null,null,null,null,null,null,null," ",0]
[null,null,null,null,null,null,null,null," ",0]
[null,null,null,null,null,null,null,null," ",0]
[null,null,null,null,null,null,null,null," ",0]
[null,null,null,null,null,null,null,null," ",0]
[null,null,null,null,null,null,null,null,{"$f":"CONCATENATE(G777,\" \",H777)","v":" "},{"$f":"F777","v":0}]
[null,null,null,null,null,null,null,null," ",0]
[null,null,null,null,null,null,null,null," ",0]
[null,null,null,null,null,null,null,null," ",0]
[null,null,null,null,null,null,null,null," ",0]
[null,null,null,null,null,null,null,null," ",0]
[null,null,null,null,null,null,null,null," ",0]
[null,null,null,null,null,null,null,null," ",0]
[null,null,null,null,null,null,null,null," ",0]
[null,null,null,null,null,null,null,null," ",0]
[null,null,null,null,null,null,null,null," ",0]
[null,null,null,null,null,null,null,null," ",0]
[null,null,null,null,null,null,null,null," ",0]
[null,null,null,null,null,null,null,null," ",0]
[null,null,null,null,null,null,null,null," ",0]
[null,null,null,null,null,null,null,null," ",0]
[null,null,null,null,null,null,null,null," ",0]
[null,null,null,null,null,null,null,null," ",0]
[null,null,null,null,null,null,null,null," ",0]
[null,null,null,null,null,null,null,null," ",0]
[null,null,null,null,null,null,null,null," ",0]
[null,null,null,null,null,null,null,null," ",0]
[null,null,null,null,null,null,null,null," ",0]
[null,null,null,null,null,null,null,null," ",0]
[null,null,null,null,null,null,null,null," ",0]
[null,null,null,null,null,null,null,null," ",0]
[null,null,null,null,null,null,null,null," ",0]
[null,null,null,null,null,null,null,null," ",0]
[null,null,null,null,null,null,null,null," ",0]
[null,null,null,null,null,null,null,null," ",0]
[null,null,null,null,null,null,null,null," ",0]
[null,null,null,null,null,null,null,null," ",0]
[null,null,null,null,null,null,null,null," ",0]
[null,null,null,null,null,null,null,null," ",0]
[null,null,null,null,null,null,null,null," ",0]
[null,null,null,null,null,null,null,null," ",0]
[null,null,null,null,null,null,null,null," ",0]
[null,null,null,null,null,null,null,null," ",0]
[null,null,null,null,null,null,null,null," ",0]
[null,null,null,null,null,null,null,null," ",0]
[null,null,null,null,null,null,null,null," ",0]
[null,null,null,null,null,null,null,null," ",0]
[null,null,null,null,null,null,null,null," ",0]
[null,null,null,null,null,null,null,null," ",0]
[null,null,null,null,null,null,null,null," ",0]
[null,null,null,null,null,null,null,null," ",0]
[null,null,null,null,null,null,null,null," ",0]
[null,null,null,null,null,null,null,null," ",0]
[null,null,null,null,null,null,null,null," ",0]
[null,null,null,null,null,null,null,null," ",0]
[null,null,null,null,null,null,null,null," ",0]
[null,null,null,null,null,null,null,null," ",0]
[null,null,null,null,null,null,null,null," ",0]
[null,null,null,null,null,null,null,null," ",0]
[null,null,null,null,null,null,null,null," ",0]
[null,null,null,null,null,null,null,null," ",0]
[null,null,null,null,null,null,null,null," ",0]
[null,null,null,null,null,null,null,null," ",0]
[null,null,null,null,null,null,null,null," ",0]
[null,null,null,null,null,null,null,null," ",0]
[null,null,null,null,null,null,null,null," ",0]
[null,null,null,null,null,null,null,null," ",0]
[null,null,null,null,null,null,null,null," ",0]
[null,null,null,null,null,null,null,null," ",0]
[null,null,null,null,null,null,null,null,{"$f":"CONCATENATE(G841,\" \",H841)","v":" "},{"$f":"F841","v":0}]
[null,null,null,null,null,null,null,null," ",0]
[null,null,null,null,null,null,null,null," ",0]
[null,null,null,null,null,null,null,null," ",0]
[null,null,null,null,null,null,null,null," ",0]
[null,null,null,null,null,null,null,null," ",0]
[null,null,null,null,null,null,null,null," ",0]
[null,null,null,null,null,null,null,null," ",0]
[null,null,null,null,null,null,null,null," ",0]
[null,null,null,null,null,null,null,null," ",0]
[null,null,null,null,null,null,null,null," ",0]
[null,null,null,null,null,null,null,null," ",0]
[null,null,null,null,null,null,null,null," ",0]
[null,null,null,null,null,null,null,null," ",0]
[null,null,null,null,null,null,null,null," ",0]
[null,null,null,null,null,null,null,null," ",0]
[null,null,null,null,null,null,null,null," ",0]
[null,null,null,null,null,null,null,null," ",0]
[null,null,null,null,null,null,null,null," ",0]
[null,null,null,null,null,null,null,null," ",0]
[null,null,null,null,null,null,null,null," ",0]
[null,null,null,null,null,null,null,null," ",0]
[null,null,null,null,null,null,null,null," ",0]
[null,null,null,null,null,null,null,null," ",0]
[null,null,null,null,null,null,null,null," ",0]
[null,null,null,null,null,null,null,null," ",0]
[null,null,null,null,null,null,null,null," ",0]
[null,null,null,null,null,null,null,null," ",0]
[null,null,null,null,null,null,null,null," ",0]
[null,null,null,null,null,null,null,null," ",0]
[null,null,null,null,null,null,null,null," ",0]
[null,null,null,null,null,null,null,null," ",0]
[null,null,null,null,null,null,null,null," ",0]
[null,null,null,null,null,null,null,null," ",0]
[null,null,null,null,null,null,null,null," ",0]
[null,null,null,null,null,null,null,null," ",0]
[null,null,null,null,null,null,null,null," ",0]
[null,null,null,null,null,null,null,null," ",0]
[null,null,null,null,null,null,null,null," ",0]
[null,null,null,null,null,null,null,null," ",0]
[null,null,null,null,null,null,null,null," ",0]
[null,null,null,null,null,null,null,null," ",0]
[null,null,null,null,null,null,null,null," ",0]
[null,null,null,null,null,null,null,null," ",0]
[null,null,null,null,null,null,null,null," ",0]
[null,null,null,null,null,null,null,null," ",0]
[null,null,null,null,null,null,null,null," ",0]
[null,null,null,null,null,null,null,null," ",0]
[null,null,null,null,null,null,null,null," ",0]
[null,null,null,null,null,null,null,null," ",0]
[null,null,null,null,null,null,null,null," ",0]
[null,null,null,null,null,null,null,null," ",0]
[null,null,null,null,null,null,null,null," ",0]
[null,null,null,null,null,null,null,null," ",0]
[null,null,null,null,null,null,null,null," ",0]
[null,null,null,null,null,null,null,null," ",0]
[null,null,null,null,null,null,null,null," ",0]
[null,null,null,null,null,null,null,null," ",0]
[null,null,null,null,null,null,null,null," ",0]
[null,null,null,null,null,null,null,null," ",0]
[null,null,null,null,null,null,null,null," ",0]
[null,null,null,null,null,null,null,null," ",0]
[null,null,null,null,null,null,null,null," ",0]
[null,null,null,null,null,null,null,null," ",0]
[null,null,null,null,null,null,null,null,{"$f":"CONCATENATE(G905,\" \",H905)","v":" "},{"$f":"F905","v":0}]
[null,null,null,null,null,null,null,null," ",0]
[null,null,null,null,null,null,null,null," ",0]
[null,null,null,null,null,null,null,null," ",0]
[null,null,null,null,null,null,null,null," ",0]
[null,null,null,null,null,null,null,null," ",0]
[null,null,null,null,null,null,null,null," ",0]
[null,null,null,null,null,null,null,null," ",0]
[null,null,null,null,null,null,null,null," ",0]
[null,null,null,null,null,null,null,null," ",0]
[null,null,null,null,null,null,null,null," ",0]
[null,null,null,null,null,null,null,null," ",0]
[null,null,null,null,null,null,null,null," ",0]
[null,null,null,null,null,null,null,null," ",0]
[null,null,null,null,null,null,null,null," ",0]
[null,null,null,null,null,null,null,null," ",0]
[null,null,null,null,null,null,null,null," ",0]
[null,null,null,null,null,null,null,null," ",0]
[null,null,null,null,null,null,null,null," ",0]
[null,null,null,null,null,null,null,null," ",0]
[null,null,null,null,null,null,null,null," ",0]
[null,null,null,null,null,null,null,null," ",0]
[null,null,null,null,null,null,null,null," ",0]
[null,null,null,null,null,null,null,null," ",0]
[null,null,null,null,null,null,null,null," ",0]
[null,null,null,null,null,null,null,null," ",0]
[null,null,null,null,null,null,null,null," ",0]
[null,null,null,null,null,null,null,null," ",0]
[null,null,null,null,null,null,null,null," ",0]
[null,null,null,null,null,null,null,null," ",0]
[null,null,null,null,null,null,null,null," ",0]
[null,null,null,null,null,null,null,null," ",0]
[null,null,null,null,null,null,null,null," ",0]
[null,null,null,null,null,null,null,null," ",0]
[null,null,null,null,null,null,null,null," ",0]
[null,null,null,null,null,null,null,null," ",0]
[null,null,null,null,null,null,null,null," ",0]
[null,null,null,null,null,null,null,null," ",0]
[null,null,null,null,null,null,null,null," ",0]
[null,null,null,null,null,null,null,null," ",0]
[null,null,null,null,null,null,null,null," ",0]
[null,null,null,null,null,null,null,null," ",0]
[null,null,null,null,null,null,null,null," ",0]
[null,null,null,null,null,null,null,null," ",0]
[null,null,null,null,null,null,null,null," ",0]
[null,null,null,null,null,null,null,null," ",0]
[null,null,null,null,null,null,null,null," ",0]
[null,null,null,null,null,null,null,null," ",0]
[null,null,null,null,null,null,null,null," ",0]
[null,null,null,null,null,null,null,null," ",0]
[null,null,null,null,null,null,null,null," ",0]
[null,null,null,null,null,null,null,null," ",0]
[null,null,null,null,null,null,null,null," ",0]
[null,null,null,null,null,null,null,null," ",0]
[null,null,null,null,null,null,null,null," ",0]
[null,null,null,null,null,null,null,null," ",0]
[null,null,null,null,null,null,null,null," ",0]
[null,null,null,null,null,null,null,null," ",0]
[null,null,null,null,null,null,null,null," ",0]
[null,null,null,null,null,null,null,null," ",0]
[null,null,null,null,null,null,null,null," ",0]
[null,null,null,null,null,null,null,null," ",0]
[null,null,null,null,null,null,null,null," ",0]
[null,null,null,null,null,null,null,null," ",0]
[null,null,null,null,null,null,null,null,{"$f":"CONCATENATE(G969,\" \",H969)","v":" "},{"$f":"F969","v":0}]
[null,null,null,null,null,null,null,null," ",0]
[null,null,null,null,null,null,null,null," ",0]
[null,null,null,null,null,null,null,null," ",0]
[null,null,null,null,null,null,null,null," ",0]
[null,null,null,null,null,null,null,null," ",0]
[null,null,null,null,null,null,null,null," ",0]
[null,null,null,null,null,null,null,null," ",0]
[null,null,null,null,null,null,null,null," ",0]
[null,null,null,null,null,null,null,null," ",0]
[null,null,null,null,null,null,null,null," ",0]
[null,null,null,null,null,null,null,null," ",0]
[null,null,null,null,null,null,null,null," ",0]
[null,null,null,null,null,null,null,null," ",0]
[null,null,null,null,null,null,null,null," ",0]
[null,null,null,null,null,null,null,null," ",0]
[null,null,null,null,null,null,null,null," ",0]
[null,null,null,null,null,null,null,null," ",0]
[null,null,null,null,null,null,null,null," ",0]
[null,null,null,null,null,null,null,null," ",0]
[null,null,null,null,null,null,null,null," ",0]
[null,null,null,null,null,null,null,null," ",0]
[null,null,null,null,null,null,null,null," ",0]
[null,null,null,null,null,null,null,null," ",0]
[null,null,null,null,null,null,null,null," ",0]
[null,null,null,null,null,null,null,null," ",0]
[null,null,null,null,null,null,null,null," ",0]
[null,null,null,null,null,null,null,null," ",0]
[null,null,null,null,null,null,null,null," ",0]
[null,null,null,null,null,null,null,null," ",0]
[null,null,null,null,null,null,null,null," ",0]
[null,null,null,null,null,null,null,null," ",0]
[null,null,null,null,null,null,null,null," ",0]
[null,null,null,null,null,null,null,null," ",0]
[null,null,null,null,null,null,null,null," ",0]
[null,null,null,null,null,null,null,null," ",0]
[null,null,null,null,null,null,null,null," ",0]
[null,null,null,null,null,null,null,null," ",0]
[null,null,null,null,null,null,null,null," ",0]
[null,null,null,null,null,null,null,null," ",0]
[null,null,null,null,null,null,null,null," ",0]
[null,null,null,null,null,null,null,null," ",0]
[null,null,null,null,null,null,null,null," ",0]
[null,null,null,null,null,null,null,null," ",0]
[null,null,null,null,null,null,null,null," ",0]
[null,null,null,null,null,null,null,null," ",0]
[null,null,null,null,null,null,null,null," ",0]
[null,null,null,null,null,null,null,null," ",0]
[null,null,null,null,null,null,null,null," ",0]
[null,null,null,null,null,null,null,null," ",0]
[null,null,null,null,null,null,null,null," ",0]
[null,null,null,null,null,null,null,null," ",0]
[null,null,null,null,null,null,null,null," ",0]
[null,null,null,null,null,null,null,null," ",0]
[null,null,null,null,null,null,null,null," ",0]
[null,null,null,null,null,null,null,null," ",0]
[null,null,null,null,null,null,null,null," ",0]
[null,null,null,null,null,null,null,null," ",0]
[null,null,null,null,null,null,null,null," ",0]
[null,null,null,null,null,null,null,null," ",0]
[null,null,null,null,null,null,null,null," ",0]
[null,null,null,null,null,null,null,null," ",0]
[null,null,null,null,null,null,null,null," ",0]
[null,null,null,null,null,null,null,null," ",0]
[null,null,null,null,null,null,null,null,{"$f":"CONCATENATE(G1033,\" \",H1033)","v":" "},{"$f":"F1033","v":0}]
[null,null,null,null,null,null,null,null," ",0]
[null,null,null,null,null,null,null,null," ",0]
[null,null,null,null,null,null,null,null," ",0]
[null,null,null,null,null,null,null,null," ",0]
[null,null,null,null,null,null,null,null," ",0]
[null,null,null,null,null,null,null,null," ",0]
[null,null,null,null,null,null,null,null," ",0]
[null,null,null,null,null,null,null,null," ",0]
[null,null,null,null,null,null,null,null," ",0]
[null,null,null,null,null,null,null,null," ",0]
[null,null,null,null,null,null,null,null," ",0]
[null,null,null,null,null,null,null,null," ",0]
[null,null,null,null,null,null,null,null," ",0]
[null,null,null,null,null,null,null,null," ",0]
[null,null,null,null,null,null,null,null," ",0]
[null,null,null,null,null,null,null,null," ",0]
[null,null,null,null,null,null,null,null," ",0]
[null,null,null,null,null,null,null,null," ",0]
[null,null,null,null,null,null,null,null," ",0]
[null,null,null,null,null,null,null,null," ",0]
[null,null,null,null,null,null,null,null," ",0]
[null,null,null,null,null,null,null,null," ",0]
[null,null,null,null,null,null,null,null," ",0]
[null,null,null,null,null,null,null,null," ",0]
[null,null,null,null,null,null,null,null," ",0]
[null,null,null,null,null,null,null,null," ",0]
[null,null,null,null,null,null,null,null," ",0]
[null,null,null,null,null,null,null,null," ",0]
[null,null,null,null,null,null,null,null," ",0]
[null,null,null,null,null,null,null,null," ",0]
[null,null,null,null,null,null,null,null," ",0]
[null,null,null,null,null,null,null,null," ",0]
[null,null,null,null,null,null,null,null," ",0]
[null,null,null,null,null,null,null,null," ",0]
[null,null,null,null,null,null,null,null," ",0]
[null,null,null,null,null,null,null,null," ",0]
[null,null,null,null,null,null,null,null," ",0]
[null,null,null,null,null,null,null,null," ",0]
[null,null,null,null,null,null,null,null," ",0]
[null,null,null,null,null,null,null,null," ",0]
[null,null,null,null,null,null,null,null," ",0]
[null,null,null,null,null,null,null,null," ",0]
[null,null,null,null,null,null,null,null," ",0]
[null,null,null,null,null,null,null,null," ",0]
[null,null,null,null,null,null,null,null," ",0]
[null,null,null,null,null,null,null,null," ",0]
[null,null,null,null,null,null,null,null," ",0]
[null,null,null,null,null,null,null,null," ",0]
[null,null,null,null,null,null,null,null," ",0]
[null,null,null,null,null,null,null,null," ",0]
[null,null,null,null,null,null,null,null," ",0]
[null,null,null,null,null,null,null,null," ",0]
[null,null,null,null,null,null,null,null," ",0]
[null,null,null,null,null,null,null,null," ",0]
[null,null,null,null,null,null,null,null," ",0]
[null,null,null,null,null,null,null,null," ",0]
[null,null,null,null,null,null,null,null," ",0]
[null,null,null,null,null,null,null,null," ",0]
[null,null,null,null,null,null,null,null," ",0]
[null,null,null,null,null,null,null,null," ",0]
[null,null,null,null,null,null,null,null," ",0]
[null,null,null,null,null,null,null,null," ",0]
[null,null,null,null,null,null,null,null," ",0]
[null,null,null,null,null,null,null,null,{"$f":"CONCATENATE(G1097,\" \",H1097)","v":" "},{"$f":"F1097","v":0}]
[null,null,null,null,null,null,null,null," ",0]
[null,null,null,null,null,null,null,null," ",0]
[null,null,null,null,null,null,null,null," ",0]
[null,null,null,null,null,null,null,null," ",0]
[null,null,null,null,null,null,null,null," ",0]
[null,null,null,null,null,null,null,null," ",0]
[null,null,null,null,null,null,null,null," ",0]
[null,null,null,null,null,null,null,null," ",0]
[null,null,null,null,null,null,null,null," ",0]
[null,null,null,null,null,null,null,null," ",0]
[null,null,null,null,null,null,null,null," ",0]
[null,null,null,null,null,null,null,null," ",0]
[null,null,null,null,null,null,null,null," ",0]
[null,null,null,null,null,null,null,null," ",0]
[null,null,null,null,null,null,null,null," ",0]
[null,null,null,null,null,null,null,null," ",0]
[null,null,null,null,null,null,null,null," ",0]
[null,null,null,null,null,null,null,null," ",0]
[null,null,null,null,null,null,null,null," ",0]
[null,null,null,null,null,null,null,null," ",0]
[null,null,null,null,null,null,null,null," ",0]
[null,null,null,null,null,null,null,null," ",0]
[null,null,null,null,null,null,null,null," ",0]
[null,null,null,null,null,null,null,null," ",0]
[null,null,null,null,null,null,null,null," ",0]
[null,null,null,null,null,null,null,null," ",0]
[null,null,null,null,null,null,null,null," ",0]
[null,null,null,null,null,null,null,null," ",0]
[null,null,null,null,null,null,null,null," ",0]
[null,null,null,null,null,null,null,null," ",0]
[null,null,null,null,null,null,null,null," ",0]
[null,null,null,null,null,null,null,null," ",0]
[null,null,null,null,null,null,null,null," ",0]
[null,null,null,null,null,null,null,null," ",0]
[null,null,null,null,null,null,null,null," ",0]
[null,null,null,null,null,null,null,null," ",0]
[null,null,null,null,null,null,null,null," ",0]
[null,null,null,null,null,null,null,null," ",0]
[null,null,null,null,null,null,null,null," ",0]
[null,null,null,null,null,null,null,null," ",0]
[null,null,null,null,null,null,null,null," ",0]
[null,null,null,null,null,null,null,null," ",0]
[null,null,null,null,null,null,null,null," ",0]
[null,null,null,null,null,null,null,null," ",0]
[null,null,null,null,null,null,null,null," ",0]
[null,null,null,null,null,null,null,null," ",0]
[null,null,null,null,null,null,null,null," ",0]
[null,null,null,null,null,null,null,null," ",0]
[null,null,null,null,null,null,null,null," ",0]
[null,null,null,null,null,null,null,null," ",0]
[null,null,null,null,null,null,null,null," ",0]
[null,null,null,null,null,null,null,null," ",0]
[null,null,null,null,null,null,null,null," ",0]
[null,null,null,null,null,null,null,null," ",0]
[null,null,null,null,null,null,null,null," ",0]
[null,null,null,null,null,null,null,null," ",0]
[null,null,null,null,null,null,null,null," ",0]
[null,null,null,null,null,null,null,null," ",0]
[null,null,null,null,null,null,null,null," ",0]
[null,null,null,null,null,null,null,null," ",0]
[null,null,null,null,null,null,null,null," ",0]
[null,null,null,null,null,null,null,null," ",0]
[null,null,null,null,null,null,null,null," ",0]
[null,null,null,null,null,null,null,null,{"$f":"CONCATENATE(G1161,\" \",H1161)","v":" "},{"$f":"F1161","v":0}]
[null,null,null,null,null,null,null,null," ",0]
[null,null,null,null,null,null,null,null," ",0]
[null,null,null,null,null,null,null,null," ",0]
[null,null,null,null,null,null,null,null," ",0]
[null,null,null,null,null,null,null,null," ",0]
[null,null,null,null,null,null,null,null," ",0]
[null,null,null,null,null,null,null,null," ",0]
[null,null,null,null,null,null,null,null," ",0]
[null,null,null,null,null,null,null,null," ",0]
[null,null,null,null,null,null,null,null," ",0]
[null,null,null,null,null,null,null,null," ",0]
[null,null,null,null,null,null,null,null," ",0]
[null,null,null,null,null,null,null,null," ",0]
[null,null,null,null,null,null,null,null," ",0]
[null,null,null,null,null,null,null,null," ",0]
[null,null,null,null,null,null,null,null," ",0]
[null,null,null,null,null,null,null,null," ",0]
[null,null,null,null,null,null,null,null," ",0]
[null,null,null,null,null,null,null,null," ",0]
[null,null,null,null,null,null,null,null," ",0]
[null,null,null,null,null,null,null,null," ",0]
[null,null,null,null,null,null,null,null," ",0]
[null,null,null,null,null,null,null,null," ",0]
[null,null,null,null,null,null,null,null," ",0]
[null,null,null,null,null,null,null,null," ",0]
[null,null,null,null,null,null,null,null," ",0]
[null,null,null,null,null,null,null,null," ",0]
[null,null,null,null,null,null,null,null," ",0]
[null,null,null,null,null,null,null,null," ",0]
[null,null,null,null,null,null,null,null," ",0]
[null,null,null,null,null,null,null,null," ",0]
[null,null,null,null,null,null,null,null," ",0]
[null,null,null,null,null,null,null,null," ",0]
[null,null,null,null,null,null,null,null," ",0]
[null,null,null,null,null,null,null,null," ",0]
[null,null,null,null,null,null,null,null," ",0]
[null,null,null,null,null,null,null,null," ",0]
[null,null,null,null,null,null,null,null," ",0]
[null,null,null,null,null,null,null,null," ",0]
[null,null,null,null,null,null,null,null," ",0]
[null,null,null,null,null,null,null,null," ",0]
[null,null,null,null,null,null,null,null," ",0]
[null,null,null,null,null,null,null,null," ",0]
[null,null,null,null,null,null,null,null," ",0]
[null,null,null,null,null,null,null,null," ",0]
[null,null,null,null,null,null,null,null," ",0]
[null,null,null,null,null,null,null,null," ",0]
[null,null,null,null,null,null,null,null," ",0]
[null,null,null,null,null,null,null,null," ",0]
[null,null,null,null,null,null,null,null," ",0]
[null,null,null,null,null,null,null,null," ",0]
[null,null,null,null,null,null,null,null," ",0]
[null,null,null,null,null,null,null,null," ",0]
[null,null,null,null,null,null,null,null," ",0]
[null,null,null,null,null,null,null,null," ",0]
[null,null,null,null,null,null,null,null," ",0]
[null,null,null,null,null,null,null,null," ",0]
[null,null,null,null,null,null,null,null," ",0]
[null,null,null,null,null,null,null,null," ",0]
[null,null,null,null,null,null,null,null," ",0]
[null,null,null,null,null,null,null,null," ",0]
[null,null,null,null,null,null,null,null," ",0]
[null,null,null,null,null,null,null,null," ",0]
[null,null,null,null,null,null,null,null,{"$f":"CONCATENATE(G1225,\" \",H1225)","v":" "},{"$f":"F1225","v":0}]
[null,null,null,null,null,null,null,null," ",0]
[null,null,null,null,null,null,null,null," ",0]
[null,null,null,null,null,null,null,null," ",0]
[null,null,null,null,null,null,null,null," ",0]
[null,null,null,null,null,null,null,null," ",0]
[null,null,null,null,null,null,null,null," ",0]
[null,null,null,null,null,null,null,null," ",0]
[null,null,null,null,null,null,null,null," ",0]
[null,null,null,null,null,null,null,null," ",0]
[null,null,null,null,null,null,null,null," ",0]
[null,null,null,null,null,null,null,null," ",0]
[null,null,null,null,null,null,null,null," ",0]
[null,null,null,null,null,null,null,null," ",0]
[null,null,null,null,null,null,null,null," ",0]
[null,null,null,null,null,null,null,null," ",0]
[null,null,null,null,null,null,null,null," ",0]
[null,null,null,null,null,null,null,null," ",0]
[null,null,null,null,null,null,null,null," ",0]
[null,null,null,null,null,null,null,null," ",0]
[null,null,null,null,null,null,null,null," ",0]
[null,null,null,null,null,null,null,null," ",0]
[null,null,null,null,null,null,null,null," ",0]
[null,null,null,null,null,null,null,null," ",0]
[null,null,null,null,null,null,null,null," ",0]
[null,null,null,null,null,null,null,null," ",0]
[null,null,null,null,null,null,null,null," ",0]
[null,null,null,null,null,null,null,null," ",0]
[null,null,null,null,null,null,null,null," ",0]
[null,null,null,null,null,null,null,null," ",0]
[null,null,null,null,null,null,null,null," ",0]
[null,null,null,null,null,null,null,null," ",0]
[null,null,null,null,null,null,null,null," ",0]
[null,null,null,null,null,null,null,null," ",0]
[null,null,null,null,null,null,null,null," ",0]
[null,null,null,null,null,null,null,null," ",0]
[null,null,null,null,null,null,null,null," ",0]
[null,null,null,null,null,null,null,null," ",0]
[null,null,null,null,null,null,null,null," ",0]
[null,null,null,null,null,null,null,null," ",0]
[null,null,null,null,null,null,null,null," ",0]
[null,null,null,null,null,null,null,null," ",0]
[null,null,null,null,null,null,null,null," ",0]
[null,null,null,null,null,null,null,null," ",0]
[null,null,null,null,null,null,null,null," ",0]
[null,null,null,null,null,null,null,null," ",0]
[null,null,null,null,null,null,null,null," ",0]
[null,null,null,null,null,null,null,null," ",0]
[null,null,null,null,null,null,null,null," ",0]
[null,null,null,null,null,null,null,null," ",0]
[null,null,null,null,null,null,null,null," ",0]
[null,null,null,null,null,null,null,null," ",0]
[null,null,null,null,null,null,null,null," ",0]
[null,null,null,null,null,null,null,null," ",0]
[null,null,null,null,null,null,null,null," ",0]
[null,null,null,null,null,null,null,null," ",0]
[null,null,null,null,null,null,null,null," ",0]
[null,null,null,null,null,null,null,null," ",0]
[null,null,null,null,null,null,null,null," ",0]
[null,null,null,null,null,null,null,null," ",0]
[null,null,null,null,null,null,null,null," ",0]
[null,null,null,null,null,null,null,null," ",0]
[null,null,null,null,null,null,null,null," ",0]
[null,null,null,null,null,null,null,null," ",0]
[null,null,null,null,null,null,null,null,{"$f":"CONCATENATE(G1289,\" \",H1289)","v":" "},{"$f":"F1289","v":0}]
[null,null,null,null,null,null,null,null," ",0]
[null,null,null,null,null,null,null,null," ",0]
[null,null,null,null,null,null,null,null," ",0]
[null,null,null,null,null,null,null,null," ",0]
[null,null,null,null,null,null,null,null," ",0]
[null,null,null,null,null,null,null,null," ",0]
[null,null,null,null,null,null,null,null," ",0]
[null,null,null,null,null,null,null,null," ",0]
[null,null,null,null,null,null,null,null," ",0]
[null,null,null,null,null,null,null,null," ",0]
[null,null,null,null,null,null,null,null," ",0]
[null,null,null,null,null,null,null,null," ",0]
[null,null,null,null,null,null,null,null," ",0]
[null,null,null,null,null,null,null,null," ",0]
[null,null,null,null,null,null,null,null," ",0]
[null,null,null,null,null,null,null,null," ",0]
[null,null,null,null,null,null,null,null," ",0]
[null,null,null,null,null,null,null,null," ",0]
[null,null,null,null,null,null,null,null," ",0]
[null,null,null,null,null,null,null,null," ",0]
[null,null,null,null,null,null,null,null," ",0]
[null,null,null,null,null,null,null,null," ",0]
[null,null,null,null,null,null,null,null," ",0]
[null,null,null,null,null,null,null,null," ",0]
[null,null,null,null,null,null,null,null," ",0]
[null,null,null,null,null,null,null,null," ",0]
[null,null,null,null,null,null,null,null," ",0]
[null,null,null,null,null,null,null,null," ",0]
[null,null,null,null,null,null,null,null," ",0]
[null,null,null,null,null,null,null,null," ",0]
[null,null,null,null,null,null,null,null," ",0]
[null,null,null,null,null,null,null,null," ",0]
[null,null,null,null,null,null,null,null," ",0]
[null,null,null,null,null,null,null,null," ",0]
[null,null,null,null,null,null,null,null," ",0]
[null,null,null,null,null,null,null,null," ",0]
[null,null,null,null,null,null,null,null," ",0]
[null,null,null,null,null,null,null,null," ",0]
[null,null,null,null,null,null,null,null," ",0]
[null,null,null,null,null,null,null,null," ",0]
[null,null,null,null,null,null,null,null," ",0]
[null,null,null,null,null,null,null,null," ",0]
[null,null,null,null,null,null,null,null," ",0]
[null,null,null,null,null,null,null,null," ",0]
[null,null,null,null,null,null,null,null," ",0]
[null,null,null,null,null,null,null,null," ",0]
[null,null,null,null,null,null,null,null," ",0]
[null,null,null,null,null,null,null,null," ",0]
[null,null,null,null,null,null,null,null," ",0]
[null,null,null,null,null,null,null,null," ",0]
[null,null,null,null,null,null,null,null," ",0]
[null,null,null,null,null,null,null,null," ",0]
[null,null,null,null,null,null,null,null," ",0]
[null,null,null,null,null,null,null,null," ",0]
[null,null,null,null,null,null,null,null," ",0]
[null,null,null,null,null,null,null,null," ",0]
[null,null,null,null,null,null,null,null," ",0]
[null,null,null,null,null,null,null,null," ",0]
[null,null,null,null,null,null,null,null," ",0]
[null,null,null,null,null,null,null,null," ",0]
[null,null,null,null,null,null,null,null," ",0]
[null,null,null,null,null,null,null,null," ",0]
[null,null,null,null,null,null,null,null," ",0]
[null,null,null,null,null,null,null,null,{"$f":"CONCATENATE(G1353,\" \",H1353)","v":" "},{"$f":"F1353","v":0}]
[null,null,null,null,null,null,null,null," ",0]
[null,null,null,null,null,null,null,null," ",0]
[null,null,null,null,null,null,null,null," ",0]
[null,null,null,null,null,null,null,null," ",0]
[null,null,null,null,null,null,null,null," ",0]
[null,null,null,null,null,null,null,null," ",0]
[null,null,null,null,null,null,null,null," ",0]
[null,null,null,null,null,null,null,null," ",0]
[null,null,null,null,null,null,null,null," ",0]
[null,null,null,null,null,null,null,null," ",0]
[null,null,null,null,null,null,null,null," ",0]
[null,null,null,null,null,null,null,null," ",0]
[null,null,null,null,null,null,null,null," ",0]
[null,null,null,null,null,null,null,null," ",0]
[null,null,null,null,null,null,null,null," ",0]
[null,null,null,null,null,null,null,null," ",0]
[null,null,null,null,null,null,null,null," ",0]
[null,null,null,null,null,null,null,null," ",0]
[null,null,null,null,null,null,null,null," ",0]
[null,null,null,null,null,null,null,null," ",0]
[null,null,null,null,null,null,null,null," ",0]
[null,null,null,null,null,null,null,null," ",0]
[null,null,null,null,null,null,null,null," ",0]
[null,null,null,null,null,null,null,null," ",0]
[null,null,null,null,null,null,null,null," ",0]
[null,null,null,null,null,null,null,null," ",0]
[null,null,null,null,null,null,null,null," ",0]
[null,null,null,null,null,null,null,null," ",0]
[null,null,null,null,null,null,null,null," ",0]
[null,null,null,null,null,null,null,null," ",0]
[null,null,null,null,null,null,null,null," ",0]
[null,null,null,null,null,null,null,null," ",0]
[null,null,null,null,null,null,null,null," ",0]
[null,null,null,null,null,null,null,null," ",0]
[null,null,null,null,null,null,null,null," ",0]
[null,null,null,null,null,null,null,null," ",0]
[null,null,null,null,null,null,null,null," ",0]
[null,null,null,null,null,null,null,null," ",0]
[null,null,null,null,null,null,null,null," ",0]
[null,null,null,null,null,null,null,null," ",0]
[null,null,null,null,null,null,null,null," ",0]
[null,null,null,null,null,null,null,null," ",0]
[null,null,null,null,null,null,null,null," ",0]
[null,null,null,null,null,null,null,null," ",0]
[null,null,null,null,null,null,null,null," ",0]
[null,null,null,null,null,null,null,null," ",0]
[null,null,null,null,null,null,null,null," ",0]
[null,null,null,null,null,null,null,null," ",0]
[null,null,null,null,null,null,null,null," ",0]
[null,null,null,null,null,null,null,null," ",0]
[null,null,null,null,null,null,null,null," ",0]
[null,null,null,null,null,null,null,null," ",0]
[null,null,null,null,null,null,null,null," ",0]
[null,null,null,null,null,null,null,null," ",0]
[null,null,null,null,null,null,null,null," ",0]
[null,null,null,null,null,null,null,null," ",0]
[null,null,null,null,null,null,null,null," ",0]
[null,null,null,null,null,null,null,null," ",0]
[null,null,null,null,null,null,null,null," ",0]
[null,null,null,null,null,null,null,null," ",0]
[null,null,null,null,null,null,null,null," ",0]
[null,null,null,null,null,null,null,null," ",0]
[null,null,null,null,null,null,null,null," ",0]
[null,null,null,null,null,null,null,null,{"$f":"CONCATENATE(G1417,\" \",H1417)","v":" "},{"$f":"F1417","v":0}]
[null,null,null,null,null,null,null,null," ",0]
[null,null,null,null,null,null,null,null," ",0]
[null,null,null,null,null,null,null,null," ",0]
[null,null,null,null,null,null,null,null," ",0]
[null,null,null,null,null,null,null,null," ",0]
[null,null,null,null,null,null,null,null," ",0]
[null,null,null,null,null,null,null,null," ",0]
[null,null,null,null,null,null,null,null," ",0]
[null,null,null,null,null,null,null,null," ",0]
[null,null,null,null,null,null,null,null," ",0]
[null,null,null,null,null,null,null,null," ",0]
[null,null,null,null,null,null,null,null," ",0]
[null,null,null,null,null,null,null,null," ",0]
[null,null,null,null,null,null,null,null," ",0]
[null,null,null,null,null,null,null,null," ",0]
[null,null,null,null,null,null,null,null," ",0]
[null,null,null,null,null,null,null,null," ",0]
[null,null,null,null,null,null,null,null," ",0]
[null,null,null,null,null,null,null,null," ",0]
[null,null,null,null,null,null,null,null," ",0]
[null,null,null,null,null,null,null,null," ",0]
[null,null,null,null,null,null,null,null," ",0]
[null,null,null,null,null,null,null,null," ",0]
[null,null,null,null,null,null,null,null," ",0]
[null,null,null,null,null,null,null,null," ",0]
[null,null,null,null,null,null,null,null," ",0]
[null,null,null,null,null,null,null,null," ",0]
[null,null,null,null,null,null,null,null," ",0]
[null,null,null,null,null,null,null,null," ",0]
[null,null,null,null,null,null,null,null," ",0]
[null,null,null,null,null,null,null,null," ",0]
[null,null,null,null,null,null,null,null," ",0]
[null,null,null,null,null,null,null,null," ",0]
[null,null,null,null,null,null,null,null," ",0]
[null,null,null,null,null,null,null,null," ",0]
[null,null,null,null,null,null,null,null," ",0]
[null,null,null,null,null,null,null,null," ",0]
[null,null,null,null,null,null,null,null," ",0]
[null,null,null,null,null,null,null,null," ",0]
[null,null,null,null,null,null,null,null," ",0]
[null,null,null,null,null,null,null,null," ",0]
[null,null,null,null,null,null,null,null," ",0]
[null,null,null,null,null,null,null,null," ",0]
[null,null,null,null,null,null,null,null," ",0]
[null,null,null,null,null,null,null,null," ",0]
[null,null,null,null,null,null,null,null," ",0]
[null,null,null,null,null,null,null,null," ",0]
[null,null,null,null,null,null,null,null," ",0]
[null,null,null,null,null,null,null,null," ",0]
[null,null,null,null,null,null,null,null," ",0]
[null,null,null,null,null,null,null,null," ",0]
[null,null,null,null,null,null,null,null," ",0]
[null,null,null,null,null,null,null,null," ",0]
[null,null,null,null,null,null,null,null," ",0]
[null,null,null,null,null,null,null,null," ",0]
[null,null,null,null,null,null,null,null," ",0]
[null,null,null,null,null,null,null,null," ",0]
[null,null,null,null,null,null,null,null," ",0]
[null,null,null,null,null,null,null,null," ",0]
[null,null,null,null,null,null,null,null," ",0]
[null,null,null,null,null,null,null,null," ",0]
[null,null,null,null,null,null,null,null," ",0]
[null,null,null,null,null,null,null,null," ",0]
[null,null,null,null,null,null,null,null,{"$f":"CONCATENATE(G1481,\" \",H1481)","v":" "},{"$f":"F1481","v":0}]
[null,null,null,null,null,null,null,null," ",0]
[null,null,null,null,null,null,null,null," ",0]
[null,null,null,null,null,null,null,null," ",0]
[null,null,null,null,null,null,null,null," ",0]
[null,null,null,null,null,null,null,null," ",0]
[null,null,null,null,null,null,null,null," ",0]
[null,null,null,null,null,null,null,null," ",0]
[null,null,null,null,null,null,null,null," ",0]
[null,null,null,null,null,null,null,null," ",0]
[null,null,null,null,null,null,null,null," ",0]
[null,null,null,null,null,null,null,null," ",0]
[null,null,null,null,null,null,null,null," ",0]
[null,null,null,null,null,null,null,null," ",0]
[null,null,null,null,null,null,null,null," ",0]
[null,null,null,null,null,null,null,null," ",0]
[null,null,null,null,null,null,null,null," ",0]
[null,null,null,null,null,null,null,null," ",0]
[null,null,null,null,null,null,null,null," ",0]
[null,null,null,null,null,null,null,null," ",0]
[null,null,null,null,null,null,null,null," ",0]
[null,null,null,null,null,null,null,null," ",0]
[null,null,null,null,null,null,null,null," ",0]
[null,null,null,null,null,null,null,null," ",0]
[null,null,null,null,null,null,null,null," ",0]
[null,null,null,null,null,null,null,null," ",0]
[null,null,null,null,null,null,null,null," ",0]
[null,null,null,null,null,null,null,null," ",0]
[null,null,null,null,null,null,null,null," ",0]
[null,null,null,null,null,null,null,null," ",0]
[null,null,null,null,null,null,null,null," ",0]
[null,null,null,null,null,null,null,null," ",0]
[null,null,null,null,null,null,null,null," ",0]
[null,null,null,null,null,null,null,null," ",0]
[null,null,null,null,null,null,null,null," ",0]
[null,null,null,null,null,null,null,null," ",0]
[null,null,null,null,null,null,null,null," ",0]
[null,null,null,null,null,null,null,null," ",0]
[null,null,null,null,null,null,null,null," ",0]
[null,null,null,null,null,null,null,null," ",0]
[null,null,null,null,null,null,null,null," ",0]
[null,null,null,null,null,null,null,null," ",0]
[null,null,null,null,null,null,null,null," ",0]
[null,null,null,null,null,null,null,null," ",0]
[null,null,null,null,null,null,null,null," ",0]
[null,null,null,null,null,null,null,null," ",0]
[null,null,null,null,null,null,null,null," ",0]
[null,null,null,null,null,null,null,null," ",0]
[null,null,null,null,null,null,null,null," ",0]
[null,null,null,null,null,null,null,null," ",0]
[null,null,null,null,null,null,null,null," ",0]
[null,null,null,null,null,null,null,null," ",0]
[null,null,null,null,null,null,null,null," ",0]
[null,null,null,null,null,null,null,null," ",0]
[null,null,null,null,null,null,null,null," ",0]
[null,null,null,null,null,null,null,null," ",0]
[null,null,null,null,null,null,null,null," ",0]
[null,null,null,null,null,null,null,null," ",0]
[null,null,null,null,null,null,null,null," ",0]
[null,null,null,null,null,null,null,null," ",0]
[null,null,null,null,null,null,null,null," ",0]
[null,null,null,null,null,null,null,null," ",0]
[null,null,null,null,null,null,null,null," ",0]
[null,null,null,null,null,null,null,null," ",0]
[null,null,null,null,null,null,null,null,{"$f":"CONCATENATE(G1545,\" \",H1545)","v":" "},{"$f":"F1545","v":0}]
[null,null,null,null,null,null,null,null," ",0]
[null,null,null,null,null,null,null,null," ",0]
[null,null,null,null,null,null,null,null," ",0]
[null,null,null,null,null,null,null,null," ",0]
[null,null,null,null,null,null,null,null," ",0]
[null,null,null,null,null,null,null,null," ",0]
[null,null,null,null,null,null,null,null," ",0]
[null,null,null,null,null,null,null,null," ",0]
[null,null,null,null,null,null,null,null," ",0]
[null,null,null,null,null,null,null,null," ",0]
[null,null,null,null,null,null,null,null," ",0]
[null,null,null,null,null,null,null,null," ",0]
[null,null,null,null,null,null,null,null," ",0]
[null,null,null,null,null,null,null,null," ",0]
[null,null,null,null,null,null,null,null," ",0]
[null,null,null,null,null,null,null,null," ",0]
[null,null,null,null,null,null,null,null," ",0]
[null,null,null,null,null,null,null,null," ",0]
[null,null,null,null,null,null,null,null," ",0]
[null,null,null,null,null,null,null,null," ",0]
[null,null,null,null,null,null,null,null," ",0]
[null,null,null,null,null,null,null,null," ",0]
[null,null,null,null,null,null,null,null," ",0]
[null,null,null,null,null,null,null,null," ",0]
[null,null,null,null,null,null,null,null," ",0]
[null,null,null,null,null,null,null,null," ",0]
[null,null,null,null,null,null,null,null," ",0]
[null,null,null,null,null,null,null,null," ",0]
[null,null,null,null,null,null,null,null," ",0]
[null,null,null,null,null,null,null,null," ",0]
[null,null,null,null,null,null,null,null," ",0]
[null,null,null,null,null,null,null,null," ",0]
[null,null,null,null,null,null,null,null," ",0]
[null,null,null,null,null,null,null,null," ",0]
[null,null,null,null,null,null,null,null," ",0]
[null,null,null,null,null,null,null,null," ",0]
[null,null,null,null,null,null,null,null," ",0]
[null,null,null,null,null,null,null,null," ",0]
[null,null,null,null,null,null,null,null," ",0]
[null,null,null,null,null,null,null,null," ",0]
[null,null,null,null,null,null,null,null," ",0]
[null,null,null,null,null,null,null,null," ",0]
[null,null,null,null,null,null,null,null," ",0]
[null,null,null,null,null,null,null,null," ",0]
[null,null,null,null,null,null,null,null," ",0]
[null,null,null,null,null,null,null,null," ",0]
[null,null,null,null,null,null,null,null," ",0]
[null,null,null,null,null,null,null,null," ",0]
[null,null,null,null,null,null,null,null," ",0]
[null,null,null,null,null,null,null,null," ",0]
[null,null,null,null,null,null,null,null," ",0]
[null,null,null,null,null,null,null,null," ",0]
[null,null,null,null,null,null,null,null," ",0]
[null,null,null,null,null,null,null,null," ",0]
[null,null,null,null,null,null,null,null," ",0]
[null,null,null,null,null,null,null,null," ",0]
[null,null,null,null,null,null,null,null," ",0]
[null,null,null,null,null,null,null,null," ",0]
[null,null,null,null,null,null,null,null," ",0]
[null,null,null,null,null,null,null,null," ",0]
[null,null,null,null,null,null,null,null," ",0]
[null,null,null,null,null,null,null,null," ",0]
[null,null,null,null,null,null,null,null," ",0]
[null,null,null,null,null,null,null,null,{"$f":"CONCATENATE(G1609,\" \",H1609)","v":" "},{"$f":"F1609","v":0}]
[null,null,null,null,null,null,null,null," ",0]
[null,null,null,null,null,null,null,null," ",0]
[null,null,null,null,null,null,null,null," ",0]
[null,null,null,null,null,null,null,null," ",0]
[null,null,null,null,null,null,null,null," ",0]
[null,null,null,null,null,null,null,null," ",0]
[null,null,null,null,null,null,null,null," ",0]
[null,null,null,null,null,null,null,null," ",0]
[null,null,null,null,null,null,null,null," ",0]
[null,null,null,null,null,null,null,null," ",0]
[null,null,null,null,null,null,null,null," ",0]
[null,null,null,null,null,null,null,null," ",0]
[null,null,null,null,null,null,null,null," ",0]
[null,null,null,null,null,null,null,null," ",0]
[null,null,null,null,null,null,null,null," ",0]
[null,null,null,null,null,null,null,null," ",0]
[null,null,null,null,null,null,null,null," ",0]
[null,null,null,null,null,null,null,null," ",0]
[null,null,null,null,null,null,null,null," ",0]
[null,null,null,null,null,null,null,null," ",0]
[null,null,null,null,null,null,null,null," ",0]
[null,null,null,null,null,null,null,null," ",0]
[null,null,null,null,null,null,null,null," ",0]
[null,null,null,null,null,null,null,null," ",0]
[null,null,null,null,null,null,null,null," ",0]
[null,null,null,null,null,null,null,null," ",0]
[null,null,null,null,null,null,null,null," ",0]
[null,null,null,null,null,null,null,null," ",0]
[null,null,null,null,null,null,null,null," ",0]
[null,null,null,null,null,null,null,null," ",0]
[null,null,null,null,null,null,null,null," ",0]
[null,null,null,null,null,null,null,null," ",0]
[null,null,null,null,null,null,null,null," ",0]
[null,null,null,null,null,null,null,null," ",0]
[null,null,null,null,null,null,null,null," ",0]
[null,null,null,null,null,null,null,null," ",0]
[null,null,null,null,null,null,null,null," ",0]
[null,null,null,null,null,null,null,null," ",0]
[null,null,null,null,null,null,null,null," ",0]
[null,null,null,null,null,null,null,null," ",0]
[null,null,null,null,null,null,null,null," ",0]
[null,null,null,null,null,null,null,null," ",0]
[null,null,null,null,null,null,null,null," ",0]
[null,null,null,null,null,null,null,null," ",0]
[null,null,null,null,null,null,null,null," ",0]
[null,null,null,null,null,null,null,null," ",0]
[null,null,null,null,null,null,null,null," ",0]
[null,null,null,null,null,null,null,null," ",0]
[null,null,null,null,null,null,null,null," ",0]
[null,null,null,null,null,null,null,null," ",0]
[null,null,null,null,null,null,null,null," ",0]
[null,null,null,null,null,null,null,null," ",0]
[null,null,null,null,null,null,null,null," ",0]
[null,null,null,null,null,null,null,null," ",0]
[null,null,null,null,null,null,null,null," ",0]
[null,null,null,null,null,null,null,null," ",0]
[null,null,null,null,null,null,null,null," ",0]
[null,null,null,null,null,null,null,null," ",0]
[null,null,null,null,null,null,null,null," ",0]
[null,null,null,null,null,null,null,null," ",0]
[null,null,null,null,null,null,null,null," ",0]
[null,null,null,null,null,null,null,null," ",0]
[null,null,null,null,null,null,null,null," ",0]
[null,null,null,null,null,null,null,null,{"$f":"CONCATENATE(G1673,\" \",H1673)","v":" "},{"$f":"F1673","v":0}]
[null,null,null,null,null,null,null,null," ",0]
[null,null,null,null,null,null,null,null," ",0]
[null,null,null,null,null,null,null,null," ",0]
[null,null,null,null,null,null,null,null," ",0]
[null,null,null,null,null,null,null,null," ",0]
[null,null,null,null,null,null,null,null," ",0]
[null,null,null,null,null,null,null,null," ",0]
[null,null,null,null,null,null,null,null," ",0]
[null,null,null,null,null,null,null,null," ",0]
[null,null,null,null,null,null,null,null," ",0]
[null,null,null,null,null,null,null,null," ",0]
[null,null,null,null,null,null,null,null," ",0]
[null,null,null,null,null,null,null,null," ",0]
[null,null,null,null,null,null,null,null," ",0]
[null,null,null,null,null,null,null,null," ",0]
[null,null,null,null,null,null,null,null," ",0]
[null,null,null,null,null,null,null,null," ",0]
[null,null,null,null,null,null,null,null," ",0]
[null,null,null,null,null,null,null,null," ",0]
[null,null,null,null,null,null,null,null," ",0]
[null,null,null,null,null,null,null,null," ",0]
[null,null,null,null,null,null,null,null," ",0]
[null,null,null,null,null,null,null,null," ",0]
[null,null,null,null,null,null,null,null," ",0]
[null,null,null,null,null,null,null,null," ",0]
[null,null,null,null,null,null,null,null," ",0]
[null,null,null,null,null,null,null,null," ",0]
[null,null,null,null,null,null,null,null," ",0]
[null,null,null,null,null,null,null,null," ",0]
[null,null,null,null,null,null,null,null," ",0]
[null,null,null,null,null,null,null,null," ",0]
[null,null,null,null,null,null,null,null," ",0]
[null,null,null,null,null,null,null,null," ",0]
[null,null,null,null,null,null,null,null," ",0]
[null,null,null,null,null,null,null,null," ",0]
[null,null,null,null,null,null,null,null," ",0]
[null,null,null,null,null,null,null,null," ",0]
[null,null,null,null,null,null,null,null," ",0]
[null,null,null,null,null,null,null,null," ",0]
[null,null,null,null,null,null,null,null," ",0]
[null,null,null,null,null,null,null,null," ",0]
[null,null,null,null,null,null,null,null," ",0]
[null,null,null,null,null,null,null,null," ",0]
[null,null,null,null,null,null,null,null," ",0]
[null,null,null,null,null,null,null,null," ",0]
[null,null,null,null,null,null,null,null," ",0]
[null,null,null,null,null,null,null,null," ",0]
[null,null,null,null,null,null,null,null," ",0]
[null,null,null,null,null,null,null,null," ",0]
[null,null,null,null,null,null,null,null," ",0]
[null,null,null,null,null,null,null,null," ",0]
[null,null,null,null,null,null,null,null," ",0]
[null,null,null,null,null,null,null,null," ",0]
[null,null,null,null,null,null,null,null," ",0]
[null,null,null,null,null,null,null,null," ",0]
[null,null,null,null,null,null,null,null," ",0]
[null,null,null,null,null,null,null,null," ",0]
[null,null,null,null,null,null,null,null," ",0]
[null,null,null,null,null,null,null,null," ",0]
[null,null,null,null,null,null,null,null," ",0]
[null,null,null,null,null,null,null,null," ",0]
[null,null,null,null,null,null,null,null," ",0]
[null,null,null,null,null,null,null,null," ",0]
[null,null,null,null,null,null,null,null,{"$f":"CONCATENATE(G1737,\" \",H1737)","v":" "},{"$f":"F1737","v":0}]
[null,null,null,null,null,null,null,null," ",0]
[null,null,null,null,null,null,null,null," ",0]
[null,null,null,null,null,null,null,null," ",0]
[null,null,null,null,null,null,null,null," ",0]
[null,null,null,null,null,null,null,null," ",0]
[null,null,null,null,null,null,null,null," ",0]
[null,null,null,null,null,null,null,null," ",0]
[null,null,null,null,null,null,null,null," ",0]
[null,null,null,null,null,null,null,null," ",0]
[null,null,null,null,null,null,null,null," ",0]
[null,null,null,null,null,null,null,null," ",0]
[null,null,null,null,null,null,null,null," ",0]
[null,null,null,null,null,null,null,null," ",0]
[null,null,null,null,null,null,null,null," ",0]
[null,null,null,null,null,null,null,null," ",0]
[null,null,null,null,null,null,null,null," ",0]
[null,null,null,null,null,null,null,null," ",0]
[null,null,null,null,null,null,null,null," ",0]
[null,null,null,null,null,null,null,null," ",0]
[null,null,null,null,null,null,null,null," ",0]
[null,null,null,null,null,null,null,null," ",0]
[null,null,null,null,null,null,null,null," ",0]
[null,null,null,null,null,null,null,null," ",0]
[null,null,null,null,null,null,null,null," ",0]
[null,null,null,null,null,null,null,null," ",0]
[null,null,null,null,null,null,null,null," ",0]
[null,null,null,null,null,null,null,null," ",0]
[null,null,null,null,null,null,null,null," ",0]
[null,null,null,null,null,null,null,null," ",0]
[null,null,null,null,null,null,null,null," ",0]
[null,null,null,null,null,null,null,null," ",0]
[null,null,null,null,null,null,null,null," ",0]
[null,null,null,null,null,null,null,null," ",0]
[null,null,null,null,null,null,null,null," ",0]
[null,null,null,null,null,null,null,null," ",0]
[null,null,null,null,null,null,null,null," ",0]
[null,null,null,null,null,null,null,null," ",0]
[null,null,null,null,null,null,null,null," ",0]
[null,null,null,null,null,null,null,null," ",0]
[null,null,null,null,null,null,null,null," ",0]
[null,null,null,null,null,null,null,null," ",0]
[null,null,null,null,null,null,null,null," ",0]
[null,null,null,null,null,null,null,null," ",0]
[null,null,null,null,null,null,null,null," ",0]
[null,null,null,null,null,null,null,null," ",0]
[null,null,null,null,null,null,null,null," ",0]
[null,null,null,null,null,null,null,null," ",0]
[null,null,null,null,null,null,null,null," ",0]
[null,null,null,null,null,null,null,null," ",0]
[null,null,null,null,null,null,null,null," ",0]
[null,null,null,null,null,null,null,null," ",0]
[null,null,null,null,null,null,null,null," ",0]
[null,null,null,null,null,null,null,null," ",0]
[null,null,null,null,null,null,null,null," ",0]
[null,null,null,null,null,null,null,null," ",0]
[null,null,null,null,null,null,null,null," ",0]
[null,null,null,null,null,null,null,null," ",0]
[null,null,null,null,null,null,null,null," ",0]
[null,null,null,null,null,null,null,null," ",0]
[null,null,null,null,null,null,null,null," ",0]
[null,null,null,null,null,null,null,null," ",0]
[null,null,null,null,null,null,null,null," ",0]
[null,null,null,null,null,null,null,null," ",0]
[null,null,null,null,null,null,null,null,{"$f":"CONCATENATE(G1801,\" \",H1801)","v":" "},{"$f":"F1801","v":0}]
[null,null,null,null,null,null,null,null," ",0]
[null,null,null,null,null,null,null,null," ",0]
[null,null,null,null,null,null,null,null," ",0]
[null,null,null,null,null,null,null,null," ",0]
[null,null,null,null,null,null,null,null," ",0]
[null,null,null,null,null,null,null,null," ",0]
[null,null,null,null,null,null,null,null," ",0]
[null,null,null,null,null,null,null,null," ",0]
[null,null,null,null,null,null,null,null," ",0]
[null,null,null,null,null,null,null,null," ",0]
[null,null,null,null,null,null,null,null," ",0]
[null,null,null,null,null,null,null,null," ",0]
[null,null,null,null,null,null,null,null," ",0]
[null,null,null,null,null,null,null,null," ",0]
[null,null,null,null,null,null,null,null," ",0]
[null,null,null,null,null,null,null,null," ",0]
[null,null,null,null,null,null,null,null," ",0]
[null,null,null,null,null,null,null,null," ",0]
[null,null,null,null,null,null,null,null," ",0]
[null,null,null,null,null,null,null,null," ",0]
[null,null,null,null,null,null,null,null," ",0]
[null,null,null,null,null,null,null,null," ",0]
[null,null,null,null,null,null,null,null," ",0]
[null,null,null,null,null,null,null,null," ",0]
[null,null,null,null,null,null,null,null," ",0]
[null,null,null,null,null,null,null,null," ",0]
[null,null,null,null,null,null,null,null," ",0]
[null,null,null,null,null,null,null,null," ",0]
[null,null,null,null,null,null,null,null," ",0]
[null,null,null,null,null,null,null,null," ",0]
[null,null,null,null,null,null,null,null," ",0]
[null,null,null,null,null,null,null,null," ",0]
[null,null,null,null,null,null,null,null," ",0]
[null,null,null,null,null,null,null,null," ",0]
[null,null,null,null,null,null,null,null," ",0]
[null,null,null,null,null,null,null,null," ",0]
[null,null,null,null,null,null,null,null," ",0]
[null,null,null,null,null,null,null,null," ",0]
[null,null,null,null,null,null,null,null," ",0]
[null,null,null,null,null,null,null,null," ",0]
[null,null,null,null,null,null,null,null," ",0]
[null,null,null,null,null,null,null,null," ",0]
[null,null,null,null,null,null,null,null," ",0]
[null,null,null,null,null,null,null,null," ",0]
[null,null,null,null,null,null,null,null," ",0]
[null,null,null,null,null,null,null,null," ",0]
[null,null,null,null,null,null,null,null," ",0]
[null,null,null,null,null,null,null,null," ",0]
[null,null,null,null,null,null,null,null," ",0]
[null,null,null,null,null,null,null,null," ",0]
[null,null,null,null,null,null,null,null," ",0]
[null,null,null,null,null,null,null,null," ",0]
[null,null,null,null,null,null,null,null," ",0]
[null,null,null,null,null,null,null,null," ",0]
[null,null,null,null,null,null,null,null," ",0]
[null,null,null,null,null,null,null,null," ",0]
[null,null,null,null,null,null,null,null," ",0]
[null,null,null,null,null,null,null,null," ",0]
[null,null,null,null,null,null,null,null," ",0]
[null,null,null,null,null,null,null,null," ",0]
[null,null,null,null,null,null,null,null," ",0]
[null,null,null,null,null,null,null,null," ",0]
[null,null,null,null,null,null,null,null," ",0]
[null,null,null,null,null,null,null,null,{"$f":"CONCATENATE(G1865,\" \",H1865)","v":" "},{"$f":"F1865","v":0}]
[null,null,null,null,null,null,null,null," ",0]
[null,null,null,null,null,null,null,null," ",0]
[null,null,null,null,null,null,null,null," ",0]
[null,null,null,null,null,null,null,null," ",0]
[null,null,null,null,null,null,null,null," ",0]
[null,null,null,null,null,null,null,null," ",0]
[null,null,null,null,null,null,null,null," ",0]
[null,null,null,null,null,null,null,null," ",0]
[null,null,null,null,null,null,null,null," ",0]
[null,null,null,null,null,null,null,null," ",0]
[null,null,null,null,null,null,null,null," ",0]
[null,null,null,null,null,null,null,null," ",0]
[null,null,null,null,null,null,null,null," ",0]
[null,null,null,null,null,null,null,null," ",0]
[null,null,null,null,null,null,null,null," ",0]
[null,null,null,null,null,null,null,null," ",0]
[null,null,null,null,null,null,null,null," ",0]
[null,null,null,null,null,null,null,null," ",0]
[null,null,null,null,null,null,null,null," ",0]
[null,null,null,null,null,null,null,null," ",0]
[null,null,null,null,null,null,null,null," ",0]
[null,null,null,null,null,null,null,null," ",0]
[null,null,null,null,null,null,null,null," ",0]
[null,null,null,null,null,null,null,null," ",0]
[null,null,null,null,null,null,null,null," ",0]
[null,null,null,null,null,null,null,null," ",0]
[null,null,null,null,null,null,null,null," ",0]
[null,null,null,null,null,null,null,null," ",0]
[null,null,null,null,null,null,null,null," ",0]
[null,null,null,null,null,null,null,null," ",0]
[null,null,null,null,null,null,null,null," ",0]
[null,null,null,null,null,null,null,null," ",0]
[null,null,null,null,null,null,null,null," ",0]
[null,null,null,null,null,null,null,null," ",0]
[null,null,null,null,null,null,null,null," ",0]
[null,null,null,null,null,null,null,null," ",0]
[null,null,null,null,null,null,null,null," ",0]
[null,null,null,null,null,null,null,null," ",0]
[null,null,null,null,null,null,null,null," ",0]
[null,null,null,null,null,null,null,null," ",0]
[null,null,null,null,null,null,null,null," ",0]
[null,null,null,null,null,null,null,null," ",0]
[null,null,null,null,null,null,null,null," ",0]
[null,null,null,null,null,null,null,null," ",0]
[null,null,null,null,null,null,null,null," ",0]
[null,null,null,null,null,null,null,null," ",0]
[null,null,null,null,null,null,null,null," ",0]
[null,null,null,null,null,null,null,null," ",0]
[null,null,null,null,null,null,null,null," ",0]
[null,null,null,null,null,null,null,null," ",0]
[null,null,null,null,null,null,null,null," ",0]
[null,null,null,null,null,null,null,null," ",0]
[null,null,null,null,null,null,null,null," ",0]
[null,null,null,null,null,null,null,null," ",0]
[null,null,null,null,null,null,null,null," ",0]
[null,null,null,null,null,null,null,null," ",0]
[null,null,null,null,null,null,null,null," ",0]
[null,null,null,null,null,null,null,null," ",0]
[null,null,null,null,null,null,null,null," ",0]
[null,null,null,null,null,null,null,null," ",0]
[null,null,null,null,null,null,null,null," ",0]
[null,null,null,null,null,null,null,null," ",0]
[null,null,null,null,null,null,null,null," ",0]
[null,null,null,null,null,null,null,null,{"$f":"CONCATENATE(G1929,\" \",H1929)","v":" "},{"$f":"F1929","v":0}]
[null,null,null,null,null,null,null,null," ",0]
[null,null,null,null,null,null,null,null," ",0]
[null,null,null,null,null,null,null,null," ",0]
[null,null,null,null,null,null,null,null," ",0]
[null,null,null,null,null,null,null,null," ",0]
[null,null,null,null,null,null,null,null," ",0]
[null,null,null,null,null,null,null,null," ",0]
[null,null,null,null,null,null,null,null," ",0]
[null,null,null,null,null,null,null,null," ",0]
[null,null,null,null,null,null,null,null," ",0]
[null,null,null,null,null,null,null,null," ",0]
[null,null,null,null,null,null,null,null," ",0]
[null,null,null,null,null,null,null,null," ",0]
[null,null,null,null,null,null,null,null," ",0]
[null,null,null,null,null,null,null,null," ",0]
[null,null,null,null,null,null,null,null," ",0]
[null,null,null,null,null,null,null,null," ",0]
[null,null,null,null,null,null,null,null," ",0]
[null,null,null,null,null,null,null,null," ",0]
[null,null,null,null,null,null,null,null," ",0]
[null,null,null,null,null,null,null,null," ",0]
[null,null,null,null,null,null,null,null," ",0]
[null,null,null,null,null,null,null,null," ",0]
[null,null,null,null,null,null,null,null," ",0]
[null,null,null,null,null,null,null,null," ",0]
[null,null,null,null,null,null,null,null," ",0]
[null,null,null,null,null,null,null,null," ",0]
[null,null,null,null,null,null,null,null," ",0]
[null,null,null,null,null,null,null,null," ",0]
[null,null,null,null,null,null,null,null," ",0]
[null,null,null,null,null,null,null,null," ",0]
[null,null,null,null,null,null,null,null," ",0]
[null,null,null,null,null,null,null,null," ",0]
[null,null,null,null,null,null,null,null," ",0]
[null,null,null,null,null,null,null,null," ",0]
[null,null,null,null,null,null,null,null," ",0]
[null,null,null,null,null,null,null,null," ",0]
[null,null,null,null,null,null,null,null," ",0]
[null,null,null,null,null,null,null,null," ",0]
[null,null,null,null,null,null,null,null," ",0]
[null,null,null,null,null,null,null,null," ",0]
[null,null,null,null,null,null,null,null," ",0]
[null,null,null,null,null,null,null,null," ",0]
[null,null,null,null,null,null,null,null," ",0]
[null,null,null,null,null,null,null,null," ",0]
[null,null,null,null,null,null,null,null," ",0]
[null,null,null,null,null,null,null,null," ",0]
[null,null,null,null,null,null,null,null," ",0]
[null,null,null,null,null,null,null,null," ",0]
[null,null,null,null,null,null,null,null," ",0]
[null,null,null,null,null,null,null,null," ",0]
[null,null,null,null,null,null,null,null," ",0]
[null,null,null,null,null,null,null,null," ",0]
[null,null,null,null,null,null,null,null," ",0]
[null,null,null,null,null,null,null,null," ",0]
[null,null,null,null,null,null,null,null," ",0]
[null,null,null,null,null,null,null,null," ",0]
[null,null,null,null,null,null,null,null," ",0]
[null,null,null,null,null,null,null,null," ",0]
[null,null,null,null,null,null,null,null," ",0]
[null,null,null,null,null,null,null,null," ",0]
[null,null,null,null,null,null,null,null," ",0]
[null,null,null,null,null,null,null,null," ",0]
[null,null,null,null,null,null,null,null,{"$f":"CONCATENATE(G1993,\" \",H1993)","v":" "},{"$f":"F1993","v":0}]
[null,null,null,null,null,null,null,null," ",0]
[null,null,null,null,null,null,null,null," ",0]
[null,null,null,null,null,null,null,null," ",0]
[null,null,null,null,null,null,null,null," ",0]
[null,null,null,null,null,null,null,null," ",0]
[null,null,null,null,null,null,null,null," ",0]
[null,null,null,null,null,null,null,null," ",0]
[null,null,null,null,null,null,null,null," ",0]
[null,null,null,null,null,null,null,null," ",0]
[null,null,null,null,null,null,null,null," ",0]
[null,null,null,null,null,null,null,null," ",0]
[null,null,null,null,null,null,null,null," ",0]
[null,null,null,null,null,null,null,null," ",0]
[null,null,null,null,null,null,null,null," ",0]
[null,null,null,null,null,null,null,null," ",0]
[null,null,null,null,null,null,null,null," ",0]
[null,null,null,null,null,null,null,null," ",0]
[null,null,null,null,null,null,null,null," ",0]
[null,null,null,null,null,null,null,null," ",0]
[null,null,null,null,null,null,null,null," ",0]
[null,null,null,null,null,null,null,null," ",0]
[null,null,null,null,null,null,null,null," ",0]
[null,null,null,null,null,null,null,null," ",0]
[null,null,null,null,null,null,null,null," ",0]
[null,null,null,null,null,null,null,null," ",0]
[null,null,null,null,null,null,null,null," ",0]
[null,null,null,null,null,null,null,null," ",0]
[null,null,null,null,null,null,null,null," ",0]
[null,null,null,null,null,null,null,null," ",0]
[null,null,null,null,null,null,null,null," ",0]
[null,null,null,null,null,null,null,null," ",0]
[null,null,null,null,null,null,null,null," ",0]
[null,null,null,null,null,null,null,null," ",0]
[null,null,null,null,null,null,null,null," ",0]
[null,null,null,null,null,null,null,null," ",0]
[null,null,null,null,null,null,null,null," ",0]
[null,null,null,null,null,null,null,null," ",0]
[null,null,null,null,null,null,null,null," ",0]
[null,null,null,null,null,null,null,null," ",0]
[null,null,null,null,null,null,null,null," ",0]
[null,null,null,null,null,null,null,null," ",0]
[null,null,null,null,null,null,null,null," ",0]
[null,null,null,null,null,null,null,null," ",0]
[null,null,null,null,null,null,null,null," ",0]
[null,null,null,null,null,null,null,null," ",0]
[null,null,null,null,null,null,null,null," ",0]
[null,null,null,null,null,null,null,null," ",0]
[null,null,null,null,null,null,null,null," ",0]
[null,null,null,null,null,null,null,null," ",0]
[null,null,null,null,null,null,null,null," ",0]
[null,null,null,null,null,null,null,null," ",0]
[null,null,null,null,null,null,null,null," ",0]
[null,null,null,null,null,null,null,null," ",0]
[null,null,null,null,null,null,null,null," ",0]
[null,null,null,null,null,null,null,null," ",0]
[null,null,null,null,null,null,null,null," ",0]
[null,null,null,null,null,null,null,null," ",0]
[null,null,null,null,null,null,null,null," ",0]
[null,null,null,null,null,null,null,null," ",0]
[null,null,null,null,null,null,null,null," ",0]
[null,null,null,null,null,null,null,null," ",0]
[null,null,null,null,null,null,null,null," ",0]
[null,null,null,null,null,null,null,null," ",0]
[null,null,null,null,null,null,null,null,{"$f":"CONCATENATE(G2057,\" \",H2057)","v":" "},{"$f":"F2057","v":0}]
[null,null,null,null,null,null,null,null," ",0]
[null,null,null,null,null,null,null,null," ",0]
[null,null,null,null,null,null,null,null," ",0]
[null,null,null,null,null,null,null,null," ",0]
[null,null,null,null,null,null,null,null," ",0]
[null,null,null,null,null,null,null,null," ",0]
[null,null,null,null,null,null,null,null," ",0]
[null,null,null,null,null,null,null,null," ",0]
[null,null,null,null,null,null,null,null," ",0]
[null,null,null,null,null,null,null,null," ",0]
[null,null,null,null,null,null,null,null," ",0]
[null,null,null,null,null,null,null,null," ",0]
[null,null,null,null,null,null,null,null," ",0]
[null,null,null,null,null,null,null,null," ",0]
[null,null,null,null,null,null,null,null," ",0]
[null,null,null,null,null,null,null,null," ",0]
[null,null,null,null,null,null,null,null," ",0]
[null,null,null,null,null,null,null,null," ",0]
[null,null,null,null,null,null,null,null," ",0]
[null,null,null,null,null,null,null,null," ",0]
[null,null,null,null,null,null,null,null," ",0]
[null,null,null,null,null,null,null,null," ",0]
[null,null,null,null,null,null,null,null," ",0]
[null,null,null,null,null,null,null,null," ",0]
[null,null,null,null,null,null,null,null," ",0]
[null,null,null,null,null,null,null,null," ",0]
[null,null,null,null,null,null,null,null," ",0]
[null,null,null,null,null,null,null,null," ",0]
[null,null,null,null,null,null,null,null," ",0]
[null,null,null,null,null,null,null,null," ",0]
[null,null,null,null,null,null,null,null," ",0]
[null,null,null,null,null,null,null,null," ",0]
[null,null,null,null,null,null,null,null," ",0]
[null,null,null,null,null,null,null,null," ",0]
[null,null,null,null,null,null,null,null," ",0]
[null,null,null,null,null,null,null,null," ",0]
[null,null,null,null,null,null,null,null," ",0]
[null,null,null,null,null,null,null,null," ",0]
[null,null,null,null,null,null,null,null," ",0]
[null,null,null,null,null,null,null,null," ",0]
[null,null,null,null,null,null,null,null," ",0]
[null,null,null,null,null,null,null,null," ",0]
[null,null,null,null,null,null,null,null," ",0]
[null,null,null,null,null,null,null,null," ",0]
[null,null,null,null,null,null,null,null," ",0]
[null,null,null,null,null,null,null,null," ",0]
[null,null,null,null,null,null,null,null," ",0]
[null,null,null,null,null,null,null,null," ",0]
[null,null,null,null,null,null,null,null," ",0]
[null,null,null,null,null,null,null,null," ",0]
[null,null,null,null,null,null,null,null," ",0]
[null,null,null,null,null,null,null,null," ",0]
[null,null,null,null,null,null,null,null," ",0]
[null,null,null,null,null,null,null,null," ",0]
[null,null,null,null,null,null,null,null," ",0]
[null,null,null,null,null,null,null,null," ",0]
[null,null,null,null,null,null,null,null," ",0]
[null,null,null,null,null,null,null,null," ",0]
[null,null,null,null,null,null,null,null," ",0]
[null,null,null,null,null,null,null,null," ",0]
[null,null,null,null,null,null,null,null," ",0]
[null,null,null,null,null,null,null,null," ",0]
[null,null,null,null,null,null,null,null," ",0]
[null,null,null,null,null,null,null,null,{"$f":"CONCATENATE(G2121,\" \",H2121)","v":" "},{"$f":"F2121","v":0}]
[null,null,null,null,null,null,null,null," ",0]
[null,null,null,null,null,null,null,null," ",0]
[null,null,null,null,null,null,null,null," ",0]
[null,null,null,null,null,null,null,null," ",0]
[null,null,null,null,null,null,null,null," ",0]
[null,null,null,null,null,null,null,null," ",0]
[null,null,null,null,null,null,null,null," ",0]
[null,null,null,null,null,null,null,null," ",0]
[null,null,null,null,null,null,null,null," ",0]
[null,null,null,null,null,null,null,null," ",0]
[null,null,null,null,null,null,null,null," ",0]
[null,null,null,null,null,null,null,null," ",0]
[null,null,null,null,null,null,null,null," ",0]
[null,null,null,null,null,null,null,null," ",0]
[null,null,null,null,null,null,null,null," ",0]
[null,null,null,null,null,null,null,null," ",0]
[null,null,null,null,null,null,null,null," ",0]
[null,null,null,null,null,null,null,null," ",0]
[null,null,null,null,null,null,null,null," ",0]
[null,null,null,null,null,null,null,null," ",0]
[null,null,null,null,null,null,null,null," ",0]
[null,null,null,null,null,null,null,null," ",0]
[null,null,null,null,null,null,null,null," ",0]
[null,null,null,null,null,null,null,null," ",0]
[null,null,null,null,null,null,null,null," ",0]
[null,null,null,null,null,null,null,null," ",0]
[null,null,null,null,null,null,null,null," ",0]
[null,null,null,null,null,null,null,null," ",0]
[null,null,null,null,null,null,null,null," ",0]
[null,null,null,null,null,null,null,null," ",0]
[null,null,null,null,null,null,null,null," ",0]
[null,null,null,null,null,null,null,null," ",0]
[null,null,null,null,null,null,null,null," ",0]
[null,null,null,null,null,null,null,null," ",0]
[null,null,null,null,null,null,null,null," ",0]
[null,null,null,null,null,null,null,null," ",0]
[null,null,null,null,null,null,null,null," ",0]
[null,null,null,null,null,null,null,null," ",0]
[null,null,null,null,null,null,null,null," ",0]
[null,null,null,null,null,null,null,null," ",0]
[null,null,null,null,null,null,null,null," ",0]
[null,null,null,null,null,null,null,null," ",0]
[null,null,null,null,null,null,null,null," ",0]
[null,null,null,null,null,null,null,null," ",0]
[null,null,null,null,null,null,null,null," ",0]
[null,null,null,null,null,null,null,null," ",0]
[null,null,null,null,null,null,null,null," ",0]
[null,null,null,null,null,null,null,null," ",0]
[null,null,null,null,null,null,null,null," ",0]
[null,null,null,null,null,null,null,null," ",0]
[null,null,null,null,null,null,null,null," ",0]
[null,null,null,null,null,null,null,null," ",0]
[null,null,null,null,null,null,null,null," ",0]
[null,null,null,null,null,null,null,null," ",0]
[null,null,null,null,null,null,null,null," ",0]
[null,null,null,null,null,null,null,null," ",0]
[null,null,null,null,null,null,null,null," ",0]
[null,null,null,null,null,null,null,null," ",0]
[null,null,null,null,null,null,null,null," ",0]
[null,null,null,null,null,null,null,null," ",0]
[null,null,null,null,null,null,null,null," ",0]
[null,null,null,null,null,null,null,null," ",0]
[null,null,null,null,null,null,null,null," ",0]
[null,null,null,null,null,null,null,null,{"$f":"CONCATENATE(G2185,\" \",H2185)","v":" "},{"$f":"F2185","v":0}]
[null,null,null,null,null,null,null,null," ",0]
[null,null,null,null,null,null,null,null," ",0]
[null,null,null,null,null,null,null,null," ",0]
[null,null,null,null,null,null,null,null," ",0]
[null,null,null,null,null,null,null,null," ",0]
[null,null,null,null,null,null,null,null," ",0]
[null,null,null,null,null,null,null,null," ",0]
[null,null,null,null,null,null,null,null," ",0]
[null,null,null,null,null,null,null,null," ",0]
[null,null,null,null,null,null,null,null," ",0]
[null,null,null,null,null,null,null,null," ",0]
[null,null,null,null,null,null,null,null," ",0]
[null,null,null,null,null,null,null,null," ",0]
[null,null,null,null,null,null,null,null," ",0]
[null,null,null,null,null,null,null,null," ",0]
[null,null,null,null,null,null,null,null," ",0]
[null,null,null,null,null,null,null,null," ",0]
[null,null,null,null,null,null,null,null," ",0]
[null,null,null,null,null,null,null,null," ",0]
[null,null,null,null,null,null,null,null," ",0]
[null,null,null,null,null,null,null,null," ",0]
[null,null,null,null,null,null,null,null," ",0]
[null,null,null,null,null,null,null,null," ",0]
[null,null,null,null,null,null,null,null," ",0]
[null,null,null,null,null,null,null,null," ",0]
[null,null,null,null,null,null,null,null," ",0]
[null,null,null,null,null,null,null,null," ",0]
[null,null,null,null,null,null,null,null," ",0]
[null,null,null,null,null,null,null,null," ",0]
[null,null,null,null,null,null,null,null," ",0]
[null,null,null,null,null,null,null,null," ",0]
[null,null,null,null,null,null,null,null," ",0]
[null,null,null,null,null,null,null,null," ",0]
[null,null,null,null,null,null,null,null," ",0]
[null,null,null,null,null,null,null,null," ",0]
[null,null,null,null,null,null,null,null," ",0]
[null,null,null,null,null,null,null,null," ",0]
[null,null,null,null,null,null,null,null," ",0]
[null,null,null,null,null,null,null,null," ",0]
[null,null,null,null,null,null,null,null," ",0]
[null,null,null,null,null,null,null,null," ",0]
[null,null,null,null,null,null,null,null," ",0]
[null,null,null,null,null,null,null,null," ",0]
[null,null,null,null,null,null,null,null," ",0]
[null,null,null,null,null,null,null,null," ",0]
[null,null,null,null,null,null,null,null," ",0]
[null,null,null,null,null,null,null,null," ",0]
[null,null,null,null,null,null,null,null," ",0]
[null,null,null,null,null,null,null,null," ",0]
[null,null,null,null,null,null,null,null," ",0]
[null,null,null,null,null,null,null,null," ",0]
[null,null,null,null,null,null,null,null," ",0]
[null,null,null,null,null,null,null,null," ",0]
[null,null,null,null,null,null,null,null," ",0]
[null,null,null,null,null,null,null,null," ",0]
[null,null,null,null,null,null,null,null," ",0]
[null,null,null,null,null,null,null,null," ",0]
[null,null,null,null,null,null,null,null," ",0]
[null,null,null,null,null,null,null,null," ",0]
[null,null,null,null,null,null,null,null," ",0]
[null,null,null,null,null,null,null,null," ",0]
[null,null,null,null,null,null,null,null," ",0]
[null,null,null,null,null,null,null,null," ",0]
[null,null,null,null,null,null,null,null,{"$f":"CONCATENATE(G2249,\" \",H2249)","v":" "},{"$f":"F2249","v":0}]
[null,null,null,null,null,null,null,null," ",0]
[null,null,null,null,null,null,null,null," ",0]
[null,null,null,null,null,null,null,null," ",0]
[null,null,null,null,null,null,null,null," ",0]
[null,null,null,null,null,null,null,null," ",0]
[null,null,null,null,null,null,null,null," ",0]
[null,null,null,null,null,null,null,null," ",0]
[null,null,null,null,null,null,null,null," ",0]
[null,null,null,null,null,null,null,null," ",0]
[null,null,null,null,null,null,null,null," ",0]
[null,null,null,null,null,null,null,null," ",0]
[null,null,null,null,null,null,null,null," ",0]
[null,null,null,null,null,null,null,null," ",0]
[null,null,null,null,null,null,null,null," ",0]
[null,null,null,null,null,null,null,null," ",0]
[null,null,null,null,null,null,null,null," ",0]
[null,null,null,null,null,null,null,null," ",0]
[null,null,null,null,null,null,null,null," ",0]
[null,null,null,null,null,null,null,null," ",0]
[null,null,null,null,null,null,null,null," ",0]
[null,null,null,null,null,null,null,null," ",0]
[null,null,null,null,null,null,null,null," ",0]
[null,null,null,null,null,null,null,null," ",0]
[null,null,null,null,null,null,null,null," ",0]
[null,null,null,null,null,null,null,null," ",0]
[null,null,null,null,null,null,null,null," ",0]
[null,null,null,null,null,null,null,null," ",0]
[null,null,null,null,null,null,null,null," ",0]
[null,null,null,null,null,null,null,null," ",0]
[null,null,null,null,null,null,null,null," ",0]
[null,null,null,null,null,null,null,null," ",0]
[null,null,null,null,null,null,null,null," ",0]
[null,null,null,null,null,null,null,null," ",0]
[null,null,null,null,null,null,null,null," ",0]
[null,null,null,null,null,null,null,null," ",0]
[null,null,null,null,null,null,null,null," ",0]
[null,null,null,null,null,null,null,null," ",0]
[null,null,null,null,null,null,null,null," ",0]
[null,null,null,null,null,null,null,null," ",0]
[null,null,null,null,null,null,null,null," ",0]
[null,null,null,null,null,null,null,null," ",0]
[null,null,null,null,null,null,null,null," ",0]
[null,null,null,null,null,null,null,null," ",0]
[null,null,null,null,null,null,null,null," ",0]
[null,null,null,null,null,null,null,null," ",0]
[null,null,null,null,null,null,null,null," ",0]
[null,null,null,null,null,null,null,null," ",0]
[null,null,null,null,null,null,null,null," ",0]
[null,null,null,null,null,null,null,null," ",0]
[null,null,null,null,null,null,null,null," ",0]
[null,null,null,null,null,null,null,null," ",0]
[null,null,null,null,null,null,null,null," ",0]
[null,null,null,null,null,null,null,null," ",0]
[null,null,null,null,null,null,null,null," ",0]
[null,null,null,null,null,null,null,null," ",0]
[null,null,null,null,null,null,null,null," ",0]
[null,null,null,null,null,null,null,null," ",0]
[null,null,null,null,null,null,null,null," ",0]
[null,null,null,null,null,null,null,null," ",0]
[null,null,null,null,null,null,null,null," ",0]
[null,null,null,null,null,null,null,null," ",0]
[null,null,null,null,null,null,null,null," ",0]
[null,null,null,null,null,null,null,null," ",0]
[null,null,null,null,null,null,null,null,{"$f":"CONCATENATE(G2313,\" \",H2313)","v":" "},{"$f":"F2313","v":0}]
[null,null,null,null,null,null,null,null," ",0]
[null,null,null,null,null,null,null,null," ",0]
[null,null,null,null,null,null,null,null," ",0]
[null,null,null,null,null,null,null,null," ",0]
[null,null,null,null,null,null,null,null," ",0]
[null,null,null,null,null,null,null,null," ",0]
[null,null,null,null,null,null,null,null," ",0]
[null,null,null,null,null,null,null,null," ",0]
[null,null,null,null,null,null,null,null," ",0]
[null,null,null,null,null,null,null,null," ",0]
[null,null,null,null,null,null,null,null," ",0]
[null,null,null,null,null,null,null,null," ",0]
[null,null,null,null,null,null,null,null," ",0]
[null,null,null,null,null,null,null,null," ",0]
[null,null,null,null,null,null,null,null," ",0]
[null,null,null,null,null,null,null,null," ",0]
[null,null,null,null,null,null,null,null," ",0]
[null,null,null,null,null,null,null,null," ",0]
[null,null,null,null,null,null,null,null," ",0]
[null,null,null,null,null,null,null,null," ",0]
[null,null,null,null,null,null,null,null," ",0]
[null,null,null,null,null,null,null,null," ",0]
[null,null,null,null,null,null,null,null," ",0]
[null,null,null,null,null,null,null,null," ",0]
[null,null,null,null,null,null,null,null," ",0]
[null,null,null,null,null,null,null,null," ",0]
[null,null,null,null,null,null,null,null," ",0]
[null,null,null,null,null,null,null,null," ",0]
[null,null,null,null,null,null,null,null," ",0]
[null,null,null,null,null,null,null,null," ",0]
[null,null,null,null,null,null,null,null," ",0]
[null,null,null,null,null,null,null,null," ",0]
[null,null,null,null,null,null,null,null," ",0]
[null,null,null,null,null,null,null,null," ",0]
[null,null,null,null,null,null,null,null," ",0]
[null,null,null,null,null,null,null,null," ",0]
[null,null,null,null,null,null,null,null," ",0]
[null,null,null,null,null,null,null,null," ",0]
[null,null,null,null,null,null,null,null," ",0]
[null,null,null,null,null,null,null,null," ",0]
[null,null,null,null,null,null,null,null," ",0]
[null,null,null,null,null,null,null,null," ",0]
[null,null,null,null,null,null,null,null," ",0]
[null,null,null,null,null,null,null,null," ",0]
[null,null,null,null,null,null,null,null," ",0]
[null,null,null,null,null,null,null,null," ",0]
[null,null,null,null,null,null,null,null," ",0]
[null,null,null,null,null,null,null,null," ",0]
[null,null,null,null,null,null,null,null," ",0]
[null,null,null,null,null,null,null,null," ",0]
[null,null,null,null,null,null,null,null," ",0]
[null,null,null,null,null,null,null,null," ",0]
[null,null,null,null,null,null,null,null," ",0]
[null,null,null,null,null,null,null,null," ",0]
[null,null,null,null,null,null,null,null," ",0]
[null,null,null,null,null,null,null,null," ",0]
[null,null,null,null,null,null,null,null," ",0]
[null,null,null,null,null,null,null,null," ",0]
[null,null,null,null,null,null,null,null," ",0]
[null,null,null,null,null,null,null,null," ",0]
[null,null,null,null,null,null,null,null," ",0]
[null,null,null,null,null,null,null,null," ",0]
[null,null,null,null,null,null,null,null," ",0]
[null,null,null,null,null,null,null,null,{"$f":"CONCATENATE(G2377,\" \",H2377)","v":" "},{"$f":"F2377","v":0}]
[null,null,null,null,null,null,null,null," ",0]
[null,null,null,null,null,null,null,null," ",0]
[null,null,null,null,null,null,null,null," ",0]
[null,null,null,null,null,null,null,null," ",0]
[null,null,null,null,null,null,null,null," ",0]
[null,null,null,null,null,null,null,null," ",0]
[null,null,null,null,null,null,null,null," ",0]
[null,null,null,null,null,null,null,null," ",0]
[null,null,null,null,null,null,null,null," ",0]
[null,null,null,null,null,null,null,null," ",0]
[null,null,null,null,null,null,null,null," ",0]
[null,null,null,null,null,null,null,null," ",0]
[null,null,null,null,null,null,null,null," ",0]
[null,null,null,null,null,null,null,null," ",0]
[null,null,null,null,null,null,null,null," ",0]
[null,null,null,null,null,null,null,null," ",0]
[null,null,null,null,null,null,null,null," ",0]
[null,null,null,null,null,null,null,null," ",0]
[null,null,null,null,null,null,null,null," ",0]
[null,null,null,null,null,null,null,null," ",0]
[null,null,null,null,null,null,null,null," ",0]
[null,null,null,null,null,null,null,null," ",0]
[null,null,null,null,null,null,null,null," ",0]
[null,null,null,null,null,null,null,null," ",0]
[null,null,null,null,null,null,null,null," ",0]
[null,null,null,null,null,null,null,null," ",0]
[null,null,null,null,null,null,null,null," ",0]
[null,null,null,null,null,null,null,null," ",0]
[null,null,null,null,null,null,null,null," ",0]
[null,null,null,null,null,null,null,null," ",0]
[null,null,null,null,null,null,null,null," ",0]
[null,null,null,null,null,null,null,null," ",0]
[null,null,null,null,null,null,null,null," ",0]
[null,null,null,null,null,null,null,null," ",0]
[null,null,null,null,null,null,null,null," ",0]
[null,null,null,null,null,null,null,null," ",0]
[null,null,null,null,null,null,null,null," ",0]
[null,null,null,null,null,null,null,null," ",0]
[null,null,null,null,null,null,null,null," ",0]
[null,null,null,null,null,null,null,null," ",0]
[null,null,null,null,null,null,null,null," ",0]
[null,null,null,null,null,null,null,null," ",0]
[null,null,null,null,null,null,null,null," ",0]
[null,null,null,null,null,null,null,null," ",0]
[null,null,null,null,null,null,null,null," ",0]
[null,null,null,null,null,null,null,null," ",0]
[null,null,null,null,null,null,null,null," ",0]
[null,null,null,null,null,null,null,null," ",0]
[null,null,null,null,null,null,null,null," ",0]
[null,null,null,null,null,null,null,null," ",0]
[null,null,null,null,null,null,null,null," ",0]
[null,null,null,null,null,null,null,null," ",0]
[null,null,null,null,null,null,null,null," ",0]
[null,null,null,null,null,null,null,null," ",0]
[null,null,null,null,null,null,null,null," ",0]
[null,null,null,null,null,null,null,null," ",0]
[null,null,null,null,null,null,null,null," ",0]
[null,null,null,null,null,null,null,null," ",0]
[null,null,null,null,null,null,null,null," ",0]
[null,null,null,null,null,null,null,null," ",0]
[null,null,null,null,null,null,null,null," ",0]
[null,null,null,null,null,null,null,null," ",0]
[null,null,null,null,null,null,null,null," ",0]
[null,null,null,null,null,null,null,null,{"$f":"CONCATENATE(G2441,\" \",H2441)","v":" "},{"$f":"F2441","v":0}]
[null,null,null,null,null,null,null,null," ",0]
[null,null,null,null,null,null,null,null," ",0]
[null,null,null,null,null,null,null,null," ",0]
[null,null,null,null,null,null,null,null," ",0]
[null,null,null,null,null,null,null,null," ",0]
[null,null,null,null,null,null,null,null," ",0]
[null,null,null,null,null,null,null,null," ",0]
[null,null,null,null,null,null,null,null," ",0]
[null,null,null,null,null,null,null,null," ",0]
[null,null,null,null,null,null,null,null," ",0]
[null,null,null,null,null,null,null,null," ",0]
[null,null,null,null,null,null,null,null," ",0]
[null,null,null,null,null,null,null,null," ",0]
[null,null,null,null,null,null,null,null," ",0]
[null,null,null,null,null,null,null,null," ",0]
[null,null,null,null,null,null,null,null," ",0]
[null,null,null,null,null,null,null,null," ",0]
[null,null,null,null,null,null,null,null," ",0]
[null,null,null,null,null,null,null,null," ",0]
[null,null,null,null,null,null,null,null," ",0]
[null,null,null,null,null,null,null,null," ",0]
[null,null,null,null,null,null,null,null," ",0]
[null,null,null,null,null,null,null,null," ",0]
[null,null,null,null,null,null,null,null," ",0]
[null,null,null,null,null,null,null,null," ",0]
[null,null,null,null,null,null,null,null," ",0]
[null,null,null,null,null,null,null,null," ",0]
[null,null,null,null,null,null,null,null," ",0]
[null,null,null,null,null,null,null,null," ",0]
[null,null,null,null,null,null,null,null," ",0]
[null,null,null,null,null,null,null,null," ",0]
[null,null,null,null,null,null,null,null," ",0]
[null,null,null,null,null,null,null,null," ",0]
[null,null,null,null,null,null,null,null," ",0]
[null,null,null,null,null,null,null,null," ",0]
[null,null,null,null,null,null,null,null," ",0]
[null,null,null,null,null,null,null,null," ",0]
[null,null,null,null,null,null,null,null," ",0]
[null,null,null,null,null,null,null,null," ",0]
[null,null,null,null,null,null,null,null," ",0]
[null,null,null,null,null,null,null,null," ",0]
[null,null,null,null,null,null,null,null," ",0]
[null,null,null,null,null,null,null,null," ",0]
[null,null,null,null,null,null,null,null," ",0]
[null,null,null,null,null,null,null,null," ",0]
[null,null,null,null,null,null,null,null," ",0]
[null,null,null,null,null,null,null,null," ",0]
[null,null,null,null,null,null,null,null," ",0]
[null,null,null,null,null,null,null,null," ",0]
[null,null,null,null,null,null,null,null," ",0]
[null,null,null,null,null,null,null,null," ",0]
[null,null,null,null,null,null,null,null," ",0]
[null,null,null,null,null,null,null,null," ",0]
[null,null,null,null,null,null,null,null," ",0]
[null,null,null,null,null,null,null,null," ",0]
[null,null,null,null,null,null,null,null," ",0]
[null,null,null,null,null,null,null,null," ",0]
[null,null,null,null,null,null,null,null," ",0]
[null,null,null,null,null,null,null,null," ",0]
[null,null,null,null,null,null,null,null," ",0]
[null,null,null,null,null,null,null,null," ",0]
[null,null,null,null,null,null,null,null," ",0]
[null,null,null,null,null,null,null,null," ",0]
[null,null,null,null,null,null,null,null,{"$f":"CONCATENATE(G2505,\" \",H2505)","v":" "},{"$f":"F2505","v":0}]
[null,null,null,null,null,null,null,null," ",0]
[null,null,null,null,null,null,null,null," ",0]
[null,null,null,null,null,null,null,null," ",0]
[null,null,null,null,null,null,null,null," ",0]
[null,null,null,null,null,null,null,null," ",0]
[null,null,null,null,null,null,null,null," ",0]
[null,null,null,null,null,null,null,null," ",0]
[null,null,null,null,null,null,null,null," ",0]
[null,null,null,null,null,null,null,null," ",0]
[null,null,null,null,null,null,null,null," ",0]
[null,null,null,null,null,null,null,null," ",0]
[null,null,null,null,null,null,null,null," ",0]
[null,null,null,null,null,null,null,null," ",0]
[null,null,null,null,null,null,null,null," ",0]
[null,null,null,null,null,null,null,null," ",0]
[null,null,null,null,null,null,null,null," ",0]
[null,null,null,null,null,null,null,null," ",0]
[null,null,null,null,null,null,null,null," ",0]
[null,null,null,null,null,null,null,null," ",0]
[null,null,null,null,null,null,null,null," ",0]
[null,null,null,null,null,null,null,null," ",0]
[null,null,null,null,null,null,null,null," ",0]
[null,null,null,null,null,null,null,null," ",0]
[null,null,null,null,null,null,null,null," ",0]
[null,null,null,null,null,null,null,null," ",0]
[null,null,null,null,null,null,null,null," ",0]
[null,null,null,null,null,null,null,null," ",0]
[null,null,null,null,null,null,null,null," ",0]
[null,null,null,null,null,null,null,null," ",0]
[null,null,null,null,null,null,null,null," ",0]
[null,null,null,null,null,null,null,null," ",0]
[null,null,null,null,null,null,null,null," ",0]
[null,null,null,null,null,null,null,null," ",0]
[null,null,null,null,null,null,null,null," ",0]
[null,null,null,null,null,null,null,null," ",0]
[null,null,null,null,null,null,null,null," ",0]
[null,null,null,null,null,null,null,null," ",0]
[null,null,null,null,null,null,null,null," ",0]
[null,null,null,null,null,null,null,null," ",0]
[null,null,null,null,null,null,null,null," ",0]
[null,null,null,null,null,null,null,null," ",0]
[null,null,null,null,null,null,null,null," ",0]
[null,null,null,null,null,null,null,null," ",0]
[null,null,null,null,null,null,null,null," ",0]
[null,null,null,null,null,null,null,null," ",0]
[null,null,null,null,null,null,null,null," ",0]
[null,null,null,null,null,null,null,null," ",0]
[null,null,null,null,null,null,null,null," ",0]
[null,null,null,null,null,null,null,null," ",0]
[null,null,null,null,null,null,null,null," ",0]
[null,null,null,null,null,null,null,null," ",0]
[null,null,null,null,null,null,null,null," ",0]
[null,null,null,null,null,null,null,null," ",0]
[null,null,null,null,null,null,null,null," ",0]
[null,null,null,null,null,null,null,null," ",0]
[null,null,null,null,null,null,null,null," ",0]
[null,null,null,null,null,null,null,null," ",0]
[null,null,null,null,null,null,null,null," ",0]
[null,null,null,null,null,null,null,null," ",0]
[null,null,null,null,null,null,null,null," ",0]
[null,null,null,null,null,null,null,null," ",0]
[null,null,null,null,null,null,null,null," ",0]
[null,null,null,null,null,null,null,null," ",0]
[null,null,null,null,null,null,null,null,{"$f":"CONCATENATE(G2569,\" \",H2569)","v":" "},{"$f":"F2569","v":0}]
[null,null,null,null,null,null,null,null," ",0]
[null,null,null,null,null,null,null,null," ",0]
[null,null,null,null,null,null,null,null," ",0]
[null,null,null,null,null,null,null,null," ",0]
[null,null,null,null,null,null,null,null," ",0]
[null,null,null,null,null,null,null,null," ",0]
[null,null,null,null,null,null,null,null," ",0]
[null,null,null,null,null,null,null,null," ",0]
[null,null,null,null,null,null,null,null," ",0]
[null,null,null,null,null,null,null,null," ",0]
[null,null,null,null,null,null,null,null," ",0]
[null,null,null,null,null,null,null,null," ",0]
[null,null,null,null,null,null,null,null," ",0]
[null,null,null,null,null,null,null,null," ",0]
[null,null,null,null,null,null,null,null," ",0]
[null,null,null,null,null,null,null,null," ",0]
[null,null,null,null,null,null,null,null," ",0]
[null,null,null,null,null,null,null,null," ",0]
[null,null,null,null,null,null,null,null," ",0]
[null,null,null,null,null,null,null,null," ",0]
[null,null,null,null,null,null,null,null," ",0]
[null,null,null,null,null,null,null,null," ",0]
[null,null,null,null,null,null,null,null," ",0]
[null,null,null,null,null,null,null,null," ",0]
[null,null,null,null,null,null,null,null," ",0]
[null,null,null,null,null,null,null,null," ",0]
[null,null,null,null,null,null,null,null," ",0]
[null,null,null,null,null,null,null,null," ",0]
[null,null,null,null,null,null,null,null," ",0]
[null,null,null,null,null,null,null,null," ",0]
[null,null,null,null,null,null,null,null," ",0]
[null,null,null,null,null,null,null,null," ",0]
[null,null,null,null,null,null,null,null," ",0]
[null,null,null,null,null,null,null,null," ",0]
[null,null,null,null,null,null,null,null," ",0]
[null,null,null,null,null,null,null,null," ",0]
[null,null,null,null,null,null,null,null," ",0]
[null,null,null,null,null,null,null,null," ",0]
[null,null,null,null,null,null,null,null," ",0]
[null,null,null,null,null,null,null,null," ",0]
[null,null,null,null,null,null,null,null," ",0]
[null,null,null,null,null,null,null,null," ",0]
[null,null,null,null,null,null,null,null," ",0]
[null,null,null,null,null,null,null,null," ",0]
[null,null,null,null,null,null,null,null," ",0]
[null,null,null,null,null,null,null,null," ",0]
[null,null,null,null,null,null,null,null," ",0]
[null,null,null,null,null,null,null,null," ",0]
[null,null,null,null,null,null,null,null," ",0]
[null,null,null,null,null,null,null,null," ",0]
[null,null,null,null,null,null,null,null," ",0]
[null,null,null,null,null,null,null,null," ",0]
[null,null,null,null,null,null,null,null," ",0]
[null,null,null,null,null,null,null,null," ",0]
[null,null,null,null,null,null,null,null," ",0]
[null,null,null,null,null,null,null,null," ",0]
[null,null,null,null,null,null,null,null," ",0]
[null,null,null,null,null,null,null,null," ",0]
[null,null,null,null,null,null,null,null," ",0]
[null,null,null,null,null,null,null,null," ",0]
[null,null,null,null,null,null,null,null," ",0]
[null,null,null,null,null,null,null,null," ",0]
[null,null,null,null,null,null,null,null," ",0]
[null,null,null,null,null,null,null,null,{"$f":"CONCATENATE(G2633,\" \",H2633)","v":" "},{"$f":"F2633","v":0}]
[null,null,null,null,null,null,null,null," ",0]
[null,null,null,null,null,null,null,null," ",0]
[null,null,null,null,null,null,null,null," ",0]
[null,null,null,null,null,null,null,null," ",0]
[null,null,null,null,null,null,null,null," ",0]
[null,null,null,null,null,null,null,null," ",0]
[null,null,null,null,null,null,null,null," ",0]
[null,null,null,null,null,null,null,null," ",0]
[null,null,null,null,null,null,null,null," ",0]
[null,null,null,null,null,null,null,null," ",0]
[null,null,null,null,null,null,null,null," ",0]
[null,null,null,null,null,null,null,null," ",0]
[null,null,null,null,null,null,null,null," ",0]
[null,null,null,null,null,null,null,null," ",0]
[null,null,null,null,null,null,null,null," ",0]
[null,null,null,null,null,null,null,null," ",0]
[null,null,null,null,null,null,null,null," ",0]
[null,null,null,null,null,null,null,null," ",0]
[null,null,null,null,null,null,null,null," ",0]
[null,null,null,null,null,null,null,null," ",0]
[null,null,null,null,null,null,null,null," ",0]
[null,null,null,null,null,null,null,null," ",0]
[null,null,null,null,null,null,null,null," ",0]
[null,null,null,null,null,null,null,null," ",0]
[null,null,null,null,null,null,null,null," ",0]
[null,null,null,null,null,null,null,null," ",0]
[null,null,null,null,null,null,null,null," ",0]
[null,null,null,null,null,null,null,null," ",0]
[null,null,null,null,null,null,null,null," ",0]
[null,null,null,null,null,null,null,null," ",0]
[null,null,null,null,null,null,null,null," ",0]
[null,null,null,null,null,null,null,null," ",0]
[null,null,null,null,null,null,null,null," ",0]
[null,null,null,null,null,null,null,null," ",0]
[null,null,null,null,null,null,null,null," ",0]
[null,null,null,null,null,null,null,null," ",0]
[null,null,null,null,null,null,null,null," ",0]
[null,null,null,null,null,null,null,null," ",0]
[null,null,null,null,null,null,null,null," ",0]
[null,null,null,null,null,null,null,null," ",0]
[null,null,null,null,null,null,null,null," ",0]
[null,null,null,null,null,null,null,null," ",0]
[null,null,null,null,null,null,null,null," ",0]
[null,null,null,null,null,null,null,null," ",0]
[null,null,null,null,null,null,null,null," ",0]
[null,null,null,null,null,null,null,null," ",0]
[null,null,null,null,null,null,null,null," ",0]
[null,null,null,null,null,null,null,null," ",0]
[null,null,null,null,null,null,null,null," ",0]
[null,null,null,null,null,null,null,null," ",0]
[null,null,null,null,null,null,null,null," ",0]
[null,null,null,null,null,null,null,null," ",0]
[null,null,null,null,null,null,null,null," ",0]
[null,null,null,null,null,null,null,null," ",0]
[null,null,null,null,null,null,null,null," ",0]
[null,null,null,null,null,null,null,null," ",0]
[null,null,null,null,null,null,null,null," ",0]
[null,null,null,null,null,null,null,null," ",0]
[null,null,null,null,null,null,null,null," ",0]
[null,null,null,null,null,null,null,null," ",0]
[null,null,null,null,null,null,null,null," ",0]
[null,null,null,null,null,null,null,null," ",0]
[null,null,null,null,null,null,null,null," ",0]
[null,null,null,null,null,null,null,null,{"$f":"CONCATENATE(G2697,\" \",H2697)","v":" "},{"$f":"F2697","v":0}]
[null,null,null,null,null,null,null,null," ",0]
[null,null,null,null,null,null,null,null," ",0]
[null,null,null,null,null,null,null,null," ",0]
[null,null,null,null,null,null,null,null," ",0]
[null,null,null,null,null,null,null,null," ",0]
[null,null,null,null,null,null,null,null," ",0]
[null,null,null,null,null,null,null,null," ",0]
[null,null,null,null,null,null,null,null," ",0]
[null,null,null,null,null,null,null,null," ",0]
[null,null,null,null,null,null,null,null," ",0]
[null,null,null,null,null,null,null,null," ",0]
[null,null,null,null,null,null,null,null," ",0]
[null,null,null,null,null,null,null,null," ",0]
[null,null,null,null,null,null,null,null," ",0]
[null,null,null,null,null,null,null,null," ",0]
[null,null,null,null,null,null,null,null," ",0]
[null,null,null,null,null,null,null,null," ",0]
[null,null,null,null,null,null,null,null," ",0]
[null,null,null,null,null,null,null,null," ",0]
[null,null,null,null,null,null,null,null," ",0]
[null,null,null,null,null,null,null,null," ",0]
[null,null,null,null,null,null,null,null," ",0]
[null,null,null,null,null,null,null,null," ",0]
[null,null,null,null,null,null,null,null," ",0]
[null,null,null,null,null,null,null,null," ",0]
[null,null,null,null,null,null,null,null," ",0]
[null,null,null,null,null,null,null,null," ",0]
[null,null,null,null,null,null,null,null," ",0]
[null,null,null,null,null,null,null,null," ",0]
[null,null,null,null,null,null,null,null," ",0]
[null,null,null,null,null,null,null,null," ",0]
[null,null,null,null,null,null,null,null," ",0]
[null,null,null,null,null,null,null,null," ",0]
[null,null,null,null,null,null,null,null," ",0]
[null,null,null,null,null,null,null,null," ",0]
[null,null,null,null,null,null,null,null," ",0]
[null,null,null,null,null,null,null,null," ",0]
[null,null,null,null,null,null,null,null," ",0]
[null,null,null,null,null,null,null,null," ",0]
[null,null,null,null,null,null,null,null," ",0]
[null,null,null,null,null,null,null,null," ",0]
[null,null,null,null,null,null,null,null," ",0]
[null,null,null,null,null,null,null,null," ",0]
[null,null,null,null,null,null,null,null," ",0]
[null,null,null,null,null,null,null,null," ",0]
[null,null,null,null,null,null,null,null," ",0]
[null,null,null,null,null,null,null,null," ",0]
[null,null,null,null,null,null,null,null," ",0]
[null,null,null,null,null,null,null,null," ",0]
[null,null,null,null,null,null,null,null," ",0]
[null,null,null,null,null,null,null,null," ",0]
[null,null,null,null,null,null,null,null," ",0]
[null,null,null,null,null,null,null,null," ",0]
[null,null,null,null,null,null,null,null," ",0]
[null,null,null,null,null,null,null,null," ",0]
[null,null,null,null,null,null,null,null," ",0]
[null,null,null,null,null,null,null,null," ",0]
[null,null,null,null,null,null,null,null," ",0]
[null,null,null,null,null,null,null,null," ",0]
[null,null,null,null,null,null,null,null," ",0]
[null,null,null,null,null,null,null,null," ",0]
[null,null,null,null,null,null,null,null," ",0]
[null,null,null,null,null,null,null,null," ",0]
[null,null,null,null,null,null,null,null,{"$f":"CONCATENATE(G2761,\" \",H2761)","v":" "},{"$f":"F2761","v":0}]
[null,null,null,null,null,null,null,null," ",0]
[null,null,null,null,null,null,null,null," ",0]
[null,null,null,null,null,null,null,null," ",0]
[null,null,null,null,null,null,null,null," ",0]
[null,null,null,null,null,null,null,null," ",0]
[null,null,null,null,null,null,null,null," ",0]
[null,null,null,null,null,null,null,null," ",0]
[null,null,null,null,null,null,null,null," ",0]
[null,null,null,null,null,null,null,null," ",0]
[null,null,null,null,null,null,null,null," ",0]
[null,null,null,null,null,null,null,null," ",0]
[null,null,null,null,null,null,null,null," ",0]
[null,null,null,null,null,null,null,null," ",0]
[null,null,null,null,null,null,null,null," ",0]
[null,null,null,null,null,null,null,null," ",0]
[null,null,null,null,null,null,null,null," ",0]
[null,null,null,null,null,null,null,null," ",0]
[null,null,null,null,null,null,null,null," ",0]
[null,null,null,null,null,null,null,null," ",0]
[null,null,null,null,null,null,null,null," ",0]
[null,null,null,null,null,null,null,null," ",0]
[null,null,null,null,null,null,null,null," ",0]
[null,null,null,null,null,null,null,null," ",0]
[null,null,null,null,null,null,null,null," ",0]
[null,null,null,null,null,null,null,null," ",0]
[null,null,null,null,null,null,null,null," ",0]
[null,null,null,null,null,null,null,null," ",0]
[null,null,null,null,null,null,null,null," ",0]
[null,null,null,null,null,null,null,null," ",0]
[null,null,null,null,null,null,null,null," ",0]
[null,null,null,null,null,null,null,null," ",0]
[null,null,null,null,null,null,null,null," ",0]
[null,null,null,null,null,null,null,null," ",0]